Workbook

Sheet بيانات
Q1: التوقيـــــــــــــــــــت الأسبـــــــــــــــــوعي
B3: الاساتذة | D3: المواد | F3: الأقسام | H3: الأيام | J3: مشرفي التربية | L3: الرتب | N3: التبريرات | S3: الأحــــد | AE3: الإثنيــن | AQ3: الثلاثاء | BC3: الأربعـاء | BO3: الخميــس
B4: أ.الرياضيات | D4: فرنسية | F4: 3ت ر | H4: الأحــــد | L4: مستشار ت | N4: إضراب | S4: 08ـ09 | T4: 09ـ10 | U4: 10ـ11 | V4: 11ـ12 | W4: 14½-13½ | X4: 15½-14½ | Y4: 16½-15½ | Z4: 17½-16½ | AE4: 08ـ09 | AF4: 09ـ10 | AG4: 10ـ11 | AH4: 11ـ12 | AI4: 14½-13½ | AJ4: 15½-14½ | AK4: 16½-15½ | AL4: 17½-16½ | AQ4: 08ـ09 | AR4: 09ـ10 | AS4: 10ـ11 | AT4: 11ـ12 | AU4: 14½-13½ | AV4: 15½-14½ | AW4: 16½-15½ | AX4: 17½-16½ | BC4: 08ـ09 | BD4: 09ـ10 | BE4: 10ـ11 | BF4: 11ـ12 | BG4: 14½-13½ | BH4: 15½-14½ | BI4: 16½-15½ | BJ4: 17½-16½ | BO4: 08ـ09 | BP4: 09ـ10 | BQ4: 10ـ11 | BR4: 11ـ12 | BS4: 14½-13½ | BT4: 15½-14½ | BU4: 16½-15½ | BV4: 17½-16½
B5: أ.ناسي | D5: أدب عربي | F5: 3ع ت01 | H5: الإثنيــن | J5: اوحساين مجاهد | L5: مشرف ت | N5: عطلة مرضية | P5: 1 | Q5: أ.ناسي | R5: أ.الرياضيات | S5: 2ت ر | T5: 3ت ر | U5: 3ت ر | Z5: 1ع1 | AB5: 1 | AC5: أ.ناسي | AD5: أ.الرياضيات | AE5: 2ت ر | AF5: 3ت ر | AG5: 3ت ر | AL5: 1ع1 | AN5: 1 | AO5: أ.ناسي | AP5: أ.الرياضيات | AS5: 3ت ر | AX5: 1ع1 | AZ5: 1 | BA5: أ.ناسي | BB5: أ.الرياضيات | BC5: 2ت ر | BD5: 3ت ر | BE5: 3ت ر | BJ5: 1ع1 | BL5: 1 | BM5: أ.ناسي | BN5: أ.الرياضيات | BS5: 2ت ر | BT5: 3ت ر | BU5: 3ت ر | BV5: 1ع1
B6: أ.بوطوبة | D6: ع اسلامية | F6: 3ع ت02 | H6: الثلاثاء | J6: بوزيدي محمد | N6: عطلة أمومة | P6: 2 | Q6: أ.بوطوبة | R6: أ.الرياضيات | AB6: 2 | AC6: أ.بوطوبة | AD6: أ.الرياضيات | AN6: 2 | AO6: أ.بوطوبة | AP6: أ.الرياضيات | AZ6: 2 | BA6: أ.بوطوبة | BB6: أ.الرياضيات | BL6: 2 | BM6: أ.بوطوبة | BN6: أ.الرياضيات | BQ6: 2أ ف | BR6: 1ع4
B7: أ.بوعريشة | D7: ع طبيعية | F7: 3ت إ | H7: الأربعـاء | J7: عبد المالك منور | N7: شهادة طبية | P7: 3 | Q7: أ.بوعريشة | R7: أ.الرياضيات | AB7: 3 | AC7: أ.بوعريشة | AD7: أ.الرياضيات | AN7: 3 | AO7: أ.بوعريشة | AP7: أ.الرياضيات | AZ7: 3 | BA7: أ.بوعريشة | BB7: أ.الرياضيات | BL7: 3 | BM7: أ.بوعريشة | BN7: أ.الرياضيات
B8: أ.قبلي | D8: اجتماعيات | F8: 3أ ف | H8: الخميــس | J8: حجاز محمد | N8: ندوة خارجية | P8: 4 | Q8: أ.قبلي | R8: أ.الرياضيات | AB8: 4 | AC8: أ.قبلي | AD8: أ.الرياضيات | AN8: 4 | AO8: أ.قبلي | AP8: أ.الرياضيات | AZ8: 4 | BA8: أ.قبلي | BB8: أ.الرياضيات | BL8: 4 | BM8: أ.قبلي | BN8: أ.الرياضيات
B9: أ.ديب | D9: تكنولوجيا | F9: 3لغات | J9: يوسف حسناء | N9: ملتقى | P9: 5 | Q9: أ.ديب | R9: أ.الرياضيات | AB9: 5 | AC9: أ.ديب | AD9: أ.الرياضيات | AN9: 5 | AO9: أ.ديب | AP9: أ.الرياضيات | AZ9: 5 | BA9: أ.ديب | BB9: أ.الرياضيات | BL9: 5 | BM9: أ.ديب | BN9: أ.الرياضيات
D10: اقتصاد | J10: سيفي عبد القادر | N10: امتحان تثبيت | P10: 6 | Q10: أ.عشماوي | R10: أ.الفيزياء | AB10: 6 | AC10: أ.عشماوي | AD10: أ.الفيزياء | AN10: 6 | AO10: أ.عشماوي | AP10: أ.الفيزياء | AZ10: 6 | BA10: أ.عشماوي | BB10: أ.الفيزياء | BL10: 6 | BM10: أ.عشماوي | BN10: أ.الفيزياء
D11: انجليزية | J11: كاملي نبيلة | N11: اجتماع مرخص | P11: 7 | Q11: أ.حاجب | R11: أ.الفيزياء | AB11: 7 | AC11: أ.حاجب | AD11: أ.الفيزياء | AN11: 7 | AO11: أ.حاجب | AP11: أ.الفيزياء | AZ11: 7 | BA11: أ.حاجب | BB11: أ.الفيزياء | BL11: 7 | BM11: أ.حاجب | BN11: أ.الفيزياء
B12: أ.الفيزياء | D12: رياضة | F12: 2ت ر | N12: وفاة الأقارب | P12: 8 | Q12: قوراري | R12: أ.الفيزياء | AB12: 8 | AC12: قوراري | AD12: أ.الفيزياء | AN12: 8 | AO12: قوراري | AP12: أ.الفيزياء | AZ12: 8 | BA12: قوراري | BB12: أ.الفيزياء | BL12: 8 | BM12: قوراري | BN12: أ.الفيزياء
B13: أ.عشماوي | D13: فلسفة | F13: 2ع ت01 | N13: احتجاج | P13: 9 | Q13: أ.ناضور | R13: أ.الفيزياء | AB13: 9 | AC13: أ.ناضور | AD13: أ.الفيزياء | AN13: 9 | AO13: أ.ناضور | AP13: أ.الفيزياء | AZ13: 9 | BA13: أ.ناضور | BB13: أ.الفيزياء | BL13: 9 | BM13: أ.ناضور | BN13: أ.الفيزياء
B14: أ.حاجب | D14: فيزياء | F14: 2ع ت02 | N14: مع التعويض | P14: 10 | Q14: أ.زرار | R14: أ.الفيزياء | AB14: 10 | AC14: أ.زرار | AD14: أ.الفيزياء | AN14: 10 | AO14: أ.زرار | AP14: أ.الفيزياء | AZ14: 10 | BA14: أ.زرار | BB14: أ.الفيزياء | BL14: 10 | BM14: أ.زرار | BN14: أ.الفيزياء
B15: قوراري | D15: رياضيات | F15: 2ت إ | N15: مرض مفاجئ | P15: 11 | Q15: أ.براهمي | R15: أ.ع الطبيعية | AB15: 11 | AC15: أ.براهمي | AD15: أ.ع الطبيعية | AN15: 11 | AO15: أ.براهمي | AP15: أ.ع الطبيعية | AZ15: 11 | BA15: أ.براهمي | BB15: أ.ع الطبيعية | BL15: 11 | BM15: أ.براهمي | BN15: أ.ع الطبيعية
B16: أ.ناضور | D16: إسبانية | F16: 2أ ف | N16: مرض | P16: 12 | Q16: أ.لعشب | R16: أ.ع الطبيعية | AB16: 12 | AC16: أ.لعشب | AD16: أ.ع الطبيعية | AN16: 12 | AO16: أ.لعشب | AP16: أ.ع الطبيعية | AZ16: 12 | BA16: أ.لعشب | BB16: أ.ع الطبيعية | BL16: 12 | BM16: أ.لعشب | BN16: أ.ع الطبيعية
B17: أ.زرار | D17: معلوماتية | F17: 2لغات | P17: 13 | Q17: أ.درني | R17: أ.ع الطبيعية | AB17: 13 | AC17: أ.درني | AD17: أ.ع الطبيعية | AN17: 13 | AO17: أ.درني | AP17: أ.ع الطبيعية | AZ17: 13 | BA17: أ.درني | BB17: أ.ع الطبيعية | BL17: 13 | BM17: أ.درني | BN17: أ.ع الطبيعية
F18: 1ع1 | P18: 14 | Q18: أ.فراج | R18: أ.ع الطبيعية | AB18: 14 | AC18: أ.فراج | AD18: أ.ع الطبيعية | AN18: 14 | AO18: أ.فراج | AP18: أ.ع الطبيعية | AZ18: 14 | BA18: أ.فراج | BB18: أ.ع الطبيعية | BL18: 14 | BM18: أ.فراج | BN18: أ.ع الطبيعية
B19: أ.ع الطبيعية | F19: 1ع2 | P19: 15 | Q19: أ.كريب | R19: أ,الأدب العربي | AB19: 15 | AC19: أ.كريب | AD19: أ,الأدب العربي | AN19: 15 | AO19: أ.كريب | AP19: أ,الأدب العربي | AZ19: 15 | BA19: أ.كريب | BB19: أ,الأدب العربي | BL19: 15 | BM19: أ.كريب | BN19: أ,الأدب العربي
B20: أ.براهمي | F20: 1ع3 | P20: 16 | Q20: أ.صبيان | R20: أ,الأدب العربي | AB20: 16 | AC20: أ.صبيان | AD20: أ,الأدب العربي | AN20: 16 | AO20: أ.صبيان | AP20: أ,الأدب العربي | AZ20: 16 | BA20: أ.صبيان | BB20: أ,الأدب العربي | BL20: 16 | BM20: أ.صبيان | BN20: أ,الأدب العربي
B21: أ.لعشب | F21: 1ع4 | P21: 17 | Q21: أ.قادري | R21: أ,الأدب العربي | AB21: 17 | AC21: أ.قادري | AD21: أ,الأدب العربي | AN21: 17 | AO21: أ.قادري | AP21: أ,الأدب العربي | AZ21: 17 | BA21: أ.قادري | BB21: أ,الأدب العربي | BL21: 17 | BM21: أ.قادري | BN21: أ,الأدب العربي
B22: أ.درني | F22: 1ع5 | P22: 18 | Q22: أ.أعطا الله | R22: أ,الأدب العربي | AB22: 18 | AC22: أ.أعطا الله | AD22: أ,الأدب العربي | AN22: 18 | AO22: أ.أعطا الله | AP22: أ,الأدب العربي | AZ22: 18 | BA22: أ.أعطا الله | BB22: أ,الأدب العربي | BL22: 18 | BM22: أ.أعطا الله | BN22: أ,الأدب العربي
B23: أ.فراج | F23: 1أ1 | P23: 19 | Q23: أ.قعاد | R23: أ,الأدب العربي | AB23: 19 | AC23: أ.قعاد | AD23: أ,الأدب العربي | AN23: 19 | AO23: أ.قعاد | AP23: أ,الأدب العربي | AZ23: 19 | BA23: أ.قعاد | BB23: أ,الأدب العربي | BL23: 19 | BM23: أ.قعاد | BN23: أ,الأدب العربي
F24: 1أ2 | P24: 20 | Q24: أ.قان | R24: أ.الاجتماعيات | AB24: 20 | AC24: أ.قان | AD24: أ.الاجتماعيات | AN24: 20 | AO24: أ.قان | AP24: أ.الاجتماعيات | AZ24: 20 | BA24: أ.قان | BB24: أ.الاجتماعيات | BL24: 20 | BM24: أ.قان | BN24: أ.الاجتماعيات
P25: 21 | Q25: أ.سواريت | R25: أ.الاجتماعيات | AB25: 21 | AC25: أ.سواريت | AD25: أ.الاجتماعيات | AN25: 21 | AO25: أ.سواريت | AP25: أ.الاجتماعيات | AZ25: 21 | BA25: أ.سواريت | BB25: أ.الاجتماعيات | BL25: 21 | BM25: أ.سواريت | BN25: أ.الاجتماعيات
B26: أ,الأدب العربي | P26: 22 | Q26: أ.صفراوي | R26: أ.الاجتماعيات | AB26: 22 | AC26: أ.صفراوي | AD26: أ.الاجتماعيات | AN26: 22 | AO26: أ.صفراوي | AP26: أ.الاجتماعيات | AZ26: 22 | BA26: أ.صفراوي | BB26: أ.الاجتماعيات | BL26: 22 | BM26: أ.صفراوي | BN26: أ.الاجتماعيات
B27: أ.كريب | P27: 23 | Q27: أ.أجد | R27: أ.الاجتماعيات | AB27: 23 | AC27: أ.أجد | AD27: أ.الاجتماعيات | AN27: 23 | AO27: أ.أجد | AP27: أ.الاجتماعيات | AZ27: 23 | BA27: أ.أجد | BB27: أ.الاجتماعيات | BL27: 23 | BM27: أ.أجد | BN27: أ.الاجتماعيات
B28: أ.سعيداني | P28: 24 | Q28: أ.بوحاجب/و | R28: أ.ع الإسلامية | AB28: 24 | AC28: أ.بوحاجب/و | AD28: أ.ع الإسلامية | AN28: 24 | AO28: أ.بوحاجب/و | AP28: أ.ع الإسلامية | AZ28: 24 | BA28: أ.بوحاجب/و | BB28: أ.ع الإسلامية | BL28: 24 | BM28: أ.بوحاجب/و | BN28: أ.ع الإسلامية
B29: أ.قادري | P29: 25 | Q29: أ.بوزياني | R29: أ.ع الإسلامية | AB29: 25 | AC29: أ.بوزياني | AD29: أ.ع الإسلامية | AN29: 25 | AO29: أ.بوزياني | AP29: أ.ع الإسلامية | AZ29: 25 | BA29: أ.بوزياني | BB29: أ.ع الإسلامية | BL29: 25 | BM29: أ.بوزياني | BN29: أ.ع الإسلامية
B30: أ.أعطا الله | P30: 26 | Q30: أ.عزيز | R30: أ.الفلسفة | AB30: 26 | AC30: أ.عزيز | AD30: أ.الفلسفة | AN30: 26 | AO30: أ.عزيز | AP30: أ.الفلسفة | AZ30: 26 | BA30: أ.عزيز | BB30: أ.الفلسفة | BL30: 26 | BM30: أ.عزيز | BN30: أ.الفلسفة
B31: أ.قعاد | P31: 27 | Q31: أ.زقاي | R31: أ.الفلسفة | AB31: 27 | AC31: أ.زقاي | AD31: أ.الفلسفة | AN31: 27 | AO31: أ.زقاي | AP31: أ.الفلسفة | AZ31: 27 | BA31: أ.زقاي | BB31: أ.الفلسفة | BL31: 27 | BM31: أ.زقاي | BN31: أ.الفلسفة
B32: أ.صبيان | P32: 28 | Q32: أ.رابحي | R32: أ.الفرنسية | AB32: 28 | AC32: أ.رابحي | AD32: أ.الفرنسية | AN32: 28 | AO32: أ.رابحي | AP32: أ.الفرنسية | AZ32: 28 | BA32: أ.رابحي | BB32: أ.الفرنسية | BL32: 28 | BM32: أ.رابحي | BN32: أ.الفرنسية
P33: 29 | Q33: أ.كوليلي | R33: أ.الفرنسية | AB33: 29 | AC33: أ.كوليلي | AD33: أ.الفرنسية | AN33: 29 | AO33: أ.كوليلي | AP33: أ.الفرنسية | AZ33: 29 | BA33: أ.كوليلي | BB33: أ.الفرنسية | BL33: 29 | BM33: أ.كوليلي | BN33: أ.الفرنسية
B34: أ.الاجتماعيات | P34: 30 | Q34: أ.بومانة | R34: أ.الفرنسية | AB34: 30 | AC34: أ.بومانة | AD34: أ.الفرنسية | AN34: 30 | AO34: أ.بومانة | AP34: أ.الفرنسية | AZ34: 30 | BA34: أ.بومانة | BB34: أ.الفرنسية | BL34: 30 | BM34: أ.بومانة | BN34: أ.الفرنسية
B35: أ.قان | P35: 31 | Q35: أ.عباد | R35: أ.الفرنسية | AB35: 31 | AC35: أ.عباد | AD35: أ.الفرنسية | AN35: 31 | AO35: أ.عباد | AP35: أ.الفرنسية | AZ35: 31 | BA35: أ.عباد | BB35: أ.الفرنسية | BL35: 31 | BM35: أ.عباد | BN35: أ.الفرنسية
B36: أ.سواريت | P36: 32 | Q36: أ.العرباوي | R36: أ.الانجليزية | AB36: 32 | AC36: أ.العرباوي | AD36: أ.الانجليزية | AN36: 32 | AO36: أ.العرباوي | AP36: أ.الانجليزية | AZ36: 32 | BA36: أ.العرباوي | BB36: أ.الانجليزية | BL36: 32 | BM36: أ.العرباوي | BN36: أ.الانجليزية
B37: أ.صفراوي | P37: 33 | Q37: أ.معزوز | R37: أ.الانجليزية | AB37: 33 | AC37: أ.معزوز | AD37: أ.الانجليزية | AN37: 33 | AO37: أ.معزوز | AP37: أ.الانجليزية | AZ37: 33 | BA37: أ.معزوز | BB37: أ.الانجليزية | BL37: 33 | BM37: أ.معزوز | BN37: أ.الانجليزية
B38: أ.أجد | P38: 34 | Q38: أ.مزاري | R38: أ.الانجليزية | AB38: 34 | AC38: أ.مزاري | AD38: أ.الانجليزية | AN38: 34 | AO38: أ.مزاري | AP38: أ.الانجليزية | AZ38: 34 | BA38: أ.مزاري | BB38: أ.الانجليزية | BL38: 34 | BM38: أ.مزاري | BN38: أ.الانجليزية
P39: 35 | Q39: أ.شنتوف | R39: أ.الانجليزية | AB39: 35 | AC39: أ.شنتوف | AD39: أ.الانجليزية | AN39: 35 | AO39: أ.شنتوف | AP39: أ.الانجليزية | AZ39: 35 | BA39: أ.شنتوف | BB39: أ.الانجليزية | BL39: 35 | BM39: أ.شنتوف | BN39: أ.الانجليزية
P40: 36 | Q40: أ.سيفاني | R40: أ.الاسبانية | AB40: 36 | AC40: أ.سيفاني | AD40: أ.الاسبانية | AN40: 36 | AO40: أ.سيفاني | AP40: أ.الاسبانية | AZ40: 36 | BA40: أ.سيفاني | BB40: أ.الاسبانية | BL40: 36 | BM40: أ.سيفاني | BN40: أ.الاسبانية
B41: أ.ع الإسلامية | P41: 37 | Q41: أ.زغودي | R41: أ.التكنولوجيا | AB41: 37 | AC41: أ.زغودي | AD41: أ.التكنولوجيا | AN41: 37 | AO41: أ.زغودي | AP41: أ.التكنولوجيا | AZ41: 37 | BA41: أ.زغودي | BB41: أ.التكنولوجيا | BL41: 37 | BM41: أ.زغودي | BN41: أ.التكنولوجيا
B42: أ.بوحاجب/و | P42: 38 | Q42: أ.موس | R42: أ.التكنولوجيا | AB42: 38 | AC42: أ.موس | AD42: أ.التكنولوجيا | AN42: 38 | AO42: أ.موس | AP42: أ.التكنولوجيا | AZ42: 38 | BA42: أ.موس | BB42: أ.التكنولوجيا | BL42: 38 | BM42: أ.موس | BN42: أ.التكنولوجيا
B43: أ.بوزياني | P43: 39 | Q43: أ.بوهنة | R43: أ.التكنولوجيا | AB43: 39 | AC43: أ.بوهنة | AD43: أ.التكنولوجيا | AN43: 39 | AO43: أ.بوهنة | AP43: أ.التكنولوجيا | AZ43: 39 | BA43: أ.بوهنة | BB43: أ.التكنولوجيا | BL43: 39 | BM43: أ.بوهنة | BN43: أ.التكنولوجيا
P44: 40 | Q44: أ.نوار | R44: أ.المعلوماتية | AB44: 40 | AC44: أ.نوار | AD44: أ.المعلوماتية | AN44: 40 | AO44: أ.نوار | AP44: أ.المعلوماتية | AZ44: 40 | BA44: أ.نوار | BB44: أ.المعلوماتية | BL44: 40 | BM44: أ.نوار | BN44: أ.المعلوماتية
B45: أ.الفلسفة | P45: 41 | Q45: أ.بوشيخي | R45: أ.الاقتصاد | AB45: 41 | AC45: أ.بوشيخي | AD45: أ.الاقتصاد | AN45: 41 | AO45: أ.بوشيخي | AP45: أ.الاقتصاد | AZ45: 41 | BA45: أ.بوشيخي | BB45: أ.الاقتصاد | BL45: 41 | BM45: أ.بوشيخي | BN45: أ.الاقتصاد
B46: أ.عزيز | P46: 42 | Q46: أ.فارس | R46: أ.الاقتصاد | AB46: 42 | AC46: أ.فارس | AD46: أ.الاقتصاد | AN46: 42 | AO46: أ.فارس | AP46: أ.الاقتصاد | AZ46: 42 | BA46: أ.فارس | BB46: أ.الاقتصاد | BL46: 42 | BM46: أ.فارس | BN46: أ.الاقتصاد
B47: أ.زقاي | P47: 43 | Q47: أ.لقبوري | R47: أ.الرياضة | AB47: 43 | AC47: أ.لقبوري | AD47: أ.الرياضة | AN47: 43 | AO47: أ.لقبوري | AP47: أ.الرياضة | AZ47: 43 | BA47: أ.لقبوري | BB47: أ.الرياضة | BL47: 43 | BM47: أ.لقبوري | BN47: أ.الرياضة
P48: 44 | Q48: أ.تربش | R48: أ.الرياضة | AB48: 44 | AC48: أ.تربش | AD48: أ.الرياضة | AN48: 44 | AO48: أ.تربش | AP48: أ.الرياضة | AZ48: 44 | BA48: أ.تربش | BB48: أ.الرياضة | BL48: 44 | BM48: أ.تربش | BN48: أ.الرياضة
P49: 45 | Q49: أ.كحلون | R49: أ.الرياضة | AB49: 45 | AC49: أ.كحلون | AD49: أ.الرياضة | AN49: 45 | AO49: أ.كحلون | AP49: أ.الرياضة | AZ49: 45 | BA49: أ.كحلون | BB49: أ.الرياضة | BL49: 45 | BM49: أ.كحلون | BN49: أ.الرياضة
B50: أ.الفرنسية
B51: أ.رابحي
B52: أ.كوليلي
B53: أ.بوعبان
B54: أ.عباد
B55: أ.بومانة
B57: أ.الانجليزية
B58: أ.العرباوي
B59: أ.معزوز
B60: أ.مزاري
B61: أ.شنتوف
B64: أ.الاسبانية
B65: أ.سيفاني | D65: التوقيــــــــــــت
B66: أ.التكنولوجيا
B67: أ.زغودي
B68: أ.موس
B69: أ.بوهنة | D69: 08ـ09
D70: 09ـ10
D71: 10ـ11
B72: أ.المعلوماتية | D72: 11ـ12
B73: أ.نوار | D73: 14½-13½
D74: 15½-14½
B75: أ.الاقتصاد | D75: 16½-15½
B76: أ.بوشيخي | D76: 17½-16½
B77: أ.فارس
B79: أ.الرياضة
B80: أ.لقبوري
B81: أ.تربش
B82: أ.كحلون
B85: منصب شاغر
D91: بن يحي محمد | E91: رياضيات
D92: شويرف نسمة
D93: طالبي حفيظة
D94: بناصرمحمد
D95: بن عبد الله هدى
D96: بن علي فاطمة
D110: 1 | E110: 2 | F110: 3 | G110: 3 | H110: 5 | I110: 6 | J110: 7 | K110: 8 | L110: 9 | M110: 10 | N110: 11 | O110: 12 | P110: 13 | Q110: 14 | R110: 15 | S110: 16 | T110: 17 | U110: 18 | V110: 19 | W110: 20 | X110: 21 | Y110: 22 | Z110: 23 | AA110: 24 | AB110: 25 | AC110: 26 | AD110: 27 | AE110: 28 | AF110: 29 | AG110: 30 | AH110: 31 | AI110: 32 | AJ110: 33 | AK110: 34 | AL110: 35 | AM110: 36 | AN110: 37 | AO110: 38 | AP110: 39 | AQ110: 40 | AR110: 41 | AS110: 42 | AT110: 43 | AU110: 44 | AV110: 45 | AW110: 46 | AX110: 47 | AY110: 48 | AZ110: 49 | BA110: 50 | BB110: 51 | BC110: 52 | BD110: 53 | BE110: 54
D111: بن يحي محمد | E111: لعراجي احمد | K111: بن خلفون محمد | L111: فيلالي سهام | M111: قطبي مرا د | N111: حوالف شرف الدين | O111: جديد رشيد | P111: جنان نعيمة | Q111: حماد معمر | R111: بطهري نريمان ايمان | S111: حسيني محمد | T111: سي بشير محمد | U111: وافي حليمة | V111: قرمودي عبد الرحيم | W111: برمضان ليلى | X111: قوال فاطمة الزهرة | Y111: مهاجي سعاد | Z111: بادة وفاء | AA111: عاشورة نريمان | AB111: برابح امينة | AC111: بلعربي يوسف | AD111: عباس عبد الله | AE111: عتبي احمد | AF111: زغودي محمد | AG111: فريد حار امينة | AH111: سحنون نرجس | AI111: مسعود وفاء | AJ111: مزوار محمد | AK111: درنوح محمد | AL111: اوزليفي ليلى | AM111: يوسف اكرام | AN111: بلعباسي سمرة | AO111: أحمد أمينة | AP111: اوسدي حسين | AQ111: قناد عبد الخالق | AR111: كنزي خيرالدين
E112: رياضيات | F112: رياضيات | G112: رياضيات | H112: رياضيات | I112: هـ كهربائية | J112: هـ كهربائية | K112: هـ ميكانيكية | L112: فيزياء | M112: فيزياء | N112: فيزياء | O112: فيزياء | P112: ع طبيعية | Q112: ع طبيعية | R112: ع طبيعية | S112: ع طبيعية | T112: عربية | U112: عربية | V112: عربية | W112: عربية | X112: عربية | Y112: ع اجتماعية | Z112: ع اجتماعية | AA112: ع اجتماعية | AB112: فلسفة | AC112: فلسفة | AD112: ع اسلامية | AE112: ع اسلامية | AF112: ت اقتصاد | AG112: ت اقتصاد | AH112: فرنسية | AI112: فرنسية | AJ112: فرنسية | AK112: فرنسية | AL112: انجليزية | AM112: انجليزية | AN112: انجليزية | AO112: انجليزية | AP112: اسبانية | AQ112: ت بدنية | AR112: ت بدنية
B114: الأحــد | C114: 09-08 | F114: 3ت ر | N114: 2ع ت | O114: ج م ع1 | P114: ج م ع1 | S114: 2ع ت | U114: 3آف | V114: ج م ع4 | W114: ج م ع1 | Y114: ج م ع2 | AA114: 3ع ت 1 | AB114: 2آف 2 | AE114: ج م آ2 | AG114: 3ت إ | AI114: 2ل أ | AK114: 2ت ر | AL114: 3ع ت2 | AM114: 3ل أ | AO114: ج م ع3
C115: 10-09 | F115: 3ت ر | N115: 2ع ت | O115: ج م ع1 | P115: ج م ع1 | S115: 2ع ت | U115: 3آف | V115: ج م ع3 | W115: ج م ع1 | Y115: ج م آ2 | AA115: 2ت إ | AB115: 2آف 2 | AE115: 3ع ت2 | AG115: 3ت إ | AH115: ج م ع2 | AI115: 3ع ت 1 | AK115: 2آف 1 | AL115: 2ت ر | AM115: 3ل أ | AO115: ج م ع4 | AP115: 2ل أ
C116: 11-10 | F116: 2ت ر | H116: ج م ع4 | N116: 2ع ت | O116: ج م ع1 | P116: ج م ع1 | S116: 2ع ت | U116: 3ع ت 1 | W116: ج م ع2 | Y116: ج م آ1 | AA116: 2آف 1 | AB116: 3ع ت2 | AE116: ج م ع2 | AH116: 3آف | AI116: 3ت إ | AL116: 3ت ر | AN116: 2آف 2 | AO116: 2ت إ | AP116: 3ل أ | AQ116: ج م ع3 | AR116: 2ل أ
C117: 12-11 | F117: 2ت ر | H117: ج م ع4 | N117: 2ع ت | O117: ج م ع1 | P117: ج م ع1 | S117: 2ع ت | U117: 2آف 1 | W117: ج م ع2 | Y117: 3ت إ | AA117: 3ع ت2 | AB117: 3ع ت2 | AH117: 3ت ر | AI117: 2ت إ | AK117: ج م آ1 | AM117: 3آف | AN117: ج م ع2 | AP117: 3ل أ | AQ117: ج م ع3 | AR117: 2ل أ
C118: 14-13 | D118: 2آف 2 | E118: ج م ع1 | G118: 2ع ت | H118: ج م آ1 | I118: ج م ع3 | J118: ج م ع3 | K118: ج م ع3 | L118: 2آف 1 | M118: 3ت ر | P118: ج م ع3 | Q118: 3ع ت2 | R118: 2آف 1 | T118: ج م ع2 | Z118: 2ل أ | AC118: 3آف | AD118: 3ت إ | AE118: 3ع ت 1 | AF118: 2ت إ | AH118: 3ل أ | AJ118: ج م ع4 | AL118: 2ت ر | AO118: ج م آ2
C119: 15-14 | D119: 2ل أ | E119: 3ل أ | G119: 3ع ت 1 | H119: ج م ع2 | I119: ج م ع3 | J119: ج م ع3 | K119: ج م ع3 | L119: 2آف 1 | M119: 3ت ر | P119: ج م ع3 | Q119: 3ع ت2 | R119: 2آف 1 | T119: 3ت إ | V119: 2آف 2 | Z119: 2ت ر | AC119: 3آف | AD119: 3ع ت 1 | AE119: ج م ع4 | AF119: 2ت إ | AH119: ج م ع1 | AJ119: ج م آ2 | AO119: ج م آ1
C120: 16-15 | D120: 2آف 1 | E120: 3آف | G120: 3ع ت2 | J120: ج م ع2 | K120: ج م ع2 | M120: ج م آ2 | P120: ج م ع2 | Q120: ج م آ2 | R120: ج م ع4 | T120: ج م ع1 | V120: 2ع ت | X120: 2ل أ | Z120: 2آف 2 | AC120: 3ل أ | AD120: 2ت ر | AF120: ج م ع2 | AJ120: ج م ع3 | AL120: 2ع ت | AP120: ج م ع2 | AQ120: ج م آ1 | AR120: 3ت ر
C121: 17-16 | J121: ج م ع2 | K121: ج م ع2 | M121: ج م آ2 | P121: ج م ع2 | Q121: ج م آ2 | T121: 3ل أ | X121: 3ع ت2 | Z121: 3آف | AF121: ج م ع2 | AJ121: 2ع ت | AP121: ج م ع2 | AQ121: ج م آ1 | AR121: 3ت ر
B122: الإثنين | C122: 09-08 | D122: ج م ع3 | E122: ج م ع1 | F122: 3ت ر | H122: ج م ع4 | I122: 2ت ر | K122: 2ت ر | M122: ج م ع2 | O122: 3ع ت 1 | P122: 3ع ت 1 | Q122: ج م آ1 | R122: ج م ع2 | X122: 2ت إ | Z122: 2ع ت | AB122: 2آف 2 | AC122: 3آف | AD122: 2آف 1 | AE122: 3ع ت2 | AF122: 3ت إ | AI122: 2ل أ | AM122: 3ل أ
C123: 10-09 | D123: ج م ع3 | E123: ج م ع1 | F123: 2ت إ | H123: ج م آ1 | I123: 2ت ر | K123: 2ت ر | M123: ج م ع2 | O123: 3ع ت 1 | P123: 3ع ت 1 | Q123: ج م آ2 | R123: ج م ع2 | V123: 2ع ت | X123: 3ع ت2 | Z123: 2ل أ | AB123: 3ت ر | AC123: 3آف | AD123: 2آف 2 | AE123: 3ل أ | AI123: 3ت إ | AJ123: ج م ع4 | AM123: 2آف 1
C124: 11-10 | D124: 2آف 1 | E124: 3ت إ | F124: 2ت ر | I124: 3ت ر | K124: 3ت ر | L124: ج م ع3 | M124: ج م ع2 | O124: 3ع ت 1 | P124: 3ع ت 1 | R124: ج م ع2 | V124: 2آف 2 | X124: 2ل أ | Y124: ج م ع4 | AC124: 3ل أ | AE124: ج م آ1 | AF124: 2ت إ | AI124: 3ع ت2 | AJ124: ج م آ2 | AM124: 3آف | AQ124: ج م ع1 | AR124: 3ع ت 1
C125: 12-11 | D125: ج م آ2 | F125: 2ت ر | I125: 3ت ر | K125: 3ت ر | L125: ج م ع4 | M125: ج م ع2 | O125: 3ع ت 1 | P125: 3ع ت 1 | Q125: 3ع ت2 | R125: ج م ع2 | X125: 2ل أ | Y125: ج م آ1 | Z125: 2آف 2 | AB125: 3ت إ | AC125: 2آف 1 | AF125: 2ت إ | AJ125: ج م ع3 | AM125: 3آف | AQ125: ج م ع1 | AR125: 3ع ت 1
C126: 14-13 | G126: 3ع ت2 | I126: ج م ع4 | J126: ج م ع4 | K126: ج م ع4 | L126: 2آف 2 | N126: 2ت ر | Q126: ج م ع4 | S126: 2آف 2 | T126: ج م ع1 | U126: 2آف 1 | W126: 3ت ر | Y126: ج م آ2 | AA126: 3ل أ | AD126: 3آف | AE126: ج م ع3 | AG126: 3ت إ | AH126: ج م ع2 | AK126: ج م آ1 | AL126: 3ع ت 1 | AO126: 2ت إ | AP126: 2ل أ
C127: 15-14 | G127: 3ع ت 1 | I127: ج م ع4 | J127: ج م ع4 | K127: ج م ع4 | L127: 2آف 2 | N127: 2ت ر | Q127: ج م ع4 | S127: 2آف 2 | T127: ج م ع2 | U127: 3ع ت 1 | V127: ج م ع3 | W127: ج م آ2 | Y127: ج م ع1 | AA127: 2ت إ | AD127: 2ل أ | AE127: 3ت ر | AG127: 3ت إ | AH127: 3آف | AK127: 2آف 1 | AL127: 3ع ت2 | AM127: 2ع ت | AO127: ج م آ1 | AP127: 3ل أ
C128: 16-15 | G128: 3ع ت 1 | I128: ج م ع1 | K128: ج م ع1 | N128: 3ع ت2 | Q128: ج م ع1 | S128: 2ع ت | T128: 3ل أ | U128: 3آف | V128: ج م ع4 | W128: ج م آ1 | Y128: ج م ع3 | AA128: 2آف 1 | AG128: ج م ع1 | AH128: 3ت ر | AK128: 2آف 2 | AL128: 3ت إ | AP128: ج م ع2 | AQ128: ج م آ2 | AR128: 2ت ر
C129: 17-16 | I129: ج م ع1 | K129: ج م ع1 | Q129: ج م ع1 | S129: ج م ع3 | U129: 3آف | W129: ج م ع1 | AG129: ج م ع1 | AQ129: ج م آ2 | AR129: 2ت ر
B130: الثلاثاء | C130: 09-08 | H130: ج م ع2 | I130: 2ت ر | J130: ج م ع4 | K130: 2ت ر | L130: 2آف 1 | M130: 3ت ر | N130: 2ع ت | O130: ج م آ1 | T130: 3ل أ | Z130: 3آف | AA130: 2ت إ | AB130: 3ع ت2 | AG130: 3ت إ | AH130: ج م ع1 | AI130: 3ع ت 1 | AJ130: ج م آ2 | AK130: 2آف 2 | AN130: 2ل أ | AO130: ج م ع3
C131: 10-09 | E131: ج م ع1 | G131: 2ع ت | H131: ج م ع2 | I131: 2ت ر | J131: ج م ع3 | K131: 2ت ر | L131: ج م ع4 | M131: 3ت ر | N131: 3ع ت2 | O131: 3ع ت 1 | T131: 3ل أ | Z131: 3آف | AB131: 2آف 2 | AG131: 3ت إ | AI131: 2ت إ | AJ131: ج م آ2 | AK131: 2آف 1 | AN131: 2ل أ | AO131: ج م آ1
C132: 11-10 | D132: 2ل أ | E132: 3آف | G132: 3ع ت 1 | I132: 3ت ر | J132: ج م آ2 | K132: 3ت ر | M132: ج م ع2 | N132: 2ت ر | O132: ج م ع1 | R132: 2آف 1 | T132: 3ت إ | Z132: 2ع ت | AA132: 3ع ت2 | AG132: 2ت إ | AH132: 3ل أ | AJ132: ج م ع3 | AK132: ج م آ1 | AN132: 2آف 1 | AO132: ج م ع4
C133: 12-11 | D133: ج م ع3 | E133: 3ت إ | G133: 3ع ت2 | H133: ج م ع4 | I133: 3ت ر | J133: ج م آ1 | K133: 3ت ر | N133: 2ت ر | R133: ج م ع2 | Z133: 2آف 2 | AA133: 2آف 1 | AB133: 3ع ت 1 | AG133: 2ت إ | AH133: 2آف 1 | AI133: 2ل أ | AJ133: 2ع ت | AN133: ج م ع1 | AO133: ج م آ2
B134: الأربعاء | C134: 09-08 | G134: 3ع ت2 | H134: ج م آ1 | L134: ج م ع3 | S134: ج م ع3 | T134: 3ت إ | U134: 3آف | W134: ج م آ2 | AB134: 3ع ت 1 | AD134: 2ع ت | AE134: ج م ع1 | AF134: 2ت إ | AH134: 3ت ر | AJ134: ج م ع4 | AK134: 2آف 2 | AL134: 2ت ر | AM134: 2آف 1 | AN134: ج م ع2 | AP134: 3ل أ
C135: 10-09 | G135: 3ع ت2 | H135: ج م ع4 | L135: ج م ع3 | S135: ج م ع3 | T135: ج م ع2 | U135: 3آف | W135: ج م آ2 | Y135: 3ت إ | AB135: 3ت ر | AD135: 2آف 2 | AE135: ج م آ1 | AF135: 2ت إ | AH135: 3ل أ | AJ135: 2ع ت | AK135: 2ت ر | AL135: 3ع ت 1 | AM135: 2آف 1 | AN135: ج م ع1 | AP135: 2ل أ
C136: 11-10 | G136: 3ع ت 1 | H136: ج م ع2 | L136: ج م ع3 | S136: ج م ع3 | T136: 3ل أ | U136: 2آف 1 | W136: 3ت ر | X136: 2ت ر | Y136: ج م آ1 | AB136: 3ع ت2 | AD136: 3آف | AE136: ج م آ2 | AH136: ج م ع1 | AI136: 2ت إ | AL136: 3ت إ | AM136: 2ع ت | AN136: 2ل أ | AQ136: ج م ع4 | AR136: 2آف 2
C137: 12-11 | G137: 3ع ت 1 | H137: ج م ع2 | L137: ج م ع3 | S137: ج م ع3 | T137: ج م ع1 | W137: ج م آ1 | X137: 2ت إ | AB137: 3ت إ | AD137: 2ع ت | AH137: 3آف | AI137: 3ع ت2 | AJ137: ج م آ2 | AK137: 2آف 1 | AL137: 3ت ر | AM137: 3ل أ | AN137: 2ل أ | AQ137: ج م ع4 | AR137: 2آف 2
C138: 14-13 | D138: ج م ع3 | E138: ج م ع1 | F138: 2ت ر | I138: 3ت ر | J138: ج م آ1 | K138: 3ت ر | P138: 3ع ت 1 | R138: ج م ع4 | V138: 2آف 2 | W138: ج م آ1 | X138: 3ع ت2 | Y138: ج م آ2 | Z138: 2ل أ | AC138: 3آف | AD138: 2ت إ | AH138: 3ل أ | AI138: 3ت إ | AN138: ج م ع2
C139: 15-14 | D139: ج م ع3 | E139: 3ت إ | F139: 2ت إ | I139: 3ت ر | J139: ج م آ1 | K139: 3ت ر | P139: ج م ع1 | R139: ج م ع2 | V139: 2ع ت | W139: ج م آ1 | X139: 2ل أ | Y139: ج م ع4 | Z139: 2ت ر | AA139: 3ل أ | AC139: 2آف 1 | AI139: 3ع ت 1 | AN139: 2آف 2 | AO139: ج م آ2 | AQ139: 3آف | AR139: 3ع ت2
C140: 16-15 | D140: ج م آ2 | F140: 3ت ر | I140: ج م ع3 | K140: ج م ع3 | P140: ج م ع3 | V140: ج م ع4 | X140: 2ت ر | Y140: 3ت إ | Z140: 2ع ت | AA140: 3ع ت 1 | AC140: 3ل أ | AD140: 2آف 1 | AH140: ج م ع2 | AI140: 2ل أ | AO140: 2ت إ | AQ140: 3آف | AR140: ج م ع2
C141: 17-16 | I141: ج م ع1 | K141: ج م ع1 | V141: ج م ع3 | AA141: 3ت ر | AO141: ج م ع4
B142: الخميس | C142: 09-08 | E142: 3ت إ | F142: 3ت ر | G142: 2ع ت | L142: ج م ع4 | M142: ج م آ2 | N142: 3ع ت2 | O142: 3ع ت 1 | P142: ج م ع1 | Q142: 3ع ت2 | R142: ج م ع4 | S142: ج م ع3 | Y142: ج م ع2 | Z142: 2ت ر | AC142: 2آف 1 | AE142: 3ل أ | AF142: 2ت إ | AK142: 2آف 2 | AO142: ج م آ1 | AP142: 2ل أ
C143: 10-09 | D143: ج م ع3 | E143: 3ل أ | F143: 3ت ر | G143: 2ع ت | L143: ج م ع4 | M143: ج م ع3 | N143: 3ع ت2 | O143: ج م ع1 | Q143: 3ع ت2 | R143: ج م ع4 | S143: 2آف 2 | X143: 2ت إ | Y143: ج م آ1 | Z143: 3آف | AC143: 2آف 1 | AE143: 3ع ت 1 | AF143: 3ت إ | AK143: 2ت ر | AO143: ج م آ2 | AP143: 2ل أ
C144: 11-10 | D144: ج م آ2 | E144: ج م ع1 | F144: 2ت ر | L144: ج م ع4 | M144: 3ت ر | N144: 3ع ت2 | P144: 3ع ت 1 | Q144: 3ع ت2 | R144: ج م ع4 | S144: 2ع ت | X144: 2ل أ | Y144: ج م ع3 | Z144: 2آف 2 | AA144: 2ت إ | AC144: 3آف | AG144: 3ت إ | AK144: ج م ع1 | AP144: 3ل أ | AQ144: ج م ع2 | AR144: 2آف 1
C145: 12-11 | D145: 2آف 2 | F145: 2ت إ | L145: ج م ع4 | N145: 3ع ت2 | P145: 3ع ت 1 | Q145: 3ع ت2 | R145: ج م ع4 | S145: 2ع ت | X145: 2ت ر | Y145: ج م آ2 | Z145: 2ل أ | AA145: 3ل أ | AC145: 3آف | AE145: 3ت ر | AG145: 3ت إ | AK145: ج م ع1 | AO145: ج م ع3 | AQ145: ج م ع2 | AR145: 2آف 1
C146: 14-13 | H146: ج م ع4 | I146: 2ت ر | J146: ج م آ2 | K146: 2ت ر | L146: 2آف 2 | O146: ج م آ1 | Q146: ج م آ1 | T146: ج م ع2 | U146: 3ع ت 1 | V146: ج م ع3 | W146: ج م آ2 | Y146: 3ت إ | AA146: 2آف 1 | AD146: 2ل أ | AF146: 2ت إ | AI146: 3ع ت2 | AL146: 3ت ر | AM146: 3آف | AN146: ج م ع1 | AQ146: 3ل أ
C147: 15-14 | H147: ج م ع2 | I147: 2ت ر | J147: ج م آ2 | K147: 2ت ر | L147: ج م ع3 | N147: 2ع ت | O147: ج م آ1 | Q147: ج م آ1 | T147: ج م ع1 | U147: 3آف | V147: ج م ع4 | W147: ج م آ2 | AA147: 3ت ر | AD147: 3ت إ | AF147: 2ت إ | AI147: 2ل أ | AL147: 3ع ت2 | AM147: 2آف 1 | AN147: 2آف 2 | AQ147: 3ل أ | AR147: 3ع ت 1
C148: 16-15 | I148: ج م ع4 | J148: ج م ع2 | K148: ج م ع4 | N148: 2ت ر | P148: ج م ع2 | Q148: ج م ع2/4 | U148: 2آف 1 | V148: 2آف 2 | W148: 3ت ر | Y148: ج م ع1 | AD148: 2ت إ | AF148: ج م ع 2 | AL148: 3ت ر | AM148: 3ع ت 1 | AN148: 2ل أ | AR148: 3ع ت 1
C149: 17-16

Sheet بينات التلاميد
A3: رقم التسجيل | B3: اللقب و الاســم | C3: تاريخ الميلاد | D3: مكان الميلاد | E3: الجنس | F3: الصفة | G3: القسم | H3: إسم الولي | I3: مهنة الولي | J3: العنوان | K3: القسم بالاحرف | L3: ر ت | M3: تاريخ الخروج | N3: تاريخ الدخول | O3: أكتوبر
O4: دخول | P4: خروج
A5: 2 | B5: امحمدي بشرى | C5: 2000-05-04 | D5: مغنية | E5: أ | F5: م2 | G5: 3ت ر | H5: امحمدي الشيخ | J5: قرية عقيد عباس | K5: السنة الثالثة ثانوي تقني رياضي | L5: 2 | M5: ////// | Q5: =COUNTIF($B$2:$B$584,"?*") -> 547
A6: 1 | B6: أوكيلي دنيا | C6: 2000-08-30 | D6: مغنية | E6: أ | F6: م2 | G6: 3ت ر | H6: أوكيلي ميلود | J6: حي الركيزة حمام بوغرارة 13320 | K6: السنة الثالثة ثانوي تقني رياضي | L6: 1 | M6: ////// | O6: د ن1
A7: 3 | B7: برودي بشرى | C7: 2000-07-06 | D7: مغنية | E7: أ | F7: م2 | G7: 3ت ر | H7: برودي عبد القادر | J7: قرية البخاتة مغنية | K7: السنة الثالثة ثانوي تقني رياضي | L7: 3 | M7: //////
A8: 5 | B8: بلميمون ابتسام | C8: 2000-07-25 | D8: مغنية | E8: أ | F8: خ2 | G8: 3ت ر | H8: بلميمون عبد القادر | J8: شارع01 رقم 34 حي الشهداء ـ مغنية | K8: السنة الثالثة ثانوي تقني رياضي | L8: 5 | M8: //////
A9: 6 | B9: بوعناني أيمن | C9: 2001-12-10 | D9: مغنية | E9: ذ | F9: خ1 | G9: 3ت ر | H9: بوعناني غياث | J9: عمارة A06 حي القاضي - مغنية | K9: السنة الثالثة ثانوي تقني رياضي | L9: 6 | M9: //////
A10: 7 | B10: تابتي فاطنة | C10: 1999-01-13 | D10: مغنية | E10: أ | F10: م2 | G10: 3ت ر | H10: تابتي محمد | J10: الطريق الوطني رقم 35 الكفاف ـ مغنية | K10: السنة الثالثة ثانوي تقني رياضي | L10: 7 | M10: //////
A11: 9 | B11: حمادي أمحمد عماد | C11: 1999-09-02 | D11: مغنية | E11: ذ | F11: خ1 | G11: 3ت ر | H11: حمادي يوسف | I11: ع1 | J11: حي الشهداء ـ مغنية | K11: السنة الثالثة ثانوي تقني رياضي | L11: 9 | M11: //////
A12: 10 | B12: دخيسي عثمان | C12: 2000-02-07 | D12: مغنية | E12: ذ | F12: م1 | G12: 3ت ر | H12: دخيسي محمد | J12: قرية اولاد الشارف ـ مغنية | K12: السنة الثالثة ثانوي تقني رياضي | L12: 10
A13: 11 | B13: زناقي شريفة | C13: 2000-04-04 | D13: مغنية | E13: أ | F13: م2 | G13: 3ت ر | H13: زناقي عمر | J13: قرية بوسدرة البخاتة ، مغنية | K13: السنة الثالثة ثانوي تقني رياضي | L13: 11 | M13: ////// | O13: ص ن1 | P13: ص خ خ1
A14: 13 | B14: طوالة بهاء الدين | C14: 2000-05-08 | D14: مغنية | E14: ذ | F14: م1 | G14: 3ت ر | H14: طوالة الهبري | J14: قرية المصامدة ، مغنية | K14: السنة الثالثة ثانوي تقني رياضي | L14: 13 | M14: //////
A15: 14 | B15: قادري رابح صغير أمين | C15: 1999-09-30 | D15: الغزوات | E15: ذ | F15: خ1 | G15: 3ت ر | H15: قادري عبد العزيز | I15: ع1 | J15: حي الشهداء ـ مغنية | K15: السنة الثالثة ثانوي تقني رياضي | L15: 14 | M15: //////
A16: 15 | B16: مرغاد إلياس | C16: 1997-07-08 | D16: مغنية | E16: ذ | F16: خ1 | G16: 3ت ر | H16: مرغاد عبد الرزاق | I16: ع1 | J16: حي الشهداء ـ مغنية | K16: السنة الثالثة ثانوي تقني رياضي | L16: 15 | M16: //////
A17: 16 | B17: مزاري أيمن | C17: 2000-05-02 | D17: مغنية | E17: ذ | F17: م1 | G17: 3ت ر | H17: مزاري العيد | J17: حي الركيزة حمام بوغرارة 13320 | K17: السنة الثالثة ثانوي تقني رياضي | L17: 16 | M17: //////
A18: 18 | B18: منصور إيمان دينا زاد | C18: 2000-07-27 | D18: مغنية | E18: أ | F18: م2 | G18: 3ت ر | H18: منصور محمد | J18: قرية المصامدة ، مغنية | K18: السنة الثالثة ثانوي تقني رياضي | L18: 18 | M18: //////
A19: 19 | B19: منصوري المهدي | C19: 1997-04-09 | D19: مغنية | E19: ذ | F19: ن1 | G19: 3ت ر | H19: منصوري محمد | I19: ع1 | J19: حمام بوغرارة 13320 | K19: السنة الثالثة ثانوي تقني رياضي | L19: 19 | M19: //////
A20: 16 | B20: بلعالية محمد الأمين | C20: 2000-04-28 | D20: مغنية | E20: ذ | F20: م1 | G20: 3ت ر | H20: بلعالية محمد | J20: قرية العقيد عباس ـ مغنية | K20: السنة الثالثة ثانوي تقني رياضي | L20: 4 | M20: //////
A21: 17 | B21: حماد محمد الأمين | C21: 1997-04-06 | D21: مغنية | E21: ذ | F21: ن1 | G21: 3ت ر | H21: حماد دريوش | I21: ع1 | J21: حمام بوغرارة 13320 | K21: السنة الثالثة ثانوي تقني رياضي | L21: 8 | M21: //////
A22: 18 | B22: سكران عبد الهادي | C22: 2000-04-12 | D22: مغنية | E22: ذ | F22: م1 | G22: 3ت ر | H22: سكران مصطفي | J22: قرية لكفاف | K22: السنة الثالثة ثانوي تقني رياضي | L22: 12 | M22: //////
A23: 19 | B23: مزاري عبد الله | C23: 2000-11-16 | D23: مغنية | E23: ذ | F23: م1 | G23: 3ت ر | H23: مزاري بلخير | J23: حمام بوغرارة | K23: السنة الثالثة ثانوي تقني رياضي | L23: 17 | M23: //////
A24: 4 | B24: موسى أيوب | C24: 1999-03-03 | D24: مغنية | E24: ذ | F24: خ1 | G24: 3ت ر | H24: موسى محمد | I24: ع1 | J24: حي الشهداء حي جابر رقم 17 مغنية | K24: السنة الثالثة ثانوي علوم تجريبية | L24: 20 | M24: //////
A25: 8 | B25: هداجي أمير يونس | C25: 2000-07-30 | D25: مغنية | E25: ذ | F25: م1 | G25: 3ت ر | H25: هداجي عبد الجليل | J25: قرية اولاد الشارف مغنية | K25: السنة الثالثة ثانوي علوم تجريبية | L25: 21 | M25: //////
A26: 12 | B26: وادفل سارة | C26: 2000-02-19 | D26: مغنية | E26: أ | F26: خ2 | G26: 3ت ر | H26: وادفل بن يونس | J26: حي الشهداء رقم 10 | K26: السنة الثالثة ثانوي علوم تجريبية | L26: 22 | M26: //////
A27: 17
A28: 29
A29: 30
A30: 23 | B30: برحيل وداد | C30: 2000-08-28 | D30: مغنية | E30: أ | F30: م2 | G30: 3ع ت01 | H30: برحيل عبد الرحمن | J30: قرية المصامدة ـ مغنية | K30: السنة الثالثة ثانوي علوم تجريبية | L30: 23 | M30: //////
A31: 24 | B31: بعوش مريم | C31: 1998-01-28 | D31: مغنية | E31: أ | F31: م2 | G31: 3ع ت01 | H31: بعوش لحسن | J31: قرية العقيد عباس ، مغنية | K31: السنة الثالثة ثانوي علوم تجريبية | L31: 24 | M31: //////
A32: 25 | B32: بلحسن حسين | C32: 2000-03-01 | D32: مغنية | E32: ذ | F32: م1 | G32: 3ع ت01 | H32: بلحسن عبد الرزاق | J32: مزرعة الشرقاي العيد ، مغنية | K32: السنة الثالثة ثانوي علوم تجريبية | L32: 25 | M32: //////
A33: 26 | B33: بوزيان بلال | C33: 1998-11-08 | D33: مغنية | E33: ذ | F33: خ1 | G33: 3ع ت01 | H33: بوزيان أحمد | I33: ع1 | J33: حي الشهداء ، مغنية | K33: السنة الثالثة ثانوي علوم تجريبية | L33: 26 | M33: //////
A34: 27 | B34: تابتي لخضر | C34: 1998-04-12 | D34: مغنية | E34: ذ | F34: م1 | G34: 3ع ت01 | H34: تابتي لخضر | J34: الطريق الوطني رقم 35 الكفاف ، مغنية | K34: السنة الثالثة ثانوي علوم تجريبية | L34: 27 | M34: //////
A35: 28 | B35: تواتي نادية | C35: 2000-01-15 | D35: مغنية | E35: أ | F35: م2 | G35: 3ع ت01 | H35: تواتي عبد القادر | J35: قرية أولاد الشارف ، مغنية | K35: السنة الثالثة ثانوي علوم تجريبية | L35: 28 | M35: //////
A36: 29 | B36: جزيري محمد | C36: 1999-06-26 | D36: مغنية | E36: ذ | F36: م1 | G36: 3ع ت01 | H36: جزيري علي | J36: قرية بوسدرة البخاتة ـ مغنية | K36: السنة الثالثة ثانوي علوم تجريبية | L36: 29 | M36: //////
A37: 30 | B37: حميدي أسية | C37: 2000-04-24 | D37: مغنية | E37: أ | F37: م2 | G37: 3ع ت01 | H37: حميدي موسى | J37: حي الباطوار شارع 17 الباب 06 مغنية | K37: السنة الثالثة ثانوي علوم تجريبية | L37: 30 | M37: //////
A38: 31 | B38: خاطر منال | C38: 1999-11-03 | D38: مغنية | E38: أ | F38: ن2 | G38: 3ع ت01 | H38: خاطر أحمد | I38: ع2 | J38: قرية بوسدرة البخاتة ، مغنية | K38: السنة الثالثة ثانوي علوم تجريبية | L38: 31 | M38: //////
A39: 32 | B39: خروبي فاطنة | C39: 2000-06-04 | D39: مغنية | E39: أ | F39: م2 | G39: 3ع ت01 | H39: خروبي امعمر | J39: العقيد عباس | K39: السنة الثالثة ثانوي علوم تجريبية | L39: 32 | M39: //////
A40: 33 | B40: داود رامي كمال الدين | C40: 1999-08-08 | D40: عين الترك | E40: ذ | F40: ن1 | G40: 3ع ت01 | H40: الطيب | I40: ع1 | J40: حي أولاد بن صابر ، مغنية | K40: السنة الثالثة ثانوي علوم تجريبية | L40: 33 | M40: //////
A41: 34 | B41: دمامن محمد | C41: 2000-05-28 | D41: مغنية | E41: ذ | F41: م1 | G41: 3ع ت01 | H41: دمامن خالد | J41: قرية لكفاف مغنية | K41: السنة الثالثة ثانوي علوم تجريبية | L41: 34 | M41: //////
A42: 35 | B42: زيني محمد بلال | C42: 2000-08-31 | D42: مغنية | E42: ذ | F42: م1 | G42: 3ع ت01 | H42: زيني واسيني | J42: اولاد الشارف مغنية تلمسان | K42: السنة الثالثة ثانوي علوم تجريبية | L42: 35 | M42: //////
A43: 36 | B43: صدوقي صالح | C43: 2000-02-24 | D43: مغنية | E43: ذ | F43: م1 | G43: 3ع ت01 | H43: صدوقي يماني | J43: قرية العقيد لطيفي L4 B2 مغنية | K43: السنة الثالثة ثانوي علوم تجريبية | L43: 36 | M43: //////
A44: 37 | B44: ضيف الله محمد الشريف | C44: 1999-08-31 | D44: مغنية | E44: ذ | F44: خ1 | G44: 3ع ت01 | H44: ضيف الله علي | I44: ع1 | J44: شارع 25 حي الشهداء ـ مغنية | K44: السنة الثالثة ثانوي علوم تجريبية | L44: 37 | M44: //////
A45: 38 | B45: طاهي نهال فاطمة الزهراء | C45: 2000-04-11 | D45: مغنية | E45: أ | F45: خ2 | G45: 3ع ت01 | H45: طاهي فتحي | J45: حي بلال العمارة رقم04 الطابق3 | K45: السنة الثالثة ثانوي علوم تجريبية | L45: 38 | M45: //////
A46: 39 | B46: عبد النبي زكية | C46: 1999-10-12 | D46: أولاد ميمون | E46: أ | F46: ن2 | G46: 3ع ت01 | H46: عبد النبي عبد القادر | I46: ع2 | J46: الطريق الوطني رقم 35 الكفاف ، مغنية | K46: السنة الثالثة ثانوي علوم تجريبية | L46: 39 | M46: //////
A47: 40 | B47: عرقوب عبد اللطيف | C47: 1999-04-21 | D47: بشار | E47: ذ | F47: ن1 | G47: 3ع ت01 | H47: عرقوب جمال | I47: ع1 | J47: قرية المصامدة ـ مغنية | K47: السنة الثالثة ثانوي علوم تجريبية | L47: 40 | M47: //////
A48: 41 | B48: عميرات وليد | C48: 2000-06-18 | D48: مغنية | E48: ذ | F48: خ1 | G48: 3ع ت01 | H48: محمد | K48: السنة الثالثة ثانوي علوم تجريبية | L48: 41 | M48: //////
A49: 42 | B49: قاشور محمد شعيب | C49: 1999-03-28 | D49: مغنية | E49: ذ | F49: خ1 | G49: 3ع ت01 | H49: قاشور محمد | I49: ع1 | J49: رقم 16 شارع محطة القطار ، مغنية | K49: السنة الثالثة ثانوي علوم تجريبية | L49: 42 | M49: //////
A50: 43 | B50: كلاليش منال | C50: 2000-11-14 | D50: حسين داي | E50: أ | F50: خ2 | G50: 3ع ت01 | H50: كلاليش سعيد | J50: 27حي 240 مسكن حي الغابات مغنية | K50: السنة الثالثة ثانوي علوم تجريبية | L50: 43 | M50: //////
A51: 44 | B51: لكحل عماد | C51: 2000-06-06 | D51: مغنية | E51: ذ | F51: م1 | G51: 3ع ت01 | H51: لكحل مصطفي | J51: اولاد قدور الصغار مغنية | K51: السنة الثالثة ثانوي علوم تجريبية | L51: 44 | M51: //////
A52: 45 | B52: مزاري دنيا زاد | C52: 2000-03-16 | D52: مغنية | E52: أ | F52: م2 | G52: 3ع ت01 | H52: مزاري واسيني | J52: قرية البخاتة بوسدرة | K52: السنة الثالثة ثانوي علوم تجريبية | L52: 45 | M52: //////
A53: 46 | B53: مزيان يسرى نورالهدى | C53: 2000-08-16 | D53: مغنية | E53: أ | F53: خ2 | G53: 3ع ت01 | H53: مزيان ميلود | J53: حي الشهداء رقم39 | K53: السنة الثالثة ثانوي علوم تجريبية | L53: 46 | M53: //////
A54: 47 | B54: هاملي سماح | C54: 1997-10-16 | D54: مغنية | E54: أ | F54: خ2 | G54: 3ع ت01 | H54: هاملي عبد العزيز | J54: حي بلال رقم 41 ، مغنية | K54: السنة الثالثة ثانوي علوم تجريبية | L54: 47 | M54: //////
A57: 48 | B57: العرباوي محمد عبد الإله | C57: 1997-10-10 | D57: مغنية | E57: ذ | F57: ن1 | G57: 3ع ت02 | H57: العرباوي أحمد | J57: 05 الحي السكني ، مغنية | K57: السنة الثالثة ثانوي علوم تجريبية | L57: 48 | M57: //////
A58: 49 | B58: القرمة محمد رياض | C58: 2000-05-19 | D58: مغنية | E58: ذ | F58: م1 | G58: 3ع ت02 | H58: القرمة ميلود | J58: اولاد الشارف | K58: السنة الثالثة ثانوي علوم تجريبية | L58: 49 | M58: //////
A59: 50 | B59: بطيوي فرح | C59: 2000-05-04 | D59: مغنية | E59: أ | F59: م2 | G59: 3ع ت02 | H59: بطيوي محمد | J59: مزرعة جابر حي الشهداء | K59: السنة الثالثة ثانوي علوم تجريبية | L59: 50 | M59: //////
A60: 51 | B60: بن براهيم شهرزاد | C60: 2000-06-24 | D60: مغنية | E60: أ | F60: م2 | G60: 3ع ت02 | H60: بن براهيم محمد | J60: قرية | K60: السنة الثالثة ثانوي علوم تجريبية | L60: 51 | M60: //////
A61: 52 | B61: بن زغادي مروى | C61: 2000-09-23 | D61: مغنية | E61: أ | F61: م2 | G61: 3ع ت02 | K61: السنة الثالثة ثانوي علوم تجريبية | L61: 52 | M61: //////
A62: 53 | B62: بن زغادي هديل | C62: 2000-03-06 | D62: مغنية | E62: أ | F62: خ2 | G62: 3ع ت02 | H62: ين زغادي بن أعمر | I62: ع2 | J62: حي الشهداء ـ مغنية | K62: السنة الثالثة ثانوي علوم تجريبية | L62: 53 | M62: //////
A63: 54 | B63: بن سالم نجوى | C63: 2000-12-24 | D63: مغنية | E63: أ | F63: خ2 | G63: 3ع ت02 | H63: بن سالم علي | J63: حي الشهداء | K63: السنة الثالثة ثانوي علوم تجريبية | L63: 54 | M63: //////
A64: 55 | B64: بن علي نور الايمان | C64: 2000-11-18 | D64: ندرومة | E64: أ | F64: خ2 | G64: 3ع ت02 | H64: لحسن ناصر محمد | J64: قباضة الضرائب حي بن رشد | K64: السنة الثالثة ثانوي علوم تجريبية | L64: 55 | M64: //////
A65: 56 | B65: بوزي فتحي | C65: 2000-06-07 | D65: مغنية | E65: ذ | F65: خ1 | G65: 3ع ت02 | H65: بوزي رمضان | J65: رقم 25 حي الشهداء ، مغنية | K65: السنة الثالثة ثانوي علوم تجريبية | L65: 56 | M65: //////
A66: 57 | B66: حجيمي شروق | C66: 2000-09-25 | D66: غفرون | E66: أ | F66: ن2 | G66: 3ع ت02 | H66: حجيمي علي | J66: حي الشرطة 70مسكن عمارة 35 | K66: السنة الثالثة ثانوي علوم تجريبية | L66: 57 | M66: //////
A67: 58 | B67: زيتوني محمد الأمين | C67: 1997-10-30 | D67: مغنية | E67: ذ | F67: م1 | G67: 3ع ت02 | H67: زيتوني محمد | J67: قرية المصامدة ـ مغنية | K67: السنة الثالثة ثانوي علوم تجريبية | L67: 58 | M67: //////
A68: 59 | B68: سبيع الواسيني | C68: 1999-08-03 | D68: مغنية | E68: ذ | F68: ن1 | G68: 3ع ت02 | H68: سبيع نورالدين | I68: ع1 | J68: عمارة P قرية العقيد لطفي ـ مغنية | K68: السنة الثالثة ثانوي علوم تجريبية | L68: 59 | M68: //////
A69: 60 | B69: شارف شيماء | C69: 2000-08-16 | D69: مغنية | E69: أ | F69: خ2 | G69: 3ع ت02 | H69: محمد | J69: ثكنة الحماية المدنية حي بلال مغنية | K69: السنة الثالثة ثانوي علوم تجريبية | L69: 60 | M69: //////
A70: 61 | B70: شقرون مريم | C70: 2000-12-20 | D70: مغنية | E70: أ | F70: م2 | G70: 3ع ت02 | H70: شقرون لحسن | J70: حمام بوغرارة | K70: السنة الثالثة ثانوي علوم تجريبية | L70: 61 | M70: //////
A71: 62 | B71: شقرون هبة الرحمن | C71: 1999-03-10 | D71: مغنية | E71: أ | F71: خ2 | G71: 3ع ت02 | H71: شقرون محمد | I71: ع2 | J71: شارع 01 منزل 25 حي الشهداء ، مغنية | K71: السنة الثالثة ثانوي علوم تجريبية | L71: 62 | M71: //////
A72: 63 | B72: عبد اللاهي حياة | C72: 1999-01-23 | D72: مغنية | E72: أ | F72: خ2 | G72: 3ع ت02 | H72: عبد اللاهي محمد | I72: ع2 | J72: طريق المسبح رقم 01 حي الشهداء ـ مغنية | K72: السنة الثالثة ثانوي علوم تجريبية | L72: 63 | M72: //////
A73: 64 | B73: عبو محمد | C73: 1999-11-04 | D73: مغنية | E73: ذ | F73: م1 | G73: 3ع ت02 | H73: عبو بوزيان | J73: اولاد الشارف | K73: السنة الثالثة ثانوي علوم تجريبية | L73: 64 | M73: //////
A74: 65 | B74: قزوي ياسين | C74: 1999-07-03 | D74: مغنية | E74: ذ | F74: ن1 | G74: 3ع ت02 | H74: قزوي عبد القادر | I74: ع1 | J74: الحي السكني الجديد البريقي ـ مغنية | K74: السنة الثالثة ثانوي علوم تجريبية | L74: 65 | M74: //////
A75: 66 | B75: لزعر مروى | C75: 2000-10-25 | D75: مغنية | E75: أ | F75: خ2 | G75: 3ع ت02 | H75: لزعر زوبير | J75: درب 0 رقم 04 حي المقراني ـ مغنية | K75: السنة الثالثة ثانوي علوم تجريبية | L75: 66 | M75: //////
A76: 67 | B76: مزاري إبراهيم | C76: 2000-03-16 | D76: مغنية | E76: ذ | F76: م1 | G76: 3ع ت02 | H76: مزاري واسيني | J76: قرية بوسدرة | K76: السنة الثالثة ثانوي علوم تجريبية | L76: 67 | M76: //////
A77: 68 | B77: مزاري خديجة | C77: 2000-04-08 | D77: مغنية | E77: أ | F77: م2 | G77: 3ع ت02 | H77: مزاري أحمد | J77: قرية بوسدرة البخاتة ، مغنية | K77: السنة الثالثة ثانوي علوم تجريبية | L77: 68 | M77: //////
A78: 69 | B78: منور فريال عبير | C78: 2000-09-19 | D78: مغنية | E78: أ | F78: م2 | G78: 3ع ت02 | H78: منور احمد | J78: قرية العقيد عباس | K78: السنة الثالثة ثانوي علوم تجريبية | L78: 69 | M78: //////
A79: 70 | B79: هواري رجاء | C79: 1999-04-08 | D79: مغنية | E79: أ | F79: ن2 | G79: 3ع ت02 | H79: هواري عبد القادر | I79: ع2 | J79: قرية المصامدة ، مغنية | K79: السنة الثالثة ثانوي علوم تجريبية | L79: 70 | M79: //////
A80: 71 | B80: واسطي أيمن | C80: 2000-06-10 | D80: مغنية | E80: ذ | F80: خ1 | G80: 3ع ت02 | H80: واسطي محمد | J80: حي الشهداء ـ مغنية | K80: السنة الثالثة ثانوي علوم تجريبية | L80: 71 | M80: //////
A83: 72 | B83: أمبارك فايزة | C83: 2000-04-25 | D83: مغنية | E83: أ | F83: م2 | G83: 3ت إ | H83: أمبارك ميلود | J83: قرية العقيد عباس | K83: السنة الثالثة ثانوي علوم تجريبية | L83: 72 | M83: //////
A84: 73 | B84: أير مقران عائشة صبرينة | C84: 1999-08-16 | D84: مغنية | E84: أ | F84: م2 | G84: 3ت إ | H84: أير مقران محمد | J84: قرية المصامدة ، مغنية | K84: السنة الثالثة ثانوي علوم تجريبية | L84: 73 | M84: //////
A85: 74 | B85: العياطي إسلام | C85: 2000-09-10 | D85: مغنية | E85: ذ | F85: م1 | G85: 3ت إ | H85: العياطي تهامي | J85: حمام بوغرارة | K85: السنة الثالثة ثانوي علوم تجريبية | L85: 74 | M85: //////
A86: 75 | B86: بسويعة صباح | C86: 1995-05-06 | D86: مغنية | E86: أ | F86: م2 | G86: 3ت إ | H86: مطهري عايدة | J86: ثانوية الخوارزمي ـ مغنية | K86: السنة الثالثة ثانوي علوم تجريبية | L86: 75 | M86: //////
A87: 76 | B87: بن زعتر محمد الواسيني | C87: 1999-07-24 | D87: سيدي بلعباس | E87: ذ | F87: م1 | G87: 3ت إ | H87: بن زعتر محمد | J87: قرية أولاد الشارف ، مغنية | K87: السنة الثالثة ثانوي علوم تجريبية | L87: 76 | M87: //////
A88: 77 | B88: بن ساحة جيلالي | C88: 1997-12-27 | D88: مغنية | E88: ذ | F88: خ1 | G88: 3ت إ | H88: بن ساحة أحمد | J88: قرية المصامدة ـ مغنية | K88: السنة الثالثة ثانوي علوم تجريبية | L88: 77 | M88: //////
A89: 78 | B89: بن عابد سارة | C89: 1997-06-24 | D89: مغنية | E89: أ | F89: م2 | G89: 3ت إ | H89: بن عابد بن أحمد | J89: قرية أولاد الشارف ، مغنية | K89: السنة الثالثة ثانوي علوم تجريبية | L89: 78 | M89: //////
A90: 79 | B90: بن موسى وردة | C90: 1999-04-14 | D90: مغنية | E90: أ | F90: م2 | G90: 3ت إ | H90: بن موسى لحسن | J90: قرية بوسدرة البخاتة ، مغنية | K90: السنة الثالثة ثانوي علوم تجريبية | L90: 79 | M90: //////
A91: 80 | B91: بوزاهري إكرام | C91: 1999-03-21 | D91: مغنية | E91: أ | F91: ن2 | G91: 3ت إ | H91: بوزاهري مصطفى | J91: قرية العقيد عباس ـ مغنية | K91: السنة الثالثة ثانوي علوم تجريبية | L91: 80 | M91: //////
A92: 81 | B92: بوشيخي شرف الدين | C92: 2000-09-26 | D92: مغنية | E92: ذ | F92: م1 | G92: 3ت إ | H92: بوشيخي محمد | J92: قرية المصامدة ، مغنية | K92: السنة الثالثة ثانوي علوم تجريبية | L92: 81 | M92: //////
A93: 82 | B93: بوماجر يوسف | C93: 2000-06-07 | D93: مغنية | E93: ذ | F93: م1 | G93: 3ت إ | H93: بوماجر أحمد | J93: محطة العقيد عباس ـ مغنية | K93: السنة الثالثة ثانوي علوم تجريبية | L93: 82 | M93: //////
A94: 83 | B94: ترنان شرف الدين | C94: 2000-12-21 | D94: مغنية | E94: ذ | F94: م1 | G94: 3ت إ | H94: ترنان واسيني | J94: حي بلال ، مغنية | K94: السنة الثالثة ثانوي علوم تجريبية | L94: 83 | M94: //////
A95: 84 | B95: حمادي عبد الجليل | C95: 1999-03-27 | D95: مغنية | E95: ذ | F95: م1 | G95: 3ت إ | H95: حمادي علي | J95: قرية المصامدة ـ مغنية | K95: السنة الثالثة ثانوي علوم تجريبية | L95: 84 | M95: //////
A96: 85 | B96: حمدوني إناس | C96: 1999-07-08 | D96: مغنية | E96: أ | F96: ن2 | G96: 3ت إ | H96: حمدوني عبد القادر | J96: حي الشهداء ، مغنية | K96: السنة الثالثة ثانوي علوم تجريبية | L96: 85 | M96: //////
A97: 86 | B97: خاليد هشام | C97: 1998-09-03 | D97: الغزوات | E97: ذ | F97: ن1 | G97: 3ت إ | H97: خاليد شريف | J97: حمام بوغرارة 13320 | K97: السنة الثالثة ثانوي علوم تجريبية | L97: 86 | M97: //////
A98: 87 | B98: خثير أمينة | C98: 1999-07-08 | D98: مغنية | E98: أ | F98: م2 | G98: 3ت إ | H98: خثير محمد | J98: اولاد الشارف | K98: السنة الثالثة ثانوي علوم تجريبية | L98: 87 | M98: //////
A99: 88 | B99: خلوفي وليد | C99: 1998-08-11 | D99: مغنية | E99: ذ | F99: م1 | G99: 3ت إ | H99: خلوفي رابح | J99: حي الركيزة حمام بوغرارة | K99: السنة الثالثة ثانوي علوم تجريبية | L99: 88 | M99: //////
A100: 89 | B100: خليد هاجر | C100: 2000-05-25 | D100: حمام بوغرارة | E100: أ | F100: م2 | G100: 3ت إ | H100: خليد يحيى | J100: حمام بوغرارة 1333 | K100: السنة الثالثة ثانوي علوم تجريبية | L100: 89 | M100: //////
A101: 90 | B101: ديب أحمد طاع الله | C101: 1999-05-20 | D101: مغنية | E101: ذ | F101: ن1 | G101: 3ت إ | H101: ديب بومدين | J101: قرية أولاد الشارف ـ مغنية | K101: السنة الثالثة ثانوي علوم تجريبية | L101: 90 | M101: //////
A102: 91 | B102: راجعي يوسف | C102: 2000-03-04 | D102: مغنية | E102: ذ | F102: م1 | G102: 3ت إ | H102: راجعي عبد الحميد | J102: قرية أولاد الشارف ـ مغنية | K102: السنة الثالثة ثانوي علوم تجريبية | L102: 91 | M102: //////
A103: 92 | B103: زرقاني عبد الرحيم | C103: 1997-07-13 | D103: مغنية | E103: ذ | F103: م1 | G103: 3ت إ | H103: زرقاني عبد الغني | J103: قرية أولاد الشارف ، مغنية | K103: السنة الثالثة ثانوي علوم تجريبية | L103: 92 | M103: //////
A104: 93 | B104: ساعد نسرين | C104: 1998-05-13 | D104: مغنية | E104: أ | F104: خ2 | G104: 3ت إ | H104: ساعد حمزة | J104: قرية أولاد الشارف ـ مغنية | K104: السنة الثالثة ثانوي علوم تجريبية | L104: 93 | M104: //////
A105: 94 | B105: شباب عبد الوهاب | C105: 1997-06-15 | D105: مغنية | E105: ذ | F105: م1 | G105: 3ت إ | H105: شباب مختار | J105: حمام بوغرارة 13320 | K105: السنة الثالثة ثانوي علوم تجريبية | L105: 94 | M105: //////
A106: 95 | B106: شقرون منال | C106: 2000-07-08 | D106: مغنية | E106: أ | F106: م2 | G106: 3ت إ | H106: شقرون عبد الفتاح | J106: حمام بوغرارة | K106: السنة الثالثة ثانوي علوم تجريبية | L106: 95 | M106: //////
A107: 96 | B107: صديقي أمينة شيماء | C107: 1998-07-22 | D107: مغنية | E107: أ | F107: خ2 | G107: 3ت إ | H107: صديقي محمد | J107: رقم 42 شارع شعبان حمدون ـ مغنية | K107: السنة الثالثة ثانوي علوم تجريبية | L107: 96 | M107: //////
A108: 97 | B108: ضيف بن أعمر | C108: 2000-04-24 | D108: مغنية | E108: ذ | F108: م1 | G108: 3ت إ | H108: ضيف شيخ | J108: حمام بوغرارة 13320 | K108: السنة الثالثة ثانوي علوم تجريبية | L108: 97 | M108: //////
A109: 98 | B109: ضيف عماد الدين | C109: 1999-10-18 | D109: مغنية | E109: ذ | F109: م1 | G109: 3ت إ | H109: ضيف بن عمر | J109: حمام بوغرارة 13320 | K109: السنة الثالثة ثانوي علوم تجريبية | L109: 98 | M109: //////
A110: 99 | B110: عباس جواد | C110: 2000-07-06 | D110: مغنية | E110: ذ | F110: م1 | G110: 3ت إ | H110: محمد عباس | J110: حمام بوغرارة | K110: السنة الثالثة ثانوي تسييــر و اقتصــاد | L110: 99 | M110: //////
A111: 100 | B111: عبد المالك يوسف | C111: 1998-04-30 | D111: مغنية | E111: ذ | F111: م1 | G111: 3ت إ | H111: عبد المالك محمد | J111: قرية أولاد الشارف ، مغنية | K111: السنة الثالثة ثانوي تسييــر و اقتصــاد | L111: 100 | M111: //////
A112: 101 | B112: علوش عبد الحكيم | C112: 1999-07-23 | D112: مغنية | E112: ذ | F112: ن1 | G112: 3ت إ | H112: علوش محمد | J112: قرية بوسدرة البخاتة ، مغنية | K112: السنة الثالثة ثانوي تسييــر و اقتصــاد | L112: 101 | M112: //////
A113: 102 | B113: عمراوي شيماء | C113: 1999-09-02 | D113: مغنية | E113: أ | F113: ن2 | G113: 3ت إ | H113: عمراوي عبد الحفيظ | J113: قرية العقيد عباس ـ مغنية | K113: السنة الثالثة ثانوي تسييــر و اقتصــاد | L113: 102 | M113: //////
A114: 103 | B114: قزوي محمد حبيب | C114: 1998-01-31 | D114: مغنية | E114: ذ | F114: ن1 | G114: 3ت إ | H114: قزوي فوزي | J114: قرية العقيد عباس ، مغنية | K114: السنة الثالثة ثانوي تسييــر و اقتصــاد | L114: 103 | M114: //////
A115: 104 | B115: قعاد جميلة | C115: 2000-03-12 | D115: مغنية | E115: أ | F115: م2 | G115: 3ت إ | H115: قعاد عبد القادر | J115: قرية المصامدة مغنية عند التاجر بوعزة القندوز | K115: السنة الثالثة ثانوي تسييــر و اقتصــاد | L115: 104 | M115: //////
A116: 105 | B116: قنشي أحلام | C116: 2000-07-26 | D116: مغنية | E116: أ | F116: خ2 | G116: 3ت إ | H116: قنشي فوزي | J116: حي الشهداء منزل02 شارع02 | K116: السنة الثالثة ثانوي تسييــر و اقتصــاد | L116: 105 | M116: //////
A117: 106 | B117: كاملين معمر | C117: 1998-04-25 | D117: مغنية | E117: ذ | F117: م1 | G117: 3ت إ | H117: كاملين صالح | J117: قرية المصامدة ـ مغنية | K117: السنة الثالثة ثانوي تسييــر و اقتصــاد | L117: 106 | M117: //////
A118: 107 | B118: لياني مروان | C118: 1999-08-12 | D118: مغنية | E118: ذ | F118: ن1 | G118: 3ت إ | H118: لياني محمد | J118: حمام بوغرارة 13320 | K118: السنة الثالثة ثانوي تسييــر و اقتصــاد | L118: 107 | M118: //////
A119: 108 | B119: نميش صفاء حفيظة | C119: 1999-10-16 | D119: مغنية | E119: أ | F119: خ2 | G119: 3ت إ | H119: نميش محمد | J119: حي الشهداء | K119: السنة الثالثة ثانوي تسييــر و اقتصــاد | L119: 108 | M119: //////
A120: 109 | B120: ولد علي أمينة | C120: 2000-08-30 | D120: مغنية | E120: أ | F120: م2 | G120: 3ت إ | H120: ولد علي بومدين | J120: حمام بوغرارة | K120: السنة الثالثة ثانوي تسييــر و اقتصــاد | L120: 109 | M120: //////
A122: 110 | B122: أمحمدي جهان | C122: 1998-11-21 | D122: مغنية | E122: أ | F122: ن2 | G122: 3أ ف | H122: أمحمدي محمد | J122: قرية أولاد قدور ـ مغنية | K122: السنة الثالثة ثانوي تسييــر و اقتصــاد | L122: 110 | M122: //////
A123: 111 | B123: بختي بشرى | C123: 1998-04-20 | D123: مغنية | E123: أ | F123: ن2 | G123: 3أ ف | H123: بختي عبد الله | J123: قرية بوسدرة البخاتة ـ مغنية | K123: السنة الثالثة ثانوي تسييــر و اقتصــاد | L123: 111 | M123: //////
A124: 112 | B124: بداد أية فاطمة الزهراء | C124: 2000-09-23 | D124: سيدي بلعباس | E124: أ | F124: خ2 | G124: 3أ ف | H124: بداد احمد | J124: 29 حي الشهداء | K124: السنة الثالثة ثانوي تسييــر و اقتصــاد | L124: 112 | M124: //////
A125: 113 | B125: بشلاغم سمية | C125: 1998-10-05 | D125: سبدو | E125: أ | F125: ن2 | G125: 3أ ف | H125: اوكيلي مصطفى | J125: قرية أولاد الشارف ـ مغنية | K125: السنة الثالثة ثانوي تسييــر و اقتصــاد | L125: 113 | M125: //////
A126: 114 | B126: بن حامد فايزة | C126: 1997-11-04 | D126: مغنية | E126: أ | F126: خ2 | G126: 3أ ف | H126: بن حامد عبد الخفيظ | J126: حي الشهداء ـ مغنبة | K126: السنة الثالثة ثانوي تسييــر و اقتصــاد | L126: 114 | M126: //////
A127: 115 | B127: بن شقرة سارة | C127: 1998-08-08 | D127: مغنية | E127: أ | F127: ن2 | G127: 3أ ف | H127: بن شقرة عبد الكريم | J127: قرية المصامدة ـ مغنية | K127: السنة الثالثة ثانوي تسييــر و اقتصــاد | L127: 115 | M127: //////
A128: 116 | B128: بوزيدي مريم | C128: 1999-04-07 | D128: مغنية | E128: أ | F128: م2 | G128: 3أ ف | H128: بوزيدي محمد | J128: ص.ب 512 مغنية | K128: السنة الثالثة ثانوي تسييــر و اقتصــاد | L128: 116 | M128: //////
A129: 117 | B129: توبردة مغنية | C129: 1998-11-23 | D129: مغنية | E129: أ | F129: ن2 | G129: 3أ ف | H129: توبردة بن يعقوب | J129: قرية المصامدة ـ مغنية | K129: السنة الثالثة ثانوي تسييــر و اقتصــاد | L129: 117 | M129: //////
A130: 118 | B130: حابن اسمهان | C130: 1999-04-08 | D130: مغنية | E130: أ | F130: م2 | G130: 3أ ف | H130: حاين عبد الحميد | J130: قرية البخاتة بوسدرة | K130: السنة الثالثة ثانوي تسييــر و اقتصــاد | L130: 118 | M130: //////
A131: 119 | B131: حاجي مونية | C131: 1998-04-29 | D131: مغنية | E131: أ | F131: خ2 | G131: 3أ ف | H131: حاجي عبد الحكيم | J131: حمام بوغرارة 13320 | K131: السنة الثالثة ثانوي تسييــر و اقتصــاد | L131: 119 | M131: //////
A132: 120 | B132: حساين نبيلة | C132: 1999-07-01 | D132: مغنية | E132: أ | F132: م2 | G132: 3أ ف | H132: حساين احمد | J132: قرية البخاتة | K132: السنة الثالثة ثانوي تسييــر و اقتصــاد | L132: 120 | M132: //////
A133: 121 | B133: حمادي أمال | C133: 1998-04-20 | D133: مغنية | E133: أ | F133: م2 | G133: 3أ ف | H133: حمادي بن عمر | J133: محطة الأرصاد الجوية العقيد عباس ـ مغنية | K133: السنة الثالثة ثانوي تسييــر و اقتصــاد | L133: 121 | M133: //////
A134: 122 | B134: حمادي الواسيني | C134: 1999-06-21 | D134: مغنية | E134: ذ | F134: م1 | G134: 3أ ف | H134: حمادي لخضر | J134: قرية بوسدرة البخاتة | K134: السنة الثالثة ثانوي تسييــر و اقتصــاد | L134: 122 | M134: //////
A135: 123 | B135: حمادي مغنية | C135: 2000-04-12 | D135: مغنية | E135: أ | F135: م2 | G135: 3أ ف | H135: حمادي يحيى | J135: قرية بوسدرة البخاتة ـ مغنية | K135: السنة الثالثة ثانوي تسييــر و اقتصــاد | L135: 123 | M135: //////
A136: 124 | B136: دخيسي أحلام | C136: 2000-12-07 | D136: مغنية | E136: أ | F136: م2 | G136: 3أ ف | H136: دخيسي حسين | J136: قرية بوسدرة البخاتة | L136: 124 | M136: //////
A137: 125 | B137: دعنون منال | C137: 1998-11-13 | D137: مغنية | E137: أ | F137: م2 | G137: 3أ ف | H137: دعنون محمد | J137: باب العسة | K137: السنة الثالثة ثانوي تسييــر و اقتصــاد | L137: 125 | M137: //////
A138: 126 | B138: زرعي يامنة | C138: 2000-08-11 | D138: مغنية | E138: أ | F138: خ2 | G138: 3أ ف | H138: زرعي سيدي محمد | J138: حي بلال | K138: السنة الثالثة ثانوي أداب و فلســـــفة | L138: 126 | M138: //////
A139: 127 | B139: زقاي شهيناز | C139: 1997-08-01 | D139: مغنية | E139: أ | F139: خ2 | G139: 3أ ف | H139: زقاي محمد | J139: شارع 71 رقم 05 حي المدرجات ـ مغنية | K139: السنة الثالثة ثانوي أداب و فلســـــفة | L139: 127 | M139: //////
A140: 128 | B140: سلطاني سارة | C140: 1998-04-28 | D140: مغنية | E140: أ | F140: خ2 | G140: 3أ ف | H140: سلطاني بن ثابت | J140: درب 16 رقم 35 حي الشهداء ، مغنية | K140: السنة الثالثة ثانوي أداب و فلســـــفة | L140: 128 | M140: //////
A141: 129 | B141: شرقي ليلى | C141: 1996-10-27 | D141: مغنية | E141: أ | F141: ن2 | G141: 3أ ف | H141: شرقي محمد | J141: قرية أولاد قدور الكبار ـ مغنية | K141: السنة الثالثة ثانوي أداب و فلســـــفة | L141: 129 | M141: //////
A142: 130 | B142: صحراوي لمياء | C142: 1998-10-09 | D142: مغنية | E142: أ | F142: م2 | G142: 3أ ف | H142: صحراوي حميد | J142: قرية بوسدرة البخاتة ـ مغنية | K142: السنة الثالثة ثانوي أداب و فلســـــفة | L142: 130 | M142: //////
A143: 131 | B143: عايشي عربية فاطمة الزهراء | C143: 1999-05-14 | D143: تلمسان | E143: أ | F143: م2 | G143: 3أ ف | H143: عايشي شوقي | J143: قرية البخاتة بوسدرة | K143: السنة الثالثة ثانوي أداب و فلســـــفة | L143: 131 | M143: //////
A144: 132 | B144: عبد المالك جنات | C144: 1999-05-15 | D144: مغنية | E144: أ | F144: م2 | G144: 3أ ف | H144: عبد المالك بن عمر | J144: قرية بوسدرة البخاتة مغنية | K144: السنة الثالثة ثانوي أداب و فلســـــفة | L144: 132 | M144: //////
A145: 133 | B145: عبد المالك فاطمة الزهراء | C145: 2000-11-03 | D145: مغنية | E145: أ | F145: خ2 | G145: 3أ ف | H145: عبد المالك واسيني | J145: حي الشهداء شارع 22 رقم46 | K145: السنة الثالثة ثانوي أداب و فلســـــفة | L145: 133 | M145: //////
A146: 134 | B146: علوان مروى | C146: 1998-11-07 | D146: مغنية | E146: أ | F146: خ2 | G146: 3أ ف | H146: علوان بشير | J146: قرية بوسدرة البخاتة ـ مغنية | K146: السنة الثالثة ثانوي أداب و فلســـــفة | L146: 134 | M146: //////
A147: 135 | B147: فوقي نور الهدى | C147: 1998-10-04 | D147: مغنية | E147: أ | F147: ن2 | G147: 3أ ف | H147: فوقي بشير | J147: قرية أولاد الشارف ـ مغنية | K147: السنة الثالثة ثانوي أداب و فلســـــفة | L147: 135 | M147: //////
A148: 136 | B148: لعشب شيماء | C148: 2000-03-23 | D148: مغنية | E148: أ | F148: خ2 | G148: 3أ ف | H148: لعشب احمد | J148: مسجد الامام البخاري حي الشهداء | K148: السنة الثالثة ثانوي أداب و فلســـــفة | L148: 136 | M148: //////
A149: 137 | B149: محياوي خديجة | C149: 2000-02-05 | D149: مغنية | E149: أ | F149: م2 | G149: 3أ ف | H149: محياوي محمد | J149: قرية بوسدرة البخاتة | K149: السنة الثالثة ثانوي أداب و فلســـــفة | L149: 137 | M149: //////
A150: 138 | B150: مخفي باية | C150: 1999-09-10 | D150: مغنية | E150: أ | F150: خ2 | G150: 3أ ف | H150: مخفي عبد الحكيم | J150: حي الشهداء | K150: السنة الثالثة ثانوي أداب و فلســـــفة | L150: 138 | M150: //////
A151: 139 | B151: مسارقي زينب | C151: 1998-09-02 | D151: مغنية | E151: أ | F151: م2 | G151: 3أ ف | H151: مسارقي محمود | J151: درب 22 رقم 02 حي الشهداء ، مغنية | K151: السنة الثالثة ثانوي أداب و فلســـــفة | L151: 139 | M151: //////
A152: 140 | B152: مصار منال | C152: 2000-01-27 | D152: مغنية | E152: أ | F152: م2 | G152: 3أ ف | H152: مصار محمد | J152: اولاد الشارف | K152: السنة الثالثة ثانوي أداب و فلســـــفة | L152: 140 | M152: //////
A153: 141 | B153: مقدم جميلة | C153: 1999-07-15 | D153: مغنية | E153: أ | F153: م2 | G153: 3أ ف | H153: الحاج قدور | J153: قرية العقيد عباس اولاد قدور | K153: السنة الثالثة ثانوي أداب و فلســـــفة | L153: 141 | M153: //////
A154: 142 | B154: موساتي نادية | C154: 2000-11-29 | D154: مغنية | E154: أ | F154: م2 | G154: 3أ ف | H154: موساتي ابن عمر | J154: قرية البخاتة | K154: السنة الثالثة ثانوي أداب و فلســـــفة | L154: 142 | M154: //////
A156: 143 | B156: أجد زينب | C156: 1997-05-04 | D156: مغنية | E156: أ | F156: م2 | G156: 3لغات | H156: أجد محمد | J156: سيدي مبارك ، بني بوسعيد | K156: السنة الثالثة ثانوي أداب و فلســـــفة | L156: 143 | M156: //////
A157: 144 | B157: أمبارك الهاشمي | C157: 1998-08-17 | D157: مغنية | E157: ذ | F157: م1 | G157: 3لغات | H157: امبارك رشيد | J157: دوار اولاد قدور | K157: السنة الثالثة ثانوي أداب و فلســـــفة | L157: 144 | M157: //////
A158: 145 | B158: العابد يسرى | C158: 2000-05-13 | D158: مغنية | E158: أ | F158: خ2 | G158: 3لغات | H158: العابد بن عمر | J158: الدرب الاول رقم16 حي بلال | K158: السنة الثالثة ثانوي أداب و فلســـــفة | L158: 145 | M158: //////
A159: 146 | B159: المسعود محمد سيف | C159: 2000-05-25 | D159: مغنية | E159: ذ | F159: م1 | G159: 3لغات | H159: المسعود مصطفي | J159: اولاد الشارف مغنية | K159: السنة الثالثة ثانوي أداب و فلســـــفة | L159: 146 | M159: //////
A160: 147 | B160: بلخوان نهاد | C160: 1999-03-24 | D160: مغنية | E160: أ | F160: خ2 | G160: 3لغات | H160: بلخوان محمد | J160: قرية أولاد الشارف ، مغنية | K160: السنة الثالثة ثانوي أداب و فلســـــفة | L160: 147 | M160: //////
A161: 148 | B161: بلغري آية | C161: 2000-07-17 | D161: مغنية | E161: أ | F161: خ2 | G161: 3لغات | H161: حسين | J161: حي المطمر | K161: السنة الثالثة ثانوي أداب و فلســـــفة | L161: 148 | M161: //////
A162: 149 | B162: بن اعمر رانيا | C162: 1998-07-21 | D162: مغنية | E162: أ | F162: ن2 | G162: 3لغات | H162: بن أعمر فوزي | J162: حي الركيزة ـ حمام بوغرارة | K162: السنة الثالثة ثانوي أداب و فلســـــفة | L162: 149 | M162: //////
A163: 150 | B163: بن عيسي وئام | C163: 2000-05-12 | D163: مغنية | E163: أ | F163: م2 | G163: 3لغات | H163: بن عيسي حميدي | J163: حي بوغزال عمارة أ البريقي | K163: السنة الثالثة ثانوي أداب و فلســـــفة | L163: 150 | M163: //////
A164: 151 | B164: بناصر خلود هديل | C164: 2000-02-24 | D164: مغنية | E164: أ | F164: خ2 | G164: 3لغات | H164: بناصر مجاهد | J164: حي الباطاوار | K164: السنة الثالثة ثانوي أداب و فلســـــفة | L164: 151 | M164: //////
A165: 152 | B165: بوشكري عبير | C165: 2000-06-26 | D165: مغنية | E165: أ | F165: م2 | G165: 3لغات | H165: بوشكري محمد | J165: قرية العقيد عباس | K165: السنة الثالثة ثانوي أداب و فلســـــفة | L165: 152 | M165: //////
A166: 153 | B166: تبحريتي إبراهيم | C166: 1999-08-25 | D166: مغنية | E166: ذ | F166: خ1 | G166: 3لغات | H166: بحريتي عزالدين | J166: حي الباطوار ، مغنية | K166: السنة الثالثة ثانوي أداب و فلســـــفة | L166: 153 | M166: //////
A167: 154 | B167: جباري وسيلة | C167: 1999-03-01 | D167: مغنية | E167: أ | F167: م2 | G167: 3لغات | H167: جبار ي الواسيني | J167: حي الركيزة ، حمام بوغرارة 13320 | K167: السنة الثالثة ثانوي أداب و فلســـــفة | L167: 154 | M167: //////
A168: 155 | B168: جوادي خديجة شيماء | C168: 1998-06-26 | D168: بني صاف | E168: أ | F168: خ2 | G168: 3لغات | H168: جوادي عبد الحميد | J168: حي بلال رقم 25 ، مغنية | K168: السنة الثالثة ثانوي أداب و فلســـــفة | L168: 155 | M168: //////
A169: 156 | B169: حفص نورية إيمان | C169: 2000-01-15 | D169: مغنية | E169: أ | F169: م2 | G169: 3لغات | H169: حفص احمد | J169: اولاد الشارف | K169: السنة الثالثة ثانوي أداب و فلســـــفة | L169: 156 | M169: //////
A170: 157 | B170: حوحو محمد عبد الحق | C170: 2001-01-07 | D170: مغنية | E170: ذ | F170: م1 | G170: 3لغات | H170: حوحو عقبة | J170: قرية اولاد الشارف شارع07 | K170: السنة الثالثة ثانوي أداب و فلســـــفة | L170: 157 | M170: //////
A171: 158 | B171: خش أميرة | C171: 2000-08-13 | D171: مغنية | E171: أ | F171: م2 | G171: 3لغات | H171: خش عبد الرزاق | J171: حمام بوغرارة | K171: السنة الثالثة ثانوي أداب و فلســـــفة | L171: 158 | M171: //////
A172: 159 | B172: دار أعمر حنان | C172: 2000-08-17 | D172: مغنية | E172: أ | F172: م2 | G172: 3لغات | H172: دار أعمر بومدين | J172: حمام بوغرارة الركيزة | K172: السنة الثالثة ثانوي أداب و فلســـــفة | L172: 159 | M172: //////
A173: 160 | B173: ديب أسية | C173: 2001-01-02 | D173: مغنية | E173: أ | F173: خ2 | G173: 3لغات | H173: ديب عبد الحميد | J173: شارع رقم 16 منزل رقم09 حي الشهداء | K173: السنة الثالثة ثانوي أداب و فلســـــفة | L173: 160 | M173: //////
A174: 161 | B174: راشدي رضوان | C174: 2000-02-23 | D174: مغنية | E174: ذ | F174: م1 | G174: 3لغات | H174: راشدي علي | J174: قرية أولاد الشارف ، مغنية | K174: السنة الثالثة ثانوي أداب و فلســـــفة | L174: 161 | M174: //////
A175: 162 | B175: زار رانيا | C175: 1998-06-27 | D175: مغنية | E175: أ | F175: خ2 | G175: 3لغات | H175: زار ميلود | J175: رقم 160 شارع تلمسان حي بلال ، مغنية | K175: السنة الثالثة ثانوي أداب و فلســـــفة | L175: 162 | M175: //////
A176: 163 | B176: زاوي أسماء | C176: 2000-11-13 | D176: مغنية | E176: أ | F176: خ2 | G176: 3لغات | H176: زاوي محمد | J176: حي الشهداء متوسطة عقبة بن نافع | K176: السنة الثالثة ثانوي أداب و فلســـــفة | L176: 163 | M176: //////
A177: 164 | B177: زموري صفاء | C177: 2000-10-07 | D177: مغنية | E177: أ | F177: خ2 | G177: 3لغات | H177: زموري بن عومر | J177: حي بلال محطة القطار | K177: السنة الثالثة ثانوي أداب و فلســـــفة | L177: 164 | M177: //////
A178: 165 | B178: شراك زينب | C178: 1998-03-31 | D178: مغنية | E178: أ | F178: خ2 | G178: 3لغات | H178: شراك يحيى | J178: حي بلال رقم 03 ، مغنية | K178: السنة الثالثة ثانوي أداب و فلســـــفة | L178: 165 | M178: //////
A179: 166 | B179: عفاني حسام | C179: 2000-01-11 | D179: مغنية | E179: ذ | F179: م1 | G179: 3لغات | H179: عفاني فؤاد | J179: قرية بوسدرة البخاتة ، مغنية | K179: السنة الثالثة ثانوي أداب و فلســـــفة | L179: 166 | M179: //////
A180: 167 | B180: غربي نجلاء سارة | C180: 2000-11-12 | D180: مغنية | E180: أ | F180: خ2 | G180: 3لغات | H180: غربي عمر | J180: حي الشهداء مغنية منزل رقم57 | K180: السنة الثالثة ثانوي أداب و فلســـــفة | L180: 167 | M180: //////
A181: 168 | B181: فراج جواد | C181: 1998-08-05 | D181: مغنية | E181: ذ | F181: ن1 | G181: 3لغات | H181: فراج بومدين | J181: حي 04 سكنات ، حمام بوغرارة 13320 | K181: السنة الثالثة ثانوي أداب و فلســـــفة | L181: 168 | M181: //////
A182: 169 | B182: قاشور سليمة | C182: 1999-03-07 | D182: مغنية | E182: أ | F182: خ2 | G182: 3لغات | H182: قاشور إدريس | J182: 16 شارع محطة القطار ، مغنية | K182: السنة الثالثة ثانوي أداب و فلســـــفة | L182: 169 | M182: //////
A183: 170 | B183: كردوسي جمال الدين | C183: 2000-11-17 | D183: مغنية | E183: ذ | F183: خ1 | G183: 3لغات | H183: عبد اللطيف | J183: حي مزوار رقم05 مغنية | K183: السنة الثالثة ثانوي أداب و فلســـــفة | L183: 170 | M183: //////
A184: 171 | B184: مزاري إكرام | C184: 1998-08-28 | D184: مغنية | E184: أ | F184: ن2 | G184: 3لغات | H184: مزاري الطيب | J184: قرية بوسدرة البخاتة ، مغنية | K184: السنة الثالثة ثانوي أداب و فلســـــفة | L184: 171 | M184: //////
A185: 172 | B185: موسليم أمينة | C185: 2001-01-02 | D185: مغنية | E185: أ | F185: خ2 | G185: 3لغات | H185: موسليم حسين | J185: حي الشهداء مغنية | K185: السنة الثالثة ثانوي أداب و فلســـــفة | L185: 172 | M185: //////
A186: 173 | B186: واسطي عبد السميع | C186: 1999-07-05 | D186: مغنية | E186: ذ | F186: خ1 | G186: 3لغات | H186: واسطي مصطفي | J186: درب 11 منزل14 الشهداء | K186: السنة الثالثة ثانوي أداب و فلســـــفة | L186: 173 | M186: //////
A189: 1 | B189: بن هدي مروة | C189: 1999-07-30 | D189: مغنية | E189: أ | F189: م2 | G189: 2ت ر | H189: بن هدي احمد | J189: قرية بوسدرة البخاتة | K189: السنة الثالثة ثانوي لغــــــــات أجنبية | L189: 175 | M189: //////
A190: 2 | B190: بوسوماح شيماء | C190: 2001-02-04 | D190: مغنية | E190: أ | F190: م2 | G190: 2ت ر | H190: عبد العزيز | J190: قرية العقيد عباس ، مغنية | K190: السنة الثالثة ثانوي لغــــــــات أجنبية | L190: 177 | M190: //////
A191: 3 | B191: حدوشي محمد | C191: 2001-05-22 | D191: بني بوسعيد | E191: ذ | F191: م1 | G191: 2ت ر | H191: احمد | J191: قرية المصامدة مغنية | K191: السنة الثالثة ثانوي لغــــــــات أجنبية | L191: 178 | M191: //////
A192: 4 | B192: راجعي محمد | C192: 2001-09-16 | D192: مغنية | E192: ذ | F192: م1 | G192: 2ت ر | H192: عبد الحاكم | J192: اولاد الشارف رواجعية | K192: السنة الثالثة ثانوي لغــــــــات أجنبية | L192: 180 | M192: //////
A193: 5 | B193: رجالة منال | C193: 2001-06-03 | D193: الغزوات | E193: أ | F193: م2 | G193: 2ت ر | H193: لباس | J193: اولاد الشارف مغنية | K193: السنة الثالثة ثانوي لغــــــــات أجنبية | L193: 181 | M193: //////
A194: 6 | B194: شارف نور الهدى | C194: 2001-03-08 | D194: مغنية | E194: أ | F194: م2 | G194: 2ت ر | H194: سيب | J194: اولاد الشارف | K194: السنة الثالثة ثانوي لغــــــــات أجنبية | L194: 183 | M194: //////
A195: 7 | B195: عبوين أسماء | C195: 2000-07-18 | D195: مغنية | E195: أ | F195: م2 | G195: 2ت ر | H195: يحي | J195: اولاد الشارف | K195: السنة الثالثة ثانوي لغــــــــات أجنبية | L195: 184 | M195: //////
A196: 8 | B196: لهباب رزق الله | C196: 2001-10-12 | D196: مغنية | E196: ذ | F196: ن1 | G196: 2ت ر | H196: عز الدين | J196: شارع15 ر04 حي القاضي | K196: السنة الثالثة ثانوي لغــــــــات أجنبية | L196: 187 | M196: //////
A197: 9 | B197: بلخروف عبد النور | C197: 2002-09-29 | D197: مغنية | E197: ذ | F197: م1 | G197: 2ت ر | H197: صالح | J197: حي النصر ، مغنية | K197: السنة الثالثة ثانوي أداب و فلســـــفة | L197: 174 | M197: //////
A198: 10 | B198: بوزار حمزة | C198: 2001-08-28 | D198: مغنية | E198: ذ | F198: م1 | G198: 2ت ر | H198: بوزار نعيمة | J198: قرية راس عصفور المصامدة | K198: السنة الثالثة ثانوي لغــــــــات أجنبية | L198: 176 | M198: //////
A199: 11 | B199: دربال محمد عبد الاله | C199: 2002-01-19 | D199: مغنية | E199: ذ | F199: خ1 | G199: 2ت ر | H199: سعيد | J199: حي بلال | K199: السنة الثالثة ثانوي لغــــــــات أجنبية | L199: 179 | M199: //////
A200: 12 | B200: زغودي صليحة | C200: 2000-07-27 | D200: مغنية | E200: أ | F200: م2 | G200: 2ت ر | H200: غوتي | J200: المصامدة | K200: السنة الثالثة ثانوي لغــــــــات أجنبية | L200: 182 | M200: //////
A201: 174 | B201: عرقوب أصالة | C201: 2001-10-17 | D201: مشرية | E201: أ | F201: م2 | G201: 2ت ر | H201: جمال | J201: المصامدة | K201: السنة الثالثة ثانوي لغــــــــات أجنبية | L201: 185 | M201: //////
A202: 176 | B202: غرفاتي خيرالدين | C202: 1999-03-13 | D202: مغنية | E202: ذ | F202: خ1 | G202: 2ت ر | H202: غرفاتي العيد | J202: حي الشهداء | K202: السنة الثالثة ثانوي لغــــــــات أجنبية | L202: 186 | M202: //////
A203: 179
A204: 182
A205: 185
A206: 186
A208: 188 | B208: الشيخ فرح | C208: 2001-11-15 | D208: مغنية | E208: أ | F208: م2 | G208: 2ع ت01 | H208: طيب | J208: قرية العقيد عباس | K208: السنة الثالثة ثانوي لغــــــــات أجنبية | L208: 188 | M208: //////
A209: 189 | B209: امحمدي بشرى | C209: 2000-05-04 | D209: مغنية | E209: أ | F209: ن2 | G209: 2ع ت01 | H209: امحمدي الشيخ | J209: قرية عقيد عباس | K209: السنة الثالثة ثانوي لغــــــــات أجنبية | L209: 189 | M209: //////
A210: 190 | B210: بختاوي نور شيماء | C210: 2001-10-03 | D210: مغنية | E210: أ | F210: خ2 | G210: 2ع ت01 | H210: عبد الحفيظ | J210: حي جابر رقم30 | K210: السنة الثالثة ثانوي لغــــــــات أجنبية | L210: 190 | M210: //////
A211: 191 | B211: بربيط سلاف | C211: 2001-08-17 | D211: مغنية | E211: أ | F211: م2 | G211: 2ع ت01 | H211: محمد | J211: قرية أولاد الشارف ، مغنية | K211: السنة الثالثة ثانوي لغــــــــات أجنبية | L211: 191 | M211: //////
... 356 more rows

Sheet التقرير اليومي
B1: الجمهورية الجزائرية الديمقراطية الشعبية | R1: مكان الحغظ | S1: اسم الملف
B2: وزارة التربية الوطنية | G2: التقرير اليومي للاستشارة | M2: 124 | R2: D:\Sep | S2: dim01
B3: مديرية التربية لولاية تلمسان
G4: الثلاثاء | J4: 2018-04-01 | M4: ثانوية الخوارزمي
B5: -1 | C5: مواظبة التلاميذ : | E5: الغيـــــــاب عن الدروس | M5: مغنية
B6: التعـداد | D6: التسجيلات | G6: الغائبـون | J6: ح س اليومي | K6: ح س الكلي | L6: عدد س الغياب | M6: نسبة غياب التلاميذ
D7: ذكور | E7: إناث | F7: المجموع | G7: ذكور | H7: إناث | I7: المجموع
B8: السنة الأولى ثانوي | D8: 112 | E8: 121 | F8: =SUM(D8:E8) -> 233 | G8: =COUNTIF(P63:P94,1) -> 0 | H8: =COUNTIF(P63:P94,2) -> 0 | I8: =SUM(G8:H8) -> 0 | J8: 52 | K8: =J8*F8 -> 12116 | L8: 26 | M8: =(L8/K8)*100 -> 0.2145922747 | N8: %
B9: السنة الثانية ثانوي | D9: 39 | E9: 86 | F9: =SUM(D9:E9) -> 125 | G9: =COUNTIF(Q63:Q94,1) -> 0 | H9: =COUNTIF(Q63:Q94,2) -> 0 | I9: =SUM(G9:H9) -> 0 | J9: 40 | K9: =J9*F9 -> 5000 | L9: 38 | M9: =(L9/K9)*100 -> 0.76 | N9: %
B10: السنة الثالثة ثانوي | D10: 71 | E10: 104 | F10: =SUM(D10:E10) -> 175 | G10: =COUNTIF(S63:S115,1) -> 0 | H10: =COUNTIF(R63:R117,2) -> 0 | I10: =SUM(G10:H10) -> 0 | J10: 46 | K10: =J10*F10 -> 8050 | L10: 107 | M10: =(L10/K10)*100 -> 1.329192547 | N10: %
B11: المجموع | D11: =SUM(D8:D10) -> 222 | E11: =SUM(E8:E10) -> 311 | F11: =SUM(D11:E11) -> 533 | G11: =SUM(G8:G10) -> 0 | H11: =SUM(H8:H10) -> 0 | I11: =SUM(G11:H11) -> 0 | J11: =SUM(J8:J10) -> 138 | K11: =SUM(K8:K10) -> 25166 | L11: =L8+L9+L10 -> 171 | M11: =(L11/K11)*100 -> 0.6794881984 | N11: %
E12: الغيـــــــاب في النظـام النصف داخلي
B13: التعـداد | D13: المسجلون | G13: الغائبـون | J13: ملاحظـــــــــات
D14: ذكور | E14: إناث | F14: المجموع | G14: ذكور | H14: إناث | I14: المجموع
B15: السنة الأولى ثانوي | D15: 85 | E15: 95 | F15: =SUM(D15:E15) -> 180 | G15: 3 | H15: 1 | I15: =SUM(G15:H15) -> 4
B16: السنة الثانية ثانوي | D16: 28 | E16: 66 | F16: =SUM(D16:E16) -> 94 | G16: 3 | H16: 1 | I16: =SUM(G16:H16) -> 4
B17: السنة الثالثة ثانوي | D17: 53 | E17: 71 | F17: =SUM(D17:E17) -> 124 | G17: 2 | H17: 4 | I17: =SUM(G17:H17) -> 6
B18: المجموع | D18: =SUM(D15:D17) -> 166 | E18: =SUM(E15:E17) -> 232 | F18: =SUM(D18:E18) -> 398 | G18: =SUM(G15:G17) -> 8 | H18: =SUM(H15:H17) -> 6 | I18: =SUM(G18:H18) -> 14 | J18: نسبة غياب التلاميذ | M18: =(I18/F18)*100 -> 3.51758794 | N18: %
B19: -2 | C19: حــــركة التلاميـــــذ
B20: الرقم | C20: الدخـــــــــــول | E20: رقم | F20: الخـــــــــــــــــــــروج | I20: رقم | J20: تغييـــــــــــــــــر الصـــــفة | N20: رقم | R20: 56
E21: البطاقة | I21: البطاقة | J21: ن د ــــــ خ | L21: خ ـــــــ ن د | N21: البطاقة
B22: 1 | R22: =SUM(R6:R21) -> 56
B23: 2
B24: 3
B25: -3 | C25: مواظبـــة الأساتذة :
B26: الرقم | C26: اللقب و الإسم | D26: المادة | E26: 08ـ09 | F26: 09ـ10 | G26: 10ـ11 | H26: 11ـ12 | I26: 14½-13½ | J26: 15½-14½ | K26: 16½-15½ | L26: 17½-16½ | M26: سبب الغياب | N26: ملاحظات
A27: 1 | B27: 1 | C27: =VLOOKUP(A27,tem,2,0) -> أ.ناسي | D27: =VLOOKUP(A27,tem,3,0) -> أ.الرياضيات | E27: =VLOOKUP(A27,tem,4,0) -> 0 | F27: =VLOOKUP(A27,tem,5,0) -> 0 | G27: =VLOOKUP(A27,tem,6,0) -> 3ت ر | H27: =VLOOKUP(A27,tem,7,0) -> 0 | I27: =VLOOKUP(A27,tem,8,0) -> 0 | J27: =VLOOKUP(A27,tem,9,0) -> 0 | K27: =VLOOKUP(A27,tem,10,0) -> 0 | L27: =VLOOKUP(A27,tem,11,0) -> 1ع1
A28: 3 | B28: 1 | C28: أ.بوعريشة | D28: أ.الرياضيات | E28: 0 | F28: 0 | G28: 0 | H28: 0 | I28: 0 | J28: 0 | K28: 0 | L28: 0
B29: 1
A30: 44 | B30: 1 | C30: أ.تربش | D30: أ.الرياضة | E30: 0 | F30: 0 | G30: 0 | H30: 0 | I30: 0 | J30: 0 | K30: 0 | L30: 0
B31: 1
A32: 5 | B32: 1 | C32: أ.ديب | D32: أ.الرياضيات | E32: 0 | F32: 0 | G32: 0 | H32: 0 | I32: 0 | J32: 0 | K32: 0 | L32: 0
B33: 1
B34: 1
B35: 1
B36: 1
B37: 1
B38: 1
B39: 1
B40: 1
B41: 1
B42: 1
B43: 1
B44: 1
B45: 1
B46: 1
B47: 1
B48: 1
B49: 1
B50: 1
B51: -4 | C51: غيابات و تأخرات مساعدي التربية و موطفي عقود ما قبل التشغيل
B52: الرقم | C52: اللقب و الإسم | E52: الفترة الصباحية | H52: الفترة المسائية | K52: ملاحظات | M52: سبب الغياب
B53: 1
B54: 2
B55: 3
B56: -5 | C56: تعويــض الدروس الضـــــائعــة
B57: الرقم | C57: اللقب و الإسم | D57: المادة | E57: القسم | G57: التوقيت | I57: ملاحظـــــــــــــــــات
B58: 1
B59: 2
B61: الغيــــــــابات اليومية | K61: =G4 -> الثلاثاء | M61: =J4 -> 2018-04-01
B62: الرقم | C62: السنة الأول | D62: القسم | E62: السنة الثانية | G62: القسم | H62: السنة الثالثة | J62: القسم | K62: قضايا سلــوكية
B63: 1 | C63: حدوشي محمد | D63: 1ع4 | E63: البهلول سناء | G63: 2أ ف | H63: برحيل وداد | J63: 3ع ت01 | O63: =IFERROR(VLOOKUP(D63,'أسماء التلاميذ'!$D$2:$E$20,2,0),"") -> Classe15 | P63: =IFERROR(VLOOKUP(G63,'أسماء التلاميذ'!$D$2:$E$20,2,0),"") -> Classe10 | Q63: =IFERROR(VLOOKUP(J63,'أسماء التلاميذ'!$D$2:$E$20,2,0),"") -> Classe2
B64: 2 | C64: بوزيان بلال | D64: 1ع3 | E64: بن زروق زينب سناء | G64: 2لغات | H64: بطيوي فرح | J64: 3ع ت02 | O64: =IFERROR(VLOOKUP(D64,'أسماء التلاميذ'!$D$2:$E$20,2,0),"") -> Classe14 | P64: =IFERROR(VLOOKUP(G64,'أسماء التلاميذ'!$D$2:$E$20,2,0),"") -> Classe11 | Q64: =IFERROR(VLOOKUP(J64,'أسماء التلاميذ'!$D$2:$E$20,2,0),"") -> Classe3
B65: 3 | C65: امحمدي بشرى | D65: 1أ2 | H65: العابد يسرى | J65: 3لغات | O65: =IFERROR(VLOOKUP(D65,'أسماء التلاميذ'!$D$2:$E$20,2,0),"") -> Classe18 | P65: =IFERROR(VLOOKUP(G65,'أسماء التلاميذ'!$D$2:$E$20,2,0),"") ->  | Q65: =IFERROR(VLOOKUP(J65,'أسماء التلاميذ'!$D$2:$E$20,2,0),"") -> Classe6
B66: 4 | C66: بن عبد الله فريال | D66: 1أ1 | O66: =IFERROR(VLOOKUP(D66,'أسماء التلاميذ'!$D$2:$E$20,2,0),"") -> Classe17 | P66: =IFERROR(VLOOKUP(G66,'أسماء التلاميذ'!$D$2:$E$20,2,0),"") ->  | Q66: =IFERROR(VLOOKUP(J66,'أسماء التلاميذ'!$D$2:$E$20,2,0),"") -> 
B67: 5 | C67: بلحسين أمين | D67: 1ع5 | O67: =IFERROR(VLOOKUP(D67,'أسماء التلاميذ'!$D$2:$E$20,2,0),"") -> Classe16 | P67: =IFERROR(VLOOKUP(G67,'أسماء التلاميذ'!$D$2:$E$20,2,0),"") ->  | Q67: =IFERROR(VLOOKUP(J67,'أسماء التلاميذ'!$D$2:$E$20,2,0),"") -> 
B68: 6 | C68: بن منصور حليمة | D68: 1ع2 | O68: =IFERROR(VLOOKUP(D68,'أسماء التلاميذ'!$D$2:$E$20,2,0),"") -> Classe13 | P68: =IFERROR(VLOOKUP(G68,'أسماء التلاميذ'!$D$2:$E$20,2,0),"") ->  | Q68: =IFERROR(VLOOKUP(J68,'أسماء التلاميذ'!$D$2:$E$20,2,0),"") -> 
B69: 7 | O69: =IFERROR(VLOOKUP(D69,'أسماء التلاميذ'!$D$2:$E$20,2,0),"") ->  | P69: =IFERROR(VLOOKUP(G69,'أسماء التلاميذ'!$D$2:$E$20,2,0),"") ->  | Q69: =IFERROR(VLOOKUP(J69,'أسماء التلاميذ'!$D$2:$E$20,2,0),"") -> 
B70: 8 | K70: الحوادث المدرسية : | O70: =IFERROR(VLOOKUP(D70,'أسماء التلاميذ'!$D$2:$E$20,2,0),"") ->  | P70: =IFERROR(VLOOKUP(G70,'أسماء التلاميذ'!$D$2:$E$20,2,0),"") ->  | Q70: =IFERROR(VLOOKUP(J70,'أسماء التلاميذ'!$D$2:$E$20,2,0),"") -> 
B71: 9 | O71: =IFERROR(VLOOKUP(D71,'أسماء التلاميذ'!$D$2:$E$20,2,0),"") ->  | P71: =IFERROR(VLOOKUP(G71,'أسماء التلاميذ'!$D$2:$E$20,2,0),"") ->  | Q71: =IFERROR(VLOOKUP(J71,'أسماء التلاميذ'!$D$2:$E$20,2,0),"") -> 
B72: 10 | O72: =IFERROR(VLOOKUP(D72,'أسماء التلاميذ'!$D$2:$E$20,2,0),"") ->  | P72: =IFERROR(VLOOKUP(G72,'أسماء التلاميذ'!$D$2:$E$20,2,0),"") ->  | Q72: =IFERROR(VLOOKUP(J72,'أسماء التلاميذ'!$D$2:$E$20,2,0),"") -> 
B73: 11 | O73: =IFERROR(VLOOKUP(D73,'أسماء التلاميذ'!$D$2:$E$20,2,0),"") ->  | P73: =IFERROR(VLOOKUP(G73,'أسماء التلاميذ'!$D$2:$E$20,2,0),"") ->  | Q73: =IFERROR(VLOOKUP(J73,'أسماء التلاميذ'!$D$2:$E$20,2,0),"") -> 
B74: 12 | K74: الصحة المدرسية : | O74: =IFERROR(VLOOKUP(D74,'أسماء التلاميذ'!$D$2:$E$20,2,0),"") ->  | P74: =IFERROR(VLOOKUP(G74,'أسماء التلاميذ'!$D$2:$E$20,2,0),"") ->  | Q74: =IFERROR(VLOOKUP(J74,'أسماء التلاميذ'!$D$2:$E$20,2,0),"") -> 
B75: 13 | O75: =IFERROR(VLOOKUP(D75,'أسماء التلاميذ'!$D$2:$E$20,2,0),"") ->  | P75: =IFERROR(VLOOKUP(G75,'أسماء التلاميذ'!$D$2:$E$20,2,0),"") ->  | Q75: =IFERROR(VLOOKUP(J75,'أسماء التلاميذ'!$D$2:$E$20,2,0),"") -> 
B76: 14 | O76: =IFERROR(VLOOKUP(D76,'أسماء التلاميذ'!$D$2:$E$20,2,0),"") ->  | P76: =IFERROR(VLOOKUP(G76,'أسماء التلاميذ'!$D$2:$E$20,2,0),"") ->  | Q76: =IFERROR(VLOOKUP(J76,'أسماء التلاميذ'!$D$2:$E$20,2,0),"") -> 
B77: 15 | O77: =IFERROR(VLOOKUP(D77,'أسماء التلاميذ'!$D$2:$E$20,2,0),"") ->  | P77: =IFERROR(VLOOKUP(G77,'أسماء التلاميذ'!$D$2:$E$20,2,0),"") ->  | Q77: =IFERROR(VLOOKUP(J77,'أسماء التلاميذ'!$D$2:$E$20,2,0),"") -> 
B78: 16 | O78: =IFERROR(VLOOKUP(D78,'أسماء التلاميذ'!$D$2:$E$20,2,0),"") ->  | P78: =IFERROR(VLOOKUP(G78,'أسماء التلاميذ'!$D$2:$E$20,2,0),"") ->  | Q78: =IFERROR(VLOOKUP(J78,'أسماء التلاميذ'!$D$2:$E$20,2,0),"") -> 
B79: 17 | O79: =IFERROR(VLOOKUP(D79,'أسماء التلاميذ'!$D$2:$E$20,2,0),"") ->  | P79: =IFERROR(VLOOKUP(G79,'أسماء التلاميذ'!$D$2:$E$20,2,0),"") ->  | Q79: =IFERROR(VLOOKUP(J79,'أسماء التلاميذ'!$D$2:$E$20,2,0),"") -> 
B80: 18 | O80: =IFERROR(VLOOKUP(D80,'أسماء التلاميذ'!$D$2:$E$20,2,0),"") ->  | P80: =IFERROR(VLOOKUP(G80,'أسماء التلاميذ'!$D$2:$E$20,2,0),"") ->  | Q80: =IFERROR(VLOOKUP(J80,'أسماء التلاميذ'!$D$2:$E$20,2,0),"") -> 
B81: 19 | O81: =IFERROR(VLOOKUP(D81,'أسماء التلاميذ'!$D$2:$E$20,2,0),"") ->  | P81: =IFERROR(VLOOKUP(G81,'أسماء التلاميذ'!$D$2:$E$20,2,0),"") ->  | Q81: =IFERROR(VLOOKUP(J81,'أسماء التلاميذ'!$D$2:$E$20,2,0),"") -> 
B82: 20 | K82: ملاحظات مختلفة : | O82: =IFERROR(VLOOKUP(D82,'أسماء التلاميذ'!$D$2:$E$20,2,0),"") ->  | P82: =IFERROR(VLOOKUP(G82,'أسماء التلاميذ'!$D$2:$E$20,2,0),"") ->  | Q82: =IFERROR(VLOOKUP(J82,'أسماء التلاميذ'!$D$2:$E$20,2,0),"") -> 
B83: 21 | O83: =IFERROR(VLOOKUP(D83,'أسماء التلاميذ'!$D$2:$E$20,2,0),"") ->  | P83: =IFERROR(VLOOKUP(G83,'أسماء التلاميذ'!$D$2:$E$20,2,0),"") ->  | Q83: =IFERROR(VLOOKUP(J83,'أسماء التلاميذ'!$D$2:$E$20,2,0),"") -> 
B84: 22 | O84: =IFERROR(VLOOKUP(D84,'أسماء التلاميذ'!$D$2:$E$20,2,0),"") ->  | P84: =IFERROR(VLOOKUP(G84,'أسماء التلاميذ'!$D$2:$E$20,2,0),"") ->  | Q84: =IFERROR(VLOOKUP(J84,'أسماء التلاميذ'!$D$2:$E$20,2,0),"") -> 
B85: 23 | O85: =IFERROR(VLOOKUP(D85,'أسماء التلاميذ'!$D$2:$E$20,2,0),"") ->  | P85: =IFERROR(VLOOKUP(G85,'أسماء التلاميذ'!$D$2:$E$20,2,0),"") ->  | Q85: =IFERROR(VLOOKUP(J85,'أسماء التلاميذ'!$D$2:$E$20,2,0),"") -> 
B86: 24 | O86: =IFERROR(VLOOKUP(D86,'أسماء التلاميذ'!$D$2:$E$20,2,0),"") ->  | P86: =IFERROR(VLOOKUP(G86,'أسماء التلاميذ'!$D$2:$E$20,2,0),"") ->  | Q86: =IFERROR(VLOOKUP(J86,'أسماء التلاميذ'!$D$2:$E$20,2,0),"") -> 
B87: 25 | O87: =IFERROR(VLOOKUP(D87,'أسماء التلاميذ'!$D$2:$E$20,2,0),"") ->  | P87: =IFERROR(VLOOKUP(G87,'أسماء التلاميذ'!$D$2:$E$20,2,0),"") ->  | Q87: =IFERROR(VLOOKUP(J87,'أسماء التلاميذ'!$D$2:$E$20,2,0),"") -> 
B88: 26 | O88: =IFERROR(VLOOKUP(D88,'أسماء التلاميذ'!$D$2:$E$20,2,0),"") ->  | P88: =IFERROR(VLOOKUP(G88,'أسماء التلاميذ'!$D$2:$E$20,2,0),"") ->  | Q88: =IFERROR(VLOOKUP(J88,'أسماء التلاميذ'!$D$2:$E$20,2,0),"") -> 
B89: 27 | K89: ندوات - مجالس - زيارات | O89: =IFERROR(VLOOKUP(D89,'أسماء التلاميذ'!$D$2:$E$20,2,0),"") ->  | P89: =IFERROR(VLOOKUP(G89,'أسماء التلاميذ'!$D$2:$E$20,2,0),"") ->  | Q89: =IFERROR(VLOOKUP(J89,'أسماء التلاميذ'!$D$2:$E$20,2,0),"") -> 
B90: 28 | O90: =IFERROR(VLOOKUP(D90,'أسماء التلاميذ'!$D$2:$E$20,2,0),"") ->  | P90: =IFERROR(VLOOKUP(G90,'أسماء التلاميذ'!$D$2:$E$20,2,0),"") ->  | Q90: =IFERROR(VLOOKUP(J90,'أسماء التلاميذ'!$D$2:$E$20,2,0),"") -> 
B91: 29 | O91: =IFERROR(VLOOKUP(D91,'أسماء التلاميذ'!$D$2:$E$20,2,0),"") ->  | P91: =IFERROR(VLOOKUP(G91,'أسماء التلاميذ'!$D$2:$E$20,2,0),"") ->  | Q91: =IFERROR(VLOOKUP(J91,'أسماء التلاميذ'!$D$2:$E$20,2,0),"") -> 
B92: 30 | O92: =IFERROR(VLOOKUP(D92,'أسماء التلاميذ'!$D$2:$E$20,2,0),"") ->  | P92: =IFERROR(VLOOKUP(G92,'أسماء التلاميذ'!$D$2:$E$20,2,0),"") ->  | Q92: =IFERROR(VLOOKUP(J92,'أسماء التلاميذ'!$D$2:$E$20,2,0),"") -> 
B93: 31 | O93: =IFERROR(VLOOKUP(D93,'أسماء التلاميذ'!$D$2:$E$20,2,0),"") ->  | P93: =IFERROR(VLOOKUP(G93,'أسماء التلاميذ'!$D$2:$E$20,2,0),"") ->  | Q93: =IFERROR(VLOOKUP(J93,'أسماء التلاميذ'!$D$2:$E$20,2,0),"") -> 
B94: 32 | O94: =IFERROR(VLOOKUP(D94,'أسماء التلاميذ'!$D$2:$E$20,2,0),"") ->  | P94: =IFERROR(VLOOKUP(G94,'أسماء التلاميذ'!$D$2:$E$20,2,0),"") ->  | Q94: =IFERROR(VLOOKUP(J94,'أسماء التلاميذ'!$D$2:$E$20,2,0),"") -> 
B95: 33 | O95: =IFERROR(VLOOKUP(D95,'أسماء التلاميذ'!$D$2:$E$20,2,0),"") ->  | P95: =IFERROR(VLOOKUP(G95,'أسماء التلاميذ'!$D$2:$E$20,2,0),"") ->  | Q95: =IFERROR(VLOOKUP(J95,'أسماء التلاميذ'!$D$2:$E$20,2,0),"") -> 
B96: 34 | K96: شهادة مدرسية | M96: العدد : | O96: =IFERROR(VLOOKUP(D96,'أسماء التلاميذ'!$D$2:$E$20,2,0),"") ->  | P96: =IFERROR(VLOOKUP(G96,'أسماء التلاميذ'!$D$2:$E$20,2,0),"") ->  | Q96: =IFERROR(VLOOKUP(J96,'أسماء التلاميذ'!$D$2:$E$20,2,0),"") -> 
B97: 35 | K97: من | M97: الــى | O97: =IFERROR(VLOOKUP(D97,'أسماء التلاميذ'!$D$2:$E$20,2,0),"") ->  | P97: =IFERROR(VLOOKUP(G97,'أسماء التلاميذ'!$D$2:$E$20,2,0),"") ->  | Q97: =IFERROR(VLOOKUP(J97,'أسماء التلاميذ'!$D$2:$E$20,2,0),"") -> 
B98: 36 | O98: =IFERROR(VLOOKUP(D98,'أسماء التلاميذ'!$D$2:$E$20,2,0),"") ->  | P98: =IFERROR(VLOOKUP(G98,'أسماء التلاميذ'!$D$2:$E$20,2,0),"") ->  | Q98: =IFERROR(VLOOKUP(J98,'أسماء التلاميذ'!$D$2:$E$20,2,0),"") -> 
B99: 37 | K99: ملاحظات السيد الناظــر | O99: =IFERROR(VLOOKUP(D99,'أسماء التلاميذ'!$D$2:$E$20,2,0),"") ->  | P99: =IFERROR(VLOOKUP(G99,'أسماء التلاميذ'!$D$2:$E$20,2,0),"") ->  | Q99: =IFERROR(VLOOKUP(J99,'أسماء التلاميذ'!$D$2:$E$20,2,0),"") -> 
B100: 38 | O100: =IFERROR(VLOOKUP(D100,'أسماء التلاميذ'!$D$2:$E$20,2,0),"") ->  | P100: =IFERROR(VLOOKUP(G100,'أسماء التلاميذ'!$D$2:$E$20,2,0),"") ->  | Q100: =IFERROR(VLOOKUP(J100,'أسماء التلاميذ'!$D$2:$E$20,2,0),"") -> 
B101: 39 | O101: =IFERROR(VLOOKUP(D101,'أسماء التلاميذ'!$D$2:$E$20,2,0),"") ->  | P101: =IFERROR(VLOOKUP(G101,'أسماء التلاميذ'!$D$2:$E$20,2,0),"") ->  | Q101: =IFERROR(VLOOKUP(J101,'أسماء التلاميذ'!$D$2:$E$20,2,0),"") -> 
B102: 40 | O102: =IFERROR(VLOOKUP(D102,'أسماء التلاميذ'!$D$2:$E$20,2,0),"") ->  | P102: =IFERROR(VLOOKUP(G102,'أسماء التلاميذ'!$D$2:$E$20,2,0),"") ->  | Q102: =IFERROR(VLOOKUP(J102,'أسماء التلاميذ'!$D$2:$E$20,2,0),"") -> 
C103: مستشار التربية | L103: الناظر
E106: الثلاثاء
E107: 08ـ09 | F107: 09ـ10 | G107: 10ـ11 | H107: 11ـ12 | I107: 14½-13½ | J107: 15½-14½ | K107: 16½-15½ | L107: 17½-16½
B108: 1 | C108: أ.ناسي | D108: أ.الرياضيات | G108: 3ت ر | L108: 1ع1
B109: 2 | C109: أ.بوطوبة | D109: أ.الرياضيات
B110: 3 | C110: أ.بوعريشة | D110: أ.الرياضيات
B111: 4 | C111: أ.قبلي | D111: أ.الرياضيات
B112: 5 | C112: أ.ديب | D112: أ.الرياضيات
B113: 6 | C113: أ.عشماوي | D113: أ.الفيزياء
B114: 7 | C114: أ.حاجب | D114: أ.الفيزياء
B115: 8 | C115: قوراري | D115: أ.الفيزياء
B116: 9 | C116: أ.ناضور | D116: أ.الفيزياء
B117: 10 | C117: أ.زرار | D117: أ.الفيزياء
B118: 11 | C118: أ.براهمي | D118: أ.ع الطبيعية
B119: 12 | C119: أ.لعشب | D119: أ.ع الطبيعية
B120: 13 | C120: أ.درني | D120: أ.ع الطبيعية
B121: 14 | C121: أ.فراج | D121: أ.ع الطبيعية
B122: 15 | C122: أ.كريب | D122: أ,الأدب العربي
B123: 16 | C123: أ.صبيان | D123: أ,الأدب العربي
B124: 17 | C124: أ.قادري | D124: أ,الأدب العربي
B125: 18 | C125: أ.أعطا الله | D125: أ,الأدب العربي
B126: 19 | C126: أ.قعاد | D126: أ,الأدب العربي
B127: 20 | C127: أ.قان | D127: أ.الاجتماعيات
B128: 21 | C128: أ.سواريت | D128: أ.الاجتماعيات
B129: 22 | C129: أ.صفراوي | D129: أ.الاجتماعيات
B130: 23 | C130: أ.أجد | D130: أ.الاجتماعيات
B131: 24 | C131: أ.بوحاجب/و | D131: أ.ع الإسلامية
B132: 25 | C132: أ.بوزياني | D132: أ.ع الإسلامية
B133: 26 | C133: أ.عزيز | D133: أ.الفلسفة
B134: 27 | C134: أ.زقاي | D134: أ.الفلسفة
B135: 28 | C135: أ.رابحي | D135: أ.الفرنسية
B136: 29 | C136: أ.كوليلي | D136: أ.الفرنسية
B137: 30 | C137: أ.بومانة | D137: أ.الفرنسية
B138: 31 | C138: أ.عباد | D138: أ.الفرنسية
B139: 32 | C139: أ.العرباوي | D139: أ.الانجليزية
B140: 33 | C140: أ.معزوز | D140: أ.الانجليزية
B141: 34 | C141: أ.مزاري | D141: أ.الانجليزية
B142: 35 | C142: أ.شنتوف | D142: أ.الانجليزية
B143: 36 | C143: أ.سيفاني | D143: أ.الاسبانية
B144: 37 | C144: أ.زغودي | D144: أ.التكنولوجيا
B145: 38 | C145: أ.موس | D145: أ.التكنولوجيا
B146: 39 | C146: أ.بوهنة | D146: أ.التكنولوجيا
B147: 40 | C147: أ.نوار | D147: أ.المعلوماتية
B148: 41 | C148: أ.بوشيخي | D148: أ.الاقتصاد
B149: 42 | C149: أ.فارس | D149: أ.الاقتصاد
B150: 43 | C150: أ.لقبوري | D150: أ.الرياضة
B151: 44 | C151: أ.تربش | D151: أ.الرياضة
B152: 45 | C152: أ.كحلون | D152: أ.الرياضة

Sheet أسماء التلاميذ (hidden)
B1: أسماء التلاميذ
A2: =IFERROR(VLOOKUP(C2,$D$2:$E$20,2,0),"") -> Classe1 | B2: =IFERROR(IF(ROWS($B$2:B2)>'بينات التلاميد'!$Q$5,"",INDEX('بينات التلاميد'!$B$5:$B$584,SMALL(IF('بينات التلاميد'!$B$5:$B$584<>"",ROW('بينات التلاميد'!$B$5:$B$584)-ROW($B$5)+1),ROWS($B$2:B2)))),"") -> امحمدي بشرى | C2: =IFERROR(VLOOKUP(B2,'بينات التلاميد'!$B$5:$G$584,6,0),"") -> 3ت ر | D2: 3ت ر | E2: Classe1
A3: Classe1 | B3: =IFERROR(IF(ROWS($B$2:B3)>'بينات التلاميد'!$Q$5,"",INDEX('بينات التلاميد'!$B$5:$B$584,SMALL(IF('بينات التلاميد'!$B$5:$B$584<>"",ROW('بينات التلاميد'!$B$5:$B$584)-ROW($B$5)+1),ROWS($B$2:B3)))),"") -> أوكيلي دنيا | C3: =IFERROR(VLOOKUP(B3,'بينات التلاميد'!$B$5:$G$584,6,0),"") -> 3ت ر | D3: 3ع ت01 | E3: Classe2
A4: Classe1 | B4: =IFERROR(IF(ROWS($B$2:B4)>'بينات التلاميد'!$Q$5,"",INDEX('بينات التلاميد'!$B$5:$B$584,SMALL(IF('بينات التلاميد'!$B$5:$B$584<>"",ROW('بينات التلاميد'!$B$5:$B$584)-ROW($B$5)+1),ROWS($B$2:B4)))),"") -> برودي بشرى | C4: =IFERROR(VLOOKUP(B4,'بينات التلاميد'!$B$5:$G$584,6,0),"") -> 3ت ر | D4: 3ع ت02 | E4: Classe3
A5: Classe1 | B5: =IFERROR(IF(ROWS($B$2:B5)>'بينات التلاميد'!$Q$5,"",INDEX('بينات التلاميد'!$B$5:$B$584,SMALL(IF('بينات التلاميد'!$B$5:$B$584<>"",ROW('بينات التلاميد'!$B$5:$B$584)-ROW($B$5)+1),ROWS($B$2:B5)))),"") -> بلميمون ابتسام | C5: =IFERROR(VLOOKUP(B5,'بينات التلاميد'!$B$5:$G$584,6,0),"") -> 3ت ر | D5: 3ت إ | E5: Classe4
A6: Classe1 | B6: =IFERROR(IF(ROWS($B$2:B6)>'بينات التلاميد'!$Q$5,"",INDEX('بينات التلاميد'!$B$5:$B$584,SMALL(IF('بينات التلاميد'!$B$5:$B$584<>"",ROW('بينات التلاميد'!$B$5:$B$584)-ROW($B$5)+1),ROWS($B$2:B6)))),"") -> بوعناني أيمن | C6: =IFERROR(VLOOKUP(B6,'بينات التلاميد'!$B$5:$G$584,6,0),"") -> 3ت ر | D6: 3أ ف | E6: Classe5
A7: Classe1 | B7: =IFERROR(IF(ROWS($B$2:B7)>'بينات التلاميد'!$Q$5,"",INDEX('بينات التلاميد'!$B$5:$B$584,SMALL(IF('بينات التلاميد'!$B$5:$B$584<>"",ROW('بينات التلاميد'!$B$5:$B$584)-ROW($B$5)+1),ROWS($B$2:B7)))),"") -> تابتي فاطنة | C7: =IFERROR(VLOOKUP(B7,'بينات التلاميد'!$B$5:$G$584,6,0),"") -> 3ت ر | D7: 3لغات | E7: Classe6
A8: Classe1 | B8: =IFERROR(IF(ROWS($B$2:B8)>'بينات التلاميد'!$Q$5,"",INDEX('بينات التلاميد'!$B$5:$B$584,SMALL(IF('بينات التلاميد'!$B$5:$B$584<>"",ROW('بينات التلاميد'!$B$5:$B$584)-ROW($B$5)+1),ROWS($B$2:B8)))),"") -> حمادي أمحمد عماد | C8: =IFERROR(VLOOKUP(B8,'بينات التلاميد'!$B$5:$G$584,6,0),"") -> 3ت ر | D8: 2ع ت01 | E8: Classe7
A9: Classe1 | B9: =IFERROR(IF(ROWS($B$2:B9)>'بينات التلاميد'!$Q$5,"",INDEX('بينات التلاميد'!$B$5:$B$584,SMALL(IF('بينات التلاميد'!$B$5:$B$584<>"",ROW('بينات التلاميد'!$B$5:$B$584)-ROW($B$5)+1),ROWS($B$2:B9)))),"") -> دخيسي عثمان | C9: =IFERROR(VLOOKUP(B9,'بينات التلاميد'!$B$5:$G$584,6,0),"") -> 3ت ر | D9: 2ع ت02 | E9: Classe8
A10: Classe1 | B10: =IFERROR(IF(ROWS($B$2:B10)>'بينات التلاميد'!$Q$5,"",INDEX('بينات التلاميد'!$B$5:$B$584,SMALL(IF('بينات التلاميد'!$B$5:$B$584<>"",ROW('بينات التلاميد'!$B$5:$B$584)-ROW($B$5)+1),ROWS($B$2:B10)))),"") -> زناقي شريفة | C10: =IFERROR(VLOOKUP(B10,'بينات التلاميد'!$B$5:$G$584,6,0),"") -> 3ت ر | D10: 2ت إ | E10: Classe9
A11: Classe1 | B11: =IFERROR(IF(ROWS($B$2:B11)>'بينات التلاميد'!$Q$5,"",INDEX('بينات التلاميد'!$B$5:$B$584,SMALL(IF('بينات التلاميد'!$B$5:$B$584<>"",ROW('بينات التلاميد'!$B$5:$B$584)-ROW($B$5)+1),ROWS($B$2:B11)))),"") -> طوالة بهاء الدين | C11: =IFERROR(VLOOKUP(B11,'بينات التلاميد'!$B$5:$G$584,6,0),"") -> 3ت ر | D11: 2أ ف | E11: Classe10
A12: Classe1 | B12: =IFERROR(IF(ROWS($B$2:B12)>'بينات التلاميد'!$Q$5,"",INDEX('بينات التلاميد'!$B$5:$B$584,SMALL(IF('بينات التلاميد'!$B$5:$B$584<>"",ROW('بينات التلاميد'!$B$5:$B$584)-ROW($B$5)+1),ROWS($B$2:B12)))),"") -> قادري رابح صغير أمين | C12: =IFERROR(VLOOKUP(B12,'بينات التلاميد'!$B$5:$G$584,6,0),"") -> 3ت ر | D12: 2لغات | E12: Classe11
A13: Classe1 | B13: =IFERROR(IF(ROWS($B$2:B13)>'بينات التلاميد'!$Q$5,"",INDEX('بينات التلاميد'!$B$5:$B$584,SMALL(IF('بينات التلاميد'!$B$5:$B$584<>"",ROW('بينات التلاميد'!$B$5:$B$584)-ROW($B$5)+1),ROWS($B$2:B13)))),"") -> مرغاد إلياس | C13: =IFERROR(VLOOKUP(B13,'بينات التلاميد'!$B$5:$G$584,6,0),"") -> 3ت ر | D13: 2ت ر | E13: Classe19
A14: Classe1 | B14: =IFERROR(IF(ROWS($B$2:B14)>'بينات التلاميد'!$Q$5,"",INDEX('بينات التلاميد'!$B$5:$B$584,SMALL(IF('بينات التلاميد'!$B$5:$B$584<>"",ROW('بينات التلاميد'!$B$5:$B$584)-ROW($B$5)+1),ROWS($B$2:B14)))),"") -> مزاري أيمن | C14: =IFERROR(VLOOKUP(B14,'بينات التلاميد'!$B$5:$G$584,6,0),"") -> 3ت ر | D14: 1ع1 | E14: Classe12
A15: Classe1 | B15: =IFERROR(IF(ROWS($B$2:B15)>'بينات التلاميد'!$Q$5,"",INDEX('بينات التلاميد'!$B$5:$B$584,SMALL(IF('بينات التلاميد'!$B$5:$B$584<>"",ROW('بينات التلاميد'!$B$5:$B$584)-ROW($B$5)+1),ROWS($B$2:B15)))),"") -> منصور إيمان دينا زاد | C15: =IFERROR(VLOOKUP(B15,'بينات التلاميد'!$B$5:$G$584,6,0),"") -> 3ت ر | D15: 1ع2 | E15: Classe13
A16: Classe1 | B16: =IFERROR(IF(ROWS($B$2:B16)>'بينات التلاميد'!$Q$5,"",INDEX('بينات التلاميد'!$B$5:$B$584,SMALL(IF('بينات التلاميد'!$B$5:$B$584<>"",ROW('بينات التلاميد'!$B$5:$B$584)-ROW($B$5)+1),ROWS($B$2:B16)))),"") -> منصوري المهدي | C16: =IFERROR(VLOOKUP(B16,'بينات التلاميد'!$B$5:$G$584,6,0),"") -> 3ت ر | D16: 1ع3 | E16: Classe14
A17: Classe1 | B17: =IFERROR(IF(ROWS($B$2:B17)>'بينات التلاميد'!$Q$5,"",INDEX('بينات التلاميد'!$B$5:$B$584,SMALL(IF('بينات التلاميد'!$B$5:$B$584<>"",ROW('بينات التلاميد'!$B$5:$B$584)-ROW($B$5)+1),ROWS($B$2:B17)))),"") -> بلعالية محمد الأمين | C17: =IFERROR(VLOOKUP(B17,'بينات التلاميد'!$B$5:$G$584,6,0),"") -> 3ت ر | D17: 1ع4 | E17: Classe15
A18: Classe1 | B18: =IFERROR(IF(ROWS($B$2:B18)>'بينات التلاميد'!$Q$5,"",INDEX('بينات التلاميد'!$B$5:$B$584,SMALL(IF('بينات التلاميد'!$B$5:$B$584<>"",ROW('بينات التلاميد'!$B$5:$B$584)-ROW($B$5)+1),ROWS($B$2:B18)))),"") -> حماد محمد الأمين | C18: =IFERROR(VLOOKUP(B18,'بينات التلاميد'!$B$5:$G$584,6,0),"") -> 3ت ر | D18: 1ع5 | E18: Classe16
A19: Classe1 | B19: =IFERROR(IF(ROWS($B$2:B19)>'بينات التلاميد'!$Q$5,"",INDEX('بينات التلاميد'!$B$5:$B$584,SMALL(IF('بينات التلاميد'!$B$5:$B$584<>"",ROW('بينات التلاميد'!$B$5:$B$584)-ROW($B$5)+1),ROWS($B$2:B19)))),"") -> سكران عبد الهادي | C19: =IFERROR(VLOOKUP(B19,'بينات التلاميد'!$B$5:$G$584,6,0),"") -> 3ت ر | D19: 1أ1 | E19: Classe17
A20: Classe1 | B20: =IFERROR(IF(ROWS($B$2:B20)>'بينات التلاميد'!$Q$5,"",INDEX('بينات التلاميد'!$B$5:$B$584,SMALL(IF('بينات التلاميد'!$B$5:$B$584<>"",ROW('بينات التلاميد'!$B$5:$B$584)-ROW($B$5)+1),ROWS($B$2:B20)))),"") -> مزاري عبد الله | C20: =IFERROR(VLOOKUP(B20,'بينات التلاميد'!$B$5:$G$584,6,0),"") -> 3ت ر | D20: 1أ2 | E20: Classe18
A21: Classe1 | B21: =IFERROR(IF(ROWS($B$2:B21)>'بينات التلاميد'!$Q$5,"",INDEX('بينات التلاميد'!$B$5:$B$584,SMALL(IF('بينات التلاميد'!$B$5:$B$584<>"",ROW('بينات التلاميد'!$B$5:$B$584)-ROW($B$5)+1),ROWS($B$2:B21)))),"") -> موسى أيوب | C21: =IFERROR(VLOOKUP(B21,'بينات التلاميد'!$B$5:$G$584,6,0),"") -> 3ت ر
A22: Classe1 | B22: =IFERROR(IF(ROWS($B$2:B22)>'بينات التلاميد'!$Q$5,"",INDEX('بينات التلاميد'!$B$5:$B$584,SMALL(IF('بينات التلاميد'!$B$5:$B$584<>"",ROW('بينات التلاميد'!$B$5:$B$584)-ROW($B$5)+1),ROWS($B$2:B22)))),"") -> هداجي أمير يونس | C22: =IFERROR(VLOOKUP(B22,'بينات التلاميد'!$B$5:$G$584,6,0),"") -> 3ت ر
A23: Classe1 | B23: =IFERROR(IF(ROWS($B$2:B23)>'بينات التلاميد'!$Q$5,"",INDEX('بينات التلاميد'!$B$5:$B$584,SMALL(IF('بينات التلاميد'!$B$5:$B$584<>"",ROW('بينات التلاميد'!$B$5:$B$584)-ROW($B$5)+1),ROWS($B$2:B23)))),"") -> وادفل سارة | C23: =IFERROR(VLOOKUP(B23,'بينات التلاميد'!$B$5:$G$584,6,0),"") -> 3ت ر
A24: Classe2 | B24: =IFERROR(IF(ROWS($B$2:B24)>'بينات التلاميد'!$Q$5,"",INDEX('بينات التلاميد'!$B$5:$B$584,SMALL(IF('بينات التلاميد'!$B$5:$B$584<>"",ROW('بينات التلاميد'!$B$5:$B$584)-ROW($B$5)+1),ROWS($B$2:B24)))),"") -> برحيل وداد | C24: =IFERROR(VLOOKUP(B24,'بينات التلاميد'!$B$5:$G$584,6,0),"") -> 3ع ت01
A25: Classe2 | B25: =IFERROR(IF(ROWS($B$2:B25)>'بينات التلاميد'!$Q$5,"",INDEX('بينات التلاميد'!$B$5:$B$584,SMALL(IF('بينات التلاميد'!$B$5:$B$584<>"",ROW('بينات التلاميد'!$B$5:$B$584)-ROW($B$5)+1),ROWS($B$2:B25)))),"") -> بعوش مريم | C25: =IFERROR(VLOOKUP(B25,'بينات التلاميد'!$B$5:$G$584,6,0),"") -> 3ع ت01
A26: Classe2 | B26: =IFERROR(IF(ROWS($B$2:B26)>'بينات التلاميد'!$Q$5,"",INDEX('بينات التلاميد'!$B$5:$B$584,SMALL(IF('بينات التلاميد'!$B$5:$B$584<>"",ROW('بينات التلاميد'!$B$5:$B$584)-ROW($B$5)+1),ROWS($B$2:B26)))),"") -> بلحسن حسين | C26: =IFERROR(VLOOKUP(B26,'بينات التلاميد'!$B$5:$G$584,6,0),"") -> 3ع ت01
A27: Classe2 | B27: =IFERROR(IF(ROWS($B$2:B27)>'بينات التلاميد'!$Q$5,"",INDEX('بينات التلاميد'!$B$5:$B$584,SMALL(IF('بينات التلاميد'!$B$5:$B$584<>"",ROW('بينات التلاميد'!$B$5:$B$584)-ROW($B$5)+1),ROWS($B$2:B27)))),"") -> بوزيان بلال | C27: =IFERROR(VLOOKUP(B27,'بينات التلاميد'!$B$5:$G$584,6,0),"") -> 3ع ت01
A28: Classe2 | B28: =IFERROR(IF(ROWS($B$2:B28)>'بينات التلاميد'!$Q$5,"",INDEX('بينات التلاميد'!$B$5:$B$584,SMALL(IF('بينات التلاميد'!$B$5:$B$584<>"",ROW('بينات التلاميد'!$B$5:$B$584)-ROW($B$5)+1),ROWS($B$2:B28)))),"") -> تابتي لخضر | C28: =IFERROR(VLOOKUP(B28,'بينات التلاميد'!$B$5:$G$584,6,0),"") -> 3ع ت01
A29: Classe2 | B29: =IFERROR(IF(ROWS($B$2:B29)>'بينات التلاميد'!$Q$5,"",INDEX('بينات التلاميد'!$B$5:$B$584,SMALL(IF('بينات التلاميد'!$B$5:$B$584<>"",ROW('بينات التلاميد'!$B$5:$B$584)-ROW($B$5)+1),ROWS($B$2:B29)))),"") -> تواتي نادية | C29: =IFERROR(VLOOKUP(B29,'بينات التلاميد'!$B$5:$G$584,6,0),"") -> 3ع ت01
A30: Classe2 | B30: =IFERROR(IF(ROWS($B$2:B30)>'بينات التلاميد'!$Q$5,"",INDEX('بينات التلاميد'!$B$5:$B$584,SMALL(IF('بينات التلاميد'!$B$5:$B$584<>"",ROW('بينات التلاميد'!$B$5:$B$584)-ROW($B$5)+1),ROWS($B$2:B30)))),"") -> جزيري محمد | C30: =IFERROR(VLOOKUP(B30,'بينات التلاميد'!$B$5:$G$584,6,0),"") -> 3ع ت01
A31: Classe2 | B31: =IFERROR(IF(ROWS($B$2:B31)>'بينات التلاميد'!$Q$5,"",INDEX('بينات التلاميد'!$B$5:$B$584,SMALL(IF('بينات التلاميد'!$B$5:$B$584<>"",ROW('بينات التلاميد'!$B$5:$B$584)-ROW($B$5)+1),ROWS($B$2:B31)))),"") -> حميدي أسية | C31: =IFERROR(VLOOKUP(B31,'بينات التلاميد'!$B$5:$G$584,6,0),"") -> 3ع ت01
A32: Classe2 | B32: =IFERROR(IF(ROWS($B$2:B32)>'بينات التلاميد'!$Q$5,"",INDEX('بينات التلاميد'!$B$5:$B$584,SMALL(IF('بينات التلاميد'!$B$5:$B$584<>"",ROW('بينات التلاميد'!$B$5:$B$584)-ROW($B$5)+1),ROWS($B$2:B32)))),"") -> خاطر منال | C32: =IFERROR(VLOOKUP(B32,'بينات التلاميد'!$B$5:$G$584,6,0),"") -> 3ع ت01
A33: Classe2 | B33: =IFERROR(IF(ROWS($B$2:B33)>'بينات التلاميد'!$Q$5,"",INDEX('بينات التلاميد'!$B$5:$B$584,SMALL(IF('بينات التلاميد'!$B$5:$B$584<>"",ROW('بينات التلاميد'!$B$5:$B$584)-ROW($B$5)+1),ROWS($B$2:B33)))),"") -> خروبي فاطنة | C33: =IFERROR(VLOOKUP(B33,'بينات التلاميد'!$B$5:$G$584,6,0),"") -> 3ع ت01
A34: Classe2 | B34: =IFERROR(IF(ROWS($B$2:B34)>'بينات التلاميد'!$Q$5,"",INDEX('بينات التلاميد'!$B$5:$B$584,SMALL(IF('بينات التلاميد'!$B$5:$B$584<>"",ROW('بينات التلاميد'!$B$5:$B$584)-ROW($B$5)+1),ROWS($B$2:B34)))),"") -> داود رامي كمال الدين | C34: =IFERROR(VLOOKUP(B34,'بينات التلاميد'!$B$5:$G$584,6,0),"") -> 3ع ت01
A35: Classe2 | B35: =IFERROR(IF(ROWS($B$2:B35)>'بينات التلاميد'!$Q$5,"",INDEX('بينات التلاميد'!$B$5:$B$584,SMALL(IF('بينات التلاميد'!$B$5:$B$584<>"",ROW('بينات التلاميد'!$B$5:$B$584)-ROW($B$5)+1),ROWS($B$2:B35)))),"") -> دمامن محمد | C35: =IFERROR(VLOOKUP(B35,'بينات التلاميد'!$B$5:$G$584,6,0),"") -> 3ع ت01
A36: Classe2 | B36: =IFERROR(IF(ROWS($B$2:B36)>'بينات التلاميد'!$Q$5,"",INDEX('بينات التلاميد'!$B$5:$B$584,SMALL(IF('بينات التلاميد'!$B$5:$B$584<>"",ROW('بينات التلاميد'!$B$5:$B$584)-ROW($B$5)+1),ROWS($B$2:B36)))),"") -> زيني محمد بلال | C36: =IFERROR(VLOOKUP(B36,'بينات التلاميد'!$B$5:$G$584,6,0),"") -> 3ع ت01
A37: Classe2 | B37: =IFERROR(IF(ROWS($B$2:B37)>'بينات التلاميد'!$Q$5,"",INDEX('بينات التلاميد'!$B$5:$B$584,SMALL(IF('بينات التلاميد'!$B$5:$B$584<>"",ROW('بينات التلاميد'!$B$5:$B$584)-ROW($B$5)+1),ROWS($B$2:B37)))),"") -> صدوقي صالح | C37: =IFERROR(VLOOKUP(B37,'بينات التلاميد'!$B$5:$G$584,6,0),"") -> 3ع ت01
A38: Classe2 | B38: =IFERROR(IF(ROWS($B$2:B38)>'بينات التلاميد'!$Q$5,"",INDEX('بينات التلاميد'!$B$5:$B$584,SMALL(IF('بينات التلاميد'!$B$5:$B$584<>"",ROW('بينات التلاميد'!$B$5:$B$584)-ROW($B$5)+1),ROWS($B$2:B38)))),"") -> ضيف الله محمد الشريف | C38: =IFERROR(VLOOKUP(B38,'بينات التلاميد'!$B$5:$G$584,6,0),"") -> 3ع ت01
A39: Classe2 | B39: =IFERROR(IF(ROWS($B$2:B39)>'بينات التلاميد'!$Q$5,"",INDEX('بينات التلاميد'!$B$5:$B$584,SMALL(IF('بينات التلاميد'!$B$5:$B$584<>"",ROW('بينات التلاميد'!$B$5:$B$584)-ROW($B$5)+1),ROWS($B$2:B39)))),"") -> طاهي نهال فاطمة الزهراء | C39: =IFERROR(VLOOKUP(B39,'بينات التلاميد'!$B$5:$G$584,6,0),"") -> 3ع ت01
A40: Classe2 | B40: =IFERROR(IF(ROWS($B$2:B40)>'بينات التلاميد'!$Q$5,"",INDEX('بينات التلاميد'!$B$5:$B$584,SMALL(IF('بينات التلاميد'!$B$5:$B$584<>"",ROW('بينات التلاميد'!$B$5:$B$584)-ROW($B$5)+1),ROWS($B$2:B40)))),"") -> عبد النبي زكية | C40: =IFERROR(VLOOKUP(B40,'بينات التلاميد'!$B$5:$G$584,6,0),"") -> 3ع ت01
A41: Classe2 | B41: =IFERROR(IF(ROWS($B$2:B41)>'بينات التلاميد'!$Q$5,"",INDEX('بينات التلاميد'!$B$5:$B$584,SMALL(IF('بينات التلاميد'!$B$5:$B$584<>"",ROW('بينات التلاميد'!$B$5:$B$584)-ROW($B$5)+1),ROWS($B$2:B41)))),"") -> عرقوب عبد اللطيف | C41: =IFERROR(VLOOKUP(B41,'بينات التلاميد'!$B$5:$G$584,6,0),"") -> 3ع ت01
A42: Classe2 | B42: =IFERROR(IF(ROWS($B$2:B42)>'بينات التلاميد'!$Q$5,"",INDEX('بينات التلاميد'!$B$5:$B$584,SMALL(IF('بينات التلاميد'!$B$5:$B$584<>"",ROW('بينات التلاميد'!$B$5:$B$584)-ROW($B$5)+1),ROWS($B$2:B42)))),"") -> عميرات وليد | C42: =IFERROR(VLOOKUP(B42,'بينات التلاميد'!$B$5:$G$584,6,0),"") -> 3ع ت01
A43: Classe2 | B43: =IFERROR(IF(ROWS($B$2:B43)>'بينات التلاميد'!$Q$5,"",INDEX('بينات التلاميد'!$B$5:$B$584,SMALL(IF('بينات التلاميد'!$B$5:$B$584<>"",ROW('بينات التلاميد'!$B$5:$B$584)-ROW($B$5)+1),ROWS($B$2:B43)))),"") -> قاشور محمد شعيب | C43: =IFERROR(VLOOKUP(B43,'بينات التلاميد'!$B$5:$G$584,6,0),"") -> 3ع ت01
A44: Classe2 | B44: =IFERROR(IF(ROWS($B$2:B44)>'بينات التلاميد'!$Q$5,"",INDEX('بينات التلاميد'!$B$5:$B$584,SMALL(IF('بينات التلاميد'!$B$5:$B$584<>"",ROW('بينات التلاميد'!$B$5:$B$584)-ROW($B$5)+1),ROWS($B$2:B44)))),"") -> كلاليش منال | C44: =IFERROR(VLOOKUP(B44,'بينات التلاميد'!$B$5:$G$584,6,0),"") -> 3ع ت01
A45: Classe2 | B45: =IFERROR(IF(ROWS($B$2:B45)>'بينات التلاميد'!$Q$5,"",INDEX('بينات التلاميد'!$B$5:$B$584,SMALL(IF('بينات التلاميد'!$B$5:$B$584<>"",ROW('بينات التلاميد'!$B$5:$B$584)-ROW($B$5)+1),ROWS($B$2:B45)))),"") -> لكحل عماد | C45: =IFERROR(VLOOKUP(B45,'بينات التلاميد'!$B$5:$G$584,6,0),"") -> 3ع ت01
A46: Classe2 | B46: =IFERROR(IF(ROWS($B$2:B46)>'بينات التلاميد'!$Q$5,"",INDEX('بينات التلاميد'!$B$5:$B$584,SMALL(IF('بينات التلاميد'!$B$5:$B$584<>"",ROW('بينات التلاميد'!$B$5:$B$584)-ROW($B$5)+1),ROWS($B$2:B46)))),"") -> مزاري دنيا زاد | C46: =IFERROR(VLOOKUP(B46,'بينات التلاميد'!$B$5:$G$584,6,0),"") -> 3ع ت01
A47: Classe2 | B47: =IFERROR(IF(ROWS($B$2:B47)>'بينات التلاميد'!$Q$5,"",INDEX('بينات التلاميد'!$B$5:$B$584,SMALL(IF('بينات التلاميد'!$B$5:$B$584<>"",ROW('بينات التلاميد'!$B$5:$B$584)-ROW($B$5)+1),ROWS($B$2:B47)))),"") -> مزيان يسرى نورالهدى | C47: =IFERROR(VLOOKUP(B47,'بينات التلاميد'!$B$5:$G$584,6,0),"") -> 3ع ت01
A48: Classe2 | B48: =IFERROR(IF(ROWS($B$2:B48)>'بينات التلاميد'!$Q$5,"",INDEX('بينات التلاميد'!$B$5:$B$584,SMALL(IF('بينات التلاميد'!$B$5:$B$584<>"",ROW('بينات التلاميد'!$B$5:$B$584)-ROW($B$5)+1),ROWS($B$2:B48)))),"") -> هاملي سماح | C48: =IFERROR(VLOOKUP(B48,'بينات التلاميد'!$B$5:$G$584,6,0),"") -> 3ع ت01
A49: Classe3 | B49: =IFERROR(IF(ROWS($B$2:B49)>'بينات التلاميد'!$Q$5,"",INDEX('بينات التلاميد'!$B$5:$B$584,SMALL(IF('بينات التلاميد'!$B$5:$B$584<>"",ROW('بينات التلاميد'!$B$5:$B$584)-ROW($B$5)+1),ROWS($B$2:B49)))),"") -> العرباوي محمد عبد الإله | C49: =IFERROR(VLOOKUP(B49,'بينات التلاميد'!$B$5:$G$584,6,0),"") -> 3ع ت02
A50: Classe3 | B50: =IFERROR(IF(ROWS($B$2:B50)>'بينات التلاميد'!$Q$5,"",INDEX('بينات التلاميد'!$B$5:$B$584,SMALL(IF('بينات التلاميد'!$B$5:$B$584<>"",ROW('بينات التلاميد'!$B$5:$B$584)-ROW($B$5)+1),ROWS($B$2:B50)))),"") -> القرمة محمد رياض | C50: =IFERROR(VLOOKUP(B50,'بينات التلاميد'!$B$5:$G$584,6,0),"") -> 3ع ت02
A51: Classe3 | B51: =IFERROR(IF(ROWS($B$2:B51)>'بينات التلاميد'!$Q$5,"",INDEX('بينات التلاميد'!$B$5:$B$584,SMALL(IF('بينات التلاميد'!$B$5:$B$584<>"",ROW('بينات التلاميد'!$B$5:$B$584)-ROW($B$5)+1),ROWS($B$2:B51)))),"") -> بطيوي فرح | C51: =IFERROR(VLOOKUP(B51,'بينات التلاميد'!$B$5:$G$584,6,0),"") -> 3ع ت02
A52: Classe3 | B52: =IFERROR(IF(ROWS($B$2:B52)>'بينات التلاميد'!$Q$5,"",INDEX('بينات التلاميد'!$B$5:$B$584,SMALL(IF('بينات التلاميد'!$B$5:$B$584<>"",ROW('بينات التلاميد'!$B$5:$B$584)-ROW($B$5)+1),ROWS($B$2:B52)))),"") -> بن براهيم شهرزاد | C52: =IFERROR(VLOOKUP(B52,'بينات التلاميد'!$B$5:$G$584,6,0),"") -> 3ع ت02
A53: Classe3 | B53: =IFERROR(IF(ROWS($B$2:B53)>'بينات التلاميد'!$Q$5,"",INDEX('بينات التلاميد'!$B$5:$B$584,SMALL(IF('بينات التلاميد'!$B$5:$B$584<>"",ROW('بينات التلاميد'!$B$5:$B$584)-ROW($B$5)+1),ROWS($B$2:B53)))),"") -> بن زغادي مروى | C53: =IFERROR(VLOOKUP(B53,'بينات التلاميد'!$B$5:$G$584,6,0),"") -> 3ع ت02
A54: Classe3 | B54: =IFERROR(IF(ROWS($B$2:B54)>'بينات التلاميد'!$Q$5,"",INDEX('بينات التلاميد'!$B$5:$B$584,SMALL(IF('بينات التلاميد'!$B$5:$B$584<>"",ROW('بينات التلاميد'!$B$5:$B$584)-ROW($B$5)+1),ROWS($B$2:B54)))),"") -> بن زغادي هديل | C54: =IFERROR(VLOOKUP(B54,'بينات التلاميد'!$B$5:$G$584,6,0),"") -> 3ع ت02
A55: Classe3 | B55: =IFERROR(IF(ROWS($B$2:B55)>'بينات التلاميد'!$Q$5,"",INDEX('بينات التلاميد'!$B$5:$B$584,SMALL(IF('بينات التلاميد'!$B$5:$B$584<>"",ROW('بينات التلاميد'!$B$5:$B$584)-ROW($B$5)+1),ROWS($B$2:B55)))),"") -> بن سالم نجوى | C55: =IFERROR(VLOOKUP(B55,'بينات التلاميد'!$B$5:$G$584,6,0),"") -> 3ع ت02
A56: Classe3 | B56: =IFERROR(IF(ROWS($B$2:B56)>'بينات التلاميد'!$Q$5,"",INDEX('بينات التلاميد'!$B$5:$B$584,SMALL(IF('بينات التلاميد'!$B$5:$B$584<>"",ROW('بينات التلاميد'!$B$5:$B$584)-ROW($B$5)+1),ROWS($B$2:B56)))),"") -> بن علي نور الايمان | C56: =IFERROR(VLOOKUP(B56,'بينات التلاميد'!$B$5:$G$584,6,0),"") -> 3ع ت02
A57: Classe3 | B57: =IFERROR(IF(ROWS($B$2:B57)>'بينات التلاميد'!$Q$5,"",INDEX('بينات التلاميد'!$B$5:$B$584,SMALL(IF('بينات التلاميد'!$B$5:$B$584<>"",ROW('بينات التلاميد'!$B$5:$B$584)-ROW($B$5)+1),ROWS($B$2:B57)))),"") -> بوزي فتحي | C57: =IFERROR(VLOOKUP(B57,'بينات التلاميد'!$B$5:$G$584,6,0),"") -> 3ع ت02
A58: Classe3 | B58: =IFERROR(IF(ROWS($B$2:B58)>'بينات التلاميد'!$Q$5,"",INDEX('بينات التلاميد'!$B$5:$B$584,SMALL(IF('بينات التلاميد'!$B$5:$B$584<>"",ROW('بينات التلاميد'!$B$5:$B$584)-ROW($B$5)+1),ROWS($B$2:B58)))),"") -> حجيمي شروق | C58: =IFERROR(VLOOKUP(B58,'بينات التلاميد'!$B$5:$G$584,6,0),"") -> 3ع ت02
A59: Classe3 | B59: =IFERROR(IF(ROWS($B$2:B59)>'بينات التلاميد'!$Q$5,"",INDEX('بينات التلاميد'!$B$5:$B$584,SMALL(IF('بينات التلاميد'!$B$5:$B$584<>"",ROW('بينات التلاميد'!$B$5:$B$584)-ROW($B$5)+1),ROWS($B$2:B59)))),"") -> زيتوني محمد الأمين | C59: =IFERROR(VLOOKUP(B59,'بينات التلاميد'!$B$5:$G$584,6,0),"") -> 3ع ت02
A60: Classe3 | B60: =IFERROR(IF(ROWS($B$2:B60)>'بينات التلاميد'!$Q$5,"",INDEX('بينات التلاميد'!$B$5:$B$584,SMALL(IF('بينات التلاميد'!$B$5:$B$584<>"",ROW('بينات التلاميد'!$B$5:$B$584)-ROW($B$5)+1),ROWS($B$2:B60)))),"") -> سبيع الواسيني | C60: =IFERROR(VLOOKUP(B60,'بينات التلاميد'!$B$5:$G$584,6,0),"") -> 3ع ت02
A61: Classe3 | B61: =IFERROR(IF(ROWS($B$2:B61)>'بينات التلاميد'!$Q$5,"",INDEX('بينات التلاميد'!$B$5:$B$584,SMALL(IF('بينات التلاميد'!$B$5:$B$584<>"",ROW('بينات التلاميد'!$B$5:$B$584)-ROW($B$5)+1),ROWS($B$2:B61)))),"") -> شارف شيماء | C61: =IFERROR(VLOOKUP(B61,'بينات التلاميد'!$B$5:$G$584,6,0),"") -> 3ع ت02
A62: Classe3 | B62: =IFERROR(IF(ROWS($B$2:B62)>'بينات التلاميد'!$Q$5,"",INDEX('بينات التلاميد'!$B$5:$B$584,SMALL(IF('بينات التلاميد'!$B$5:$B$584<>"",ROW('بينات التلاميد'!$B$5:$B$584)-ROW($B$5)+1),ROWS($B$2:B62)))),"") -> شقرون مريم | C62: =IFERROR(VLOOKUP(B62,'بينات التلاميد'!$B$5:$G$584,6,0),"") -> 3ع ت02
A63: Classe3 | B63: =IFERROR(IF(ROWS($B$2:B63)>'بينات التلاميد'!$Q$5,"",INDEX('بينات التلاميد'!$B$5:$B$584,SMALL(IF('بينات التلاميد'!$B$5:$B$584<>"",ROW('بينات التلاميد'!$B$5:$B$584)-ROW($B$5)+1),ROWS($B$2:B63)))),"") -> شقرون هبة الرحمن | C63: =IFERROR(VLOOKUP(B63,'بينات التلاميد'!$B$5:$G$584,6,0),"") -> 3ع ت02
A64: Classe3 | B64: =IFERROR(IF(ROWS($B$2:B64)>'بينات التلاميد'!$Q$5,"",INDEX('بينات التلاميد'!$B$5:$B$584,SMALL(IF('بينات التلاميد'!$B$5:$B$584<>"",ROW('بينات التلاميد'!$B$5:$B$584)-ROW($B$5)+1),ROWS($B$2:B64)))),"") -> عبد اللاهي حياة | C64: =IFERROR(VLOOKUP(B64,'بينات التلاميد'!$B$5:$G$584,6,0),"") -> 3ع ت02
A65: Classe3 | B65: =IFERROR(IF(ROWS($B$2:B65)>'بينات التلاميد'!$Q$5,"",INDEX('بينات التلاميد'!$B$5:$B$584,SMALL(IF('بينات التلاميد'!$B$5:$B$584<>"",ROW('بينات التلاميد'!$B$5:$B$584)-ROW($B$5)+1),ROWS($B$2:B65)))),"") -> عبو محمد | C65: =IFERROR(VLOOKUP(B65,'بينات التلاميد'!$B$5:$G$584,6,0),"") -> 3ع ت02
A66: =IFERROR(VLOOKUP(C66,$D$2:$E$20,2,0),"") -> Classe3 | B66: =IFERROR(IF(ROWS($B$2:B66)>'بينات التلاميد'!$Q$5,"",INDEX('بينات التلاميد'!$B$5:$B$584,SMALL(IF('بينات التلاميد'!$B$5:$B$584<>"",ROW('بينات التلاميد'!$B$5:$B$584)-ROW($B$5)+1),ROWS($B$2:B66)))),"") -> قزوي ياسين | C66: =IFERROR(VLOOKUP(B66,'بينات التلاميد'!$B$5:$G$584,6,0),"") -> 3ع ت02
A67: Classe3 | B67: =IFERROR(IF(ROWS($B$2:B67)>'بينات التلاميد'!$Q$5,"",INDEX('بينات التلاميد'!$B$5:$B$584,SMALL(IF('بينات التلاميد'!$B$5:$B$584<>"",ROW('بينات التلاميد'!$B$5:$B$584)-ROW($B$5)+1),ROWS($B$2:B67)))),"") -> لزعر مروى | C67: =IFERROR(VLOOKUP(B67,'بينات التلاميد'!$B$5:$G$584,6,0),"") -> 3ع ت02
A68: Classe3 | B68: =IFERROR(IF(ROWS($B$2:B68)>'بينات التلاميد'!$Q$5,"",INDEX('بينات التلاميد'!$B$5:$B$584,SMALL(IF('بينات التلاميد'!$B$5:$B$584<>"",ROW('بينات التلاميد'!$B$5:$B$584)-ROW($B$5)+1),ROWS($B$2:B68)))),"") -> مزاري إبراهيم | C68: =IFERROR(VLOOKUP(B68,'بينات التلاميد'!$B$5:$G$584,6,0),"") -> 3ع ت02
A69: Classe3 | B69: =IFERROR(IF(ROWS($B$2:B69)>'بينات التلاميد'!$Q$5,"",INDEX('بينات التلاميد'!$B$5:$B$584,SMALL(IF('بينات التلاميد'!$B$5:$B$584<>"",ROW('بينات التلاميد'!$B$5:$B$584)-ROW($B$5)+1),ROWS($B$2:B69)))),"") -> مزاري خديجة | C69: =IFERROR(VLOOKUP(B69,'بينات التلاميد'!$B$5:$G$584,6,0),"") -> 3ع ت02
A70: Classe3 | B70: =IFERROR(IF(ROWS($B$2:B70)>'بينات التلاميد'!$Q$5,"",INDEX('بينات التلاميد'!$B$5:$B$584,SMALL(IF('بينات التلاميد'!$B$5:$B$584<>"",ROW('بينات التلاميد'!$B$5:$B$584)-ROW($B$5)+1),ROWS($B$2:B70)))),"") -> منور فريال عبير | C70: =IFERROR(VLOOKUP(B70,'بينات التلاميد'!$B$5:$G$584,6,0),"") -> 3ع ت02
A71: Classe3 | B71: =IFERROR(IF(ROWS($B$2:B71)>'بينات التلاميد'!$Q$5,"",INDEX('بينات التلاميد'!$B$5:$B$584,SMALL(IF('بينات التلاميد'!$B$5:$B$584<>"",ROW('بينات التلاميد'!$B$5:$B$584)-ROW($B$5)+1),ROWS($B$2:B71)))),"") -> هواري رجاء | C71: =IFERROR(VLOOKUP(B71,'بينات التلاميد'!$B$5:$G$584,6,0),"") -> 3ع ت02
A72: Classe3 | B72: =IFERROR(IF(ROWS($B$2:B72)>'بينات التلاميد'!$Q$5,"",INDEX('بينات التلاميد'!$B$5:$B$584,SMALL(IF('بينات التلاميد'!$B$5:$B$584<>"",ROW('بينات التلاميد'!$B$5:$B$584)-ROW($B$5)+1),ROWS($B$2:B72)))),"") -> واسطي أيمن | C72: =IFERROR(VLOOKUP(B72,'بينات التلاميد'!$B$5:$G$584,6,0),"") -> 3ع ت02
A73: Classe4 | B73: =IFERROR(IF(ROWS($B$2:B73)>'بينات التلاميد'!$Q$5,"",INDEX('بينات التلاميد'!$B$5:$B$584,SMALL(IF('بينات التلاميد'!$B$5:$B$584<>"",ROW('بينات التلاميد'!$B$5:$B$584)-ROW($B$5)+1),ROWS($B$2:B73)))),"") -> أمبارك فايزة | C73: =IFERROR(VLOOKUP(B73,'بينات التلاميد'!$B$5:$G$584,6,0),"") -> 3ت إ
A74: Classe4 | B74: =IFERROR(IF(ROWS($B$2:B74)>'بينات التلاميد'!$Q$5,"",INDEX('بينات التلاميد'!$B$5:$B$584,SMALL(IF('بينات التلاميد'!$B$5:$B$584<>"",ROW('بينات التلاميد'!$B$5:$B$584)-ROW($B$5)+1),ROWS($B$2:B74)))),"") -> أير مقران عائشة صبرينة | C74: =IFERROR(VLOOKUP(B74,'بينات التلاميد'!$B$5:$G$584,6,0),"") -> 3ت إ
A75: Classe4 | B75: =IFERROR(IF(ROWS($B$2:B75)>'بينات التلاميد'!$Q$5,"",INDEX('بينات التلاميد'!$B$5:$B$584,SMALL(IF('بينات التلاميد'!$B$5:$B$584<>"",ROW('بينات التلاميد'!$B$5:$B$584)-ROW($B$5)+1),ROWS($B$2:B75)))),"") -> العياطي إسلام | C75: =IFERROR(VLOOKUP(B75,'بينات التلاميد'!$B$5:$G$584,6,0),"") -> 3ت إ
A76: Classe4 | B76: =IFERROR(IF(ROWS($B$2:B76)>'بينات التلاميد'!$Q$5,"",INDEX('بينات التلاميد'!$B$5:$B$584,SMALL(IF('بينات التلاميد'!$B$5:$B$584<>"",ROW('بينات التلاميد'!$B$5:$B$584)-ROW($B$5)+1),ROWS($B$2:B76)))),"") -> بسويعة صباح | C76: =IFERROR(VLOOKUP(B76,'بينات التلاميد'!$B$5:$G$584,6,0),"") -> 3ت إ
A77: Classe4 | B77: =IFERROR(IF(ROWS($B$2:B77)>'بينات التلاميد'!$Q$5,"",INDEX('بينات التلاميد'!$B$5:$B$584,SMALL(IF('بينات التلاميد'!$B$5:$B$584<>"",ROW('بينات التلاميد'!$B$5:$B$584)-ROW($B$5)+1),ROWS($B$2:B77)))),"") -> بن زعتر محمد الواسيني | C77: =IFERROR(VLOOKUP(B77,'بينات التلاميد'!$B$5:$G$584,6,0),"") -> 3ت إ
A78: Classe4 | B78: =IFERROR(IF(ROWS($B$2:B78)>'بينات التلاميد'!$Q$5,"",INDEX('بينات التلاميد'!$B$5:$B$584,SMALL(IF('بينات التلاميد'!$B$5:$B$584<>"",ROW('بينات التلاميد'!$B$5:$B$584)-ROW($B$5)+1),ROWS($B$2:B78)))),"") -> بن ساحة جيلالي | C78: =IFERROR(VLOOKUP(B78,'بينات التلاميد'!$B$5:$G$584,6,0),"") -> 3ت إ
A79: Classe4 | B79: =IFERROR(IF(ROWS($B$2:B79)>'بينات التلاميد'!$Q$5,"",INDEX('بينات التلاميد'!$B$5:$B$584,SMALL(IF('بينات التلاميد'!$B$5:$B$584<>"",ROW('بينات التلاميد'!$B$5:$B$584)-ROW($B$5)+1),ROWS($B$2:B79)))),"") -> بن عابد سارة | C79: =IFERROR(VLOOKUP(B79,'بينات التلاميد'!$B$5:$G$584,6,0),"") -> 3ت إ
A80: Classe4 | B80: =IFERROR(IF(ROWS($B$2:B80)>'بينات التلاميد'!$Q$5,"",INDEX('بينات التلاميد'!$B$5:$B$584,SMALL(IF('بينات التلاميد'!$B$5:$B$584<>"",ROW('بينات التلاميد'!$B$5:$B$584)-ROW($B$5)+1),ROWS($B$2:B80)))),"") -> بن موسى وردة | C80: =IFERROR(VLOOKUP(B80,'بينات التلاميد'!$B$5:$G$584,6,0),"") -> 3ت إ
A81: Classe4 | B81: =IFERROR(IF(ROWS($B$2:B81)>'بينات التلاميد'!$Q$5,"",INDEX('بينات التلاميد'!$B$5:$B$584,SMALL(IF('بينات التلاميد'!$B$5:$B$584<>"",ROW('بينات التلاميد'!$B$5:$B$584)-ROW($B$5)+1),ROWS($B$2:B81)))),"") -> بوزاهري إكرام | C81: =IFERROR(VLOOKUP(B81,'بينات التلاميد'!$B$5:$G$584,6,0),"") -> 3ت إ
A82: Classe4 | B82: =IFERROR(IF(ROWS($B$2:B82)>'بينات التلاميد'!$Q$5,"",INDEX('بينات التلاميد'!$B$5:$B$584,SMALL(IF('بينات التلاميد'!$B$5:$B$584<>"",ROW('بينات التلاميد'!$B$5:$B$584)-ROW($B$5)+1),ROWS($B$2:B82)))),"") -> بوشيخي شرف الدين | C82: =IFERROR(VLOOKUP(B82,'بينات التلاميد'!$B$5:$G$584,6,0),"") -> 3ت إ
A83: Classe4 | B83: =IFERROR(IF(ROWS($B$2:B83)>'بينات التلاميد'!$Q$5,"",INDEX('بينات التلاميد'!$B$5:$B$584,SMALL(IF('بينات التلاميد'!$B$5:$B$584<>"",ROW('بينات التلاميد'!$B$5:$B$584)-ROW($B$5)+1),ROWS($B$2:B83)))),"") -> بوماجر يوسف | C83: =IFERROR(VLOOKUP(B83,'بينات التلاميد'!$B$5:$G$584,6,0),"") -> 3ت إ
A84: Classe4 | B84: =IFERROR(IF(ROWS($B$2:B84)>'بينات التلاميد'!$Q$5,"",INDEX('بينات التلاميد'!$B$5:$B$584,SMALL(IF('بينات التلاميد'!$B$5:$B$584<>"",ROW('بينات التلاميد'!$B$5:$B$584)-ROW($B$5)+1),ROWS($B$2:B84)))),"") -> ترنان شرف الدين | C84: =IFERROR(VLOOKUP(B84,'بينات التلاميد'!$B$5:$G$584,6,0),"") -> 3ت إ
A85: Classe4 | B85: =IFERROR(IF(ROWS($B$2:B85)>'بينات التلاميد'!$Q$5,"",INDEX('بينات التلاميد'!$B$5:$B$584,SMALL(IF('بينات التلاميد'!$B$5:$B$584<>"",ROW('بينات التلاميد'!$B$5:$B$584)-ROW($B$5)+1),ROWS($B$2:B85)))),"") -> حمادي عبد الجليل | C85: =IFERROR(VLOOKUP(B85,'بينات التلاميد'!$B$5:$G$584,6,0),"") -> 3ت إ
A86: Classe4 | B86: =IFERROR(IF(ROWS($B$2:B86)>'بينات التلاميد'!$Q$5,"",INDEX('بينات التلاميد'!$B$5:$B$584,SMALL(IF('بينات التلاميد'!$B$5:$B$584<>"",ROW('بينات التلاميد'!$B$5:$B$584)-ROW($B$5)+1),ROWS($B$2:B86)))),"") -> حمدوني إناس | C86: =IFERROR(VLOOKUP(B86,'بينات التلاميد'!$B$5:$G$584,6,0),"") -> 3ت إ
A87: Classe4 | B87: =IFERROR(IF(ROWS($B$2:B87)>'بينات التلاميد'!$Q$5,"",INDEX('بينات التلاميد'!$B$5:$B$584,SMALL(IF('بينات التلاميد'!$B$5:$B$584<>"",ROW('بينات التلاميد'!$B$5:$B$584)-ROW($B$5)+1),ROWS($B$2:B87)))),"") -> خاليد هشام | C87: =IFERROR(VLOOKUP(B87,'بينات التلاميد'!$B$5:$G$584,6,0),"") -> 3ت إ
A88: Classe4 | B88: =IFERROR(IF(ROWS($B$2:B88)>'بينات التلاميد'!$Q$5,"",INDEX('بينات التلاميد'!$B$5:$B$584,SMALL(IF('بينات التلاميد'!$B$5:$B$584<>"",ROW('بينات التلاميد'!$B$5:$B$584)-ROW($B$5)+1),ROWS($B$2:B88)))),"") -> خثير أمينة | C88: =IFERROR(VLOOKUP(B88,'بينات التلاميد'!$B$5:$G$584,6,0),"") -> 3ت إ
A89: Classe4 | B89: =IFERROR(IF(ROWS($B$2:B89)>'بينات التلاميد'!$Q$5,"",INDEX('بينات التلاميد'!$B$5:$B$584,SMALL(IF('بينات التلاميد'!$B$5:$B$584<>"",ROW('بينات التلاميد'!$B$5:$B$584)-ROW($B$5)+1),ROWS($B$2:B89)))),"") -> خلوفي وليد | C89: =IFERROR(VLOOKUP(B89,'بينات التلاميد'!$B$5:$G$584,6,0),"") -> 3ت إ
A90: Classe4 | B90: =IFERROR(IF(ROWS($B$2:B90)>'بينات التلاميد'!$Q$5,"",INDEX('بينات التلاميد'!$B$5:$B$584,SMALL(IF('بينات التلاميد'!$B$5:$B$584<>"",ROW('بينات التلاميد'!$B$5:$B$584)-ROW($B$5)+1),ROWS($B$2:B90)))),"") -> خليد هاجر | C90: =IFERROR(VLOOKUP(B90,'بينات التلاميد'!$B$5:$G$584,6,0),"") -> 3ت إ
A91: Classe4 | B91: =IFERROR(IF(ROWS($B$2:B91)>'بينات التلاميد'!$Q$5,"",INDEX('بينات التلاميد'!$B$5:$B$584,SMALL(IF('بينات التلاميد'!$B$5:$B$584<>"",ROW('بينات التلاميد'!$B$5:$B$584)-ROW($B$5)+1),ROWS($B$2:B91)))),"") -> ديب أحمد طاع الله | C91: =IFERROR(VLOOKUP(B91,'بينات التلاميد'!$B$5:$G$584,6,0),"") -> 3ت إ
A92: Classe4 | B92: =IFERROR(IF(ROWS($B$2:B92)>'بينات التلاميد'!$Q$5,"",INDEX('بينات التلاميد'!$B$5:$B$584,SMALL(IF('بينات التلاميد'!$B$5:$B$584<>"",ROW('بينات التلاميد'!$B$5:$B$584)-ROW($B$5)+1),ROWS($B$2:B92)))),"") -> راجعي يوسف | C92: =IFERROR(VLOOKUP(B92,'بينات التلاميد'!$B$5:$G$584,6,0),"") -> 3ت إ
A93: Classe4 | B93: =IFERROR(IF(ROWS($B$2:B93)>'بينات التلاميد'!$Q$5,"",INDEX('بينات التلاميد'!$B$5:$B$584,SMALL(IF('بينات التلاميد'!$B$5:$B$584<>"",ROW('بينات التلاميد'!$B$5:$B$584)-ROW($B$5)+1),ROWS($B$2:B93)))),"") -> زرقاني عبد الرحيم | C93: =IFERROR(VLOOKUP(B93,'بينات التلاميد'!$B$5:$G$584,6,0),"") -> 3ت إ
A94: Classe4 | B94: =IFERROR(IF(ROWS($B$2:B94)>'بينات التلاميد'!$Q$5,"",INDEX('بينات التلاميد'!$B$5:$B$584,SMALL(IF('بينات التلاميد'!$B$5:$B$584<>"",ROW('بينات التلاميد'!$B$5:$B$584)-ROW($B$5)+1),ROWS($B$2:B94)))),"") -> ساعد نسرين | C94: =IFERROR(VLOOKUP(B94,'بينات التلاميد'!$B$5:$G$584,6,0),"") -> 3ت إ
A95: Classe4 | B95: =IFERROR(IF(ROWS($B$2:B95)>'بينات التلاميد'!$Q$5,"",INDEX('بينات التلاميد'!$B$5:$B$584,SMALL(IF('بينات التلاميد'!$B$5:$B$584<>"",ROW('بينات التلاميد'!$B$5:$B$584)-ROW($B$5)+1),ROWS($B$2:B95)))),"") -> شباب عبد الوهاب | C95: =IFERROR(VLOOKUP(B95,'بينات التلاميد'!$B$5:$G$584,6,0),"") -> 3ت إ
A96: Classe4 | B96: =IFERROR(IF(ROWS($B$2:B96)>'بينات التلاميد'!$Q$5,"",INDEX('بينات التلاميد'!$B$5:$B$584,SMALL(IF('بينات التلاميد'!$B$5:$B$584<>"",ROW('بينات التلاميد'!$B$5:$B$584)-ROW($B$5)+1),ROWS($B$2:B96)))),"") -> شقرون منال | C96: =IFERROR(VLOOKUP(B96,'بينات التلاميد'!$B$5:$G$584,6,0),"") -> 3ت إ
A97: Classe4 | B97: =IFERROR(IF(ROWS($B$2:B97)>'بينات التلاميد'!$Q$5,"",INDEX('بينات التلاميد'!$B$5:$B$584,SMALL(IF('بينات التلاميد'!$B$5:$B$584<>"",ROW('بينات التلاميد'!$B$5:$B$584)-ROW($B$5)+1),ROWS($B$2:B97)))),"") -> صديقي أمينة شيماء | C97: =IFERROR(VLOOKUP(B97,'بينات التلاميد'!$B$5:$G$584,6,0),"") -> 3ت إ
A98: Classe4 | B98: =IFERROR(IF(ROWS($B$2:B98)>'بينات التلاميد'!$Q$5,"",INDEX('بينات التلاميد'!$B$5:$B$584,SMALL(IF('بينات التلاميد'!$B$5:$B$584<>"",ROW('بينات التلاميد'!$B$5:$B$584)-ROW($B$5)+1),ROWS($B$2:B98)))),"") -> ضيف بن أعمر | C98: =IFERROR(VLOOKUP(B98,'بينات التلاميد'!$B$5:$G$584,6,0),"") -> 3ت إ
A99: Classe4 | B99: =IFERROR(IF(ROWS($B$2:B99)>'بينات التلاميد'!$Q$5,"",INDEX('بينات التلاميد'!$B$5:$B$584,SMALL(IF('بينات التلاميد'!$B$5:$B$584<>"",ROW('بينات التلاميد'!$B$5:$B$584)-ROW($B$5)+1),ROWS($B$2:B99)))),"") -> ضيف عماد الدين | C99: =IFERROR(VLOOKUP(B99,'بينات التلاميد'!$B$5:$G$584,6,0),"") -> 3ت إ
A100: Classe4 | B100: =IFERROR(IF(ROWS($B$2:B100)>'بينات التلاميد'!$Q$5,"",INDEX('بينات التلاميد'!$B$5:$B$584,SMALL(IF('بينات التلاميد'!$B$5:$B$584<>"",ROW('بينات التلاميد'!$B$5:$B$584)-ROW($B$5)+1),ROWS($B$2:B100)))),"") -> عباس جواد | C100: =IFERROR(VLOOKUP(B100,'بينات التلاميد'!$B$5:$G$584,6,0),"") -> 3ت إ
A101: Classe4 | B101: =IFERROR(IF(ROWS($B$2:B101)>'بينات التلاميد'!$Q$5,"",INDEX('بينات التلاميد'!$B$5:$B$584,SMALL(IF('بينات التلاميد'!$B$5:$B$584<>"",ROW('بينات التلاميد'!$B$5:$B$584)-ROW($B$5)+1),ROWS($B$2:B101)))),"") -> عبد المالك يوسف | C101: =IFERROR(VLOOKUP(B101,'بينات التلاميد'!$B$5:$G$584,6,0),"") -> 3ت إ
A102: Classe4 | B102: =IFERROR(IF(ROWS($B$2:B102)>'بينات التلاميد'!$Q$5,"",INDEX('بينات التلاميد'!$B$5:$B$584,SMALL(IF('بينات التلاميد'!$B$5:$B$584<>"",ROW('بينات التلاميد'!$B$5:$B$584)-ROW($B$5)+1),ROWS($B$2:B102)))),"") -> علوش عبد الحكيم | C102: =IFERROR(VLOOKUP(B102,'بينات التلاميد'!$B$5:$G$584,6,0),"") -> 3ت إ
A103: Classe4 | B103: =IFERROR(IF(ROWS($B$2:B103)>'بينات التلاميد'!$Q$5,"",INDEX('بينات التلاميد'!$B$5:$B$584,SMALL(IF('بينات التلاميد'!$B$5:$B$584<>"",ROW('بينات التلاميد'!$B$5:$B$584)-ROW($B$5)+1),ROWS($B$2:B103)))),"") -> عمراوي شيماء | C103: =IFERROR(VLOOKUP(B103,'بينات التلاميد'!$B$5:$G$584,6,0),"") -> 3ت إ
A104: Classe4 | B104: =IFERROR(IF(ROWS($B$2:B104)>'بينات التلاميد'!$Q$5,"",INDEX('بينات التلاميد'!$B$5:$B$584,SMALL(IF('بينات التلاميد'!$B$5:$B$584<>"",ROW('بينات التلاميد'!$B$5:$B$584)-ROW($B$5)+1),ROWS($B$2:B104)))),"") -> قزوي محمد حبيب | C104: =IFERROR(VLOOKUP(B104,'بينات التلاميد'!$B$5:$G$584,6,0),"") -> 3ت إ
A105: Classe4 | B105: =IFERROR(IF(ROWS($B$2:B105)>'بينات التلاميد'!$Q$5,"",INDEX('بينات التلاميد'!$B$5:$B$584,SMALL(IF('بينات التلاميد'!$B$5:$B$584<>"",ROW('بينات التلاميد'!$B$5:$B$584)-ROW($B$5)+1),ROWS($B$2:B105)))),"") -> قعاد جميلة | C105: =IFERROR(VLOOKUP(B105,'بينات التلاميد'!$B$5:$G$584,6,0),"") -> 3ت إ
A106: Classe4 | B106: =IFERROR(IF(ROWS($B$2:B106)>'بينات التلاميد'!$Q$5,"",INDEX('بينات التلاميد'!$B$5:$B$584,SMALL(IF('بينات التلاميد'!$B$5:$B$584<>"",ROW('بينات التلاميد'!$B$5:$B$584)-ROW($B$5)+1),ROWS($B$2:B106)))),"") -> قنشي أحلام | C106: =IFERROR(VLOOKUP(B106,'بينات التلاميد'!$B$5:$G$584,6,0),"") -> 3ت إ
A107: Classe4 | B107: =IFERROR(IF(ROWS($B$2:B107)>'بينات التلاميد'!$Q$5,"",INDEX('بينات التلاميد'!$B$5:$B$584,SMALL(IF('بينات التلاميد'!$B$5:$B$584<>"",ROW('بينات التلاميد'!$B$5:$B$584)-ROW($B$5)+1),ROWS($B$2:B107)))),"") -> كاملين معمر | C107: =IFERROR(VLOOKUP(B107,'بينات التلاميد'!$B$5:$G$584,6,0),"") -> 3ت إ
A108: Classe4 | B108: =IFERROR(IF(ROWS($B$2:B108)>'بينات التلاميد'!$Q$5,"",INDEX('بينات التلاميد'!$B$5:$B$584,SMALL(IF('بينات التلاميد'!$B$5:$B$584<>"",ROW('بينات التلاميد'!$B$5:$B$584)-ROW($B$5)+1),ROWS($B$2:B108)))),"") -> لياني مروان | C108: =IFERROR(VLOOKUP(B108,'بينات التلاميد'!$B$5:$G$584,6,0),"") -> 3ت إ
A109: Classe4 | B109: =IFERROR(IF(ROWS($B$2:B109)>'بينات التلاميد'!$Q$5,"",INDEX('بينات التلاميد'!$B$5:$B$584,SMALL(IF('بينات التلاميد'!$B$5:$B$584<>"",ROW('بينات التلاميد'!$B$5:$B$584)-ROW($B$5)+1),ROWS($B$2:B109)))),"") -> نميش صفاء حفيظة | C109: =IFERROR(VLOOKUP(B109,'بينات التلاميد'!$B$5:$G$584,6,0),"") -> 3ت إ
A110: Classe4 | B110: =IFERROR(IF(ROWS($B$2:B110)>'بينات التلاميد'!$Q$5,"",INDEX('بينات التلاميد'!$B$5:$B$584,SMALL(IF('بينات التلاميد'!$B$5:$B$584<>"",ROW('بينات التلاميد'!$B$5:$B$584)-ROW($B$5)+1),ROWS($B$2:B110)))),"") -> ولد علي أمينة | C110: =IFERROR(VLOOKUP(B110,'بينات التلاميد'!$B$5:$G$584,6,0),"") -> 3ت إ
A111: Classe5 | B111: =IFERROR(IF(ROWS($B$2:B111)>'بينات التلاميد'!$Q$5,"",INDEX('بينات التلاميد'!$B$5:$B$584,SMALL(IF('بينات التلاميد'!$B$5:$B$584<>"",ROW('بينات التلاميد'!$B$5:$B$584)-ROW($B$5)+1),ROWS($B$2:B111)))),"") -> أمحمدي جهان | C111: =IFERROR(VLOOKUP(B111,'بينات التلاميد'!$B$5:$G$584,6,0),"") -> 3أ ف
A112: Classe5 | B112: =IFERROR(IF(ROWS($B$2:B112)>'بينات التلاميد'!$Q$5,"",INDEX('بينات التلاميد'!$B$5:$B$584,SMALL(IF('بينات التلاميد'!$B$5:$B$584<>"",ROW('بينات التلاميد'!$B$5:$B$584)-ROW($B$5)+1),ROWS($B$2:B112)))),"") -> بختي بشرى | C112: =IFERROR(VLOOKUP(B112,'بينات التلاميد'!$B$5:$G$584,6,0),"") -> 3أ ف
A113: Classe5 | B113: =IFERROR(IF(ROWS($B$2:B113)>'بينات التلاميد'!$Q$5,"",INDEX('بينات التلاميد'!$B$5:$B$584,SMALL(IF('بينات التلاميد'!$B$5:$B$584<>"",ROW('بينات التلاميد'!$B$5:$B$584)-ROW($B$5)+1),ROWS($B$2:B113)))),"") -> بداد أية فاطمة الزهراء | C113: =IFERROR(VLOOKUP(B113,'بينات التلاميد'!$B$5:$G$584,6,0),"") -> 3أ ف
A114: Classe5 | B114: =IFERROR(IF(ROWS($B$2:B114)>'بينات التلاميد'!$Q$5,"",INDEX('بينات التلاميد'!$B$5:$B$584,SMALL(IF('بينات التلاميد'!$B$5:$B$584<>"",ROW('بينات التلاميد'!$B$5:$B$584)-ROW($B$5)+1),ROWS($B$2:B114)))),"") -> بشلاغم سمية | C114: =IFERROR(VLOOKUP(B114,'بينات التلاميد'!$B$5:$G$584,6,0),"") -> 3أ ف
A115: Classe5 | B115: =IFERROR(IF(ROWS($B$2:B115)>'بينات التلاميد'!$Q$5,"",INDEX('بينات التلاميد'!$B$5:$B$584,SMALL(IF('بينات التلاميد'!$B$5:$B$584<>"",ROW('بينات التلاميد'!$B$5:$B$584)-ROW($B$5)+1),ROWS($B$2:B115)))),"") -> بن حامد فايزة | C115: =IFERROR(VLOOKUP(B115,'بينات التلاميد'!$B$5:$G$584,6,0),"") -> 3أ ف
A116: Classe5 | B116: =IFERROR(IF(ROWS($B$2:B116)>'بينات التلاميد'!$Q$5,"",INDEX('بينات التلاميد'!$B$5:$B$584,SMALL(IF('بينات التلاميد'!$B$5:$B$584<>"",ROW('بينات التلاميد'!$B$5:$B$584)-ROW($B$5)+1),ROWS($B$2:B116)))),"") -> بن شقرة سارة | C116: =IFERROR(VLOOKUP(B116,'بينات التلاميد'!$B$5:$G$584,6,0),"") -> 3أ ف
A117: Classe5 | B117: =IFERROR(IF(ROWS($B$2:B117)>'بينات التلاميد'!$Q$5,"",INDEX('بينات التلاميد'!$B$5:$B$584,SMALL(IF('بينات التلاميد'!$B$5:$B$584<>"",ROW('بينات التلاميد'!$B$5:$B$584)-ROW($B$5)+1),ROWS($B$2:B117)))),"") -> بوزيدي مريم | C117: =IFERROR(VLOOKUP(B117,'بينات التلاميد'!$B$5:$G$584,6,0),"") -> 3أ ف
A118: Classe5 | B118: =IFERROR(IF(ROWS($B$2:B118)>'بينات التلاميد'!$Q$5,"",INDEX('بينات التلاميد'!$B$5:$B$584,SMALL(IF('بينات التلاميد'!$B$5:$B$584<>"",ROW('بينات التلاميد'!$B$5:$B$584)-ROW($B$5)+1),ROWS($B$2:B118)))),"") -> توبردة مغنية | C118: =IFERROR(VLOOKUP(B118,'بينات التلاميد'!$B$5:$G$584,6,0),"") -> 3أ ف
A119: Classe5 | B119: =IFERROR(IF(ROWS($B$2:B119)>'بينات التلاميد'!$Q$5,"",INDEX('بينات التلاميد'!$B$5:$B$584,SMALL(IF('بينات التلاميد'!$B$5:$B$584<>"",ROW('بينات التلاميد'!$B$5:$B$584)-ROW($B$5)+1),ROWS($B$2:B119)))),"") -> حابن اسمهان | C119: =IFERROR(VLOOKUP(B119,'بينات التلاميد'!$B$5:$G$584,6,0),"") -> 3أ ف
A120: Classe5 | B120: =IFERROR(IF(ROWS($B$2:B120)>'بينات التلاميد'!$Q$5,"",INDEX('بينات التلاميد'!$B$5:$B$584,SMALL(IF('بينات التلاميد'!$B$5:$B$584<>"",ROW('بينات التلاميد'!$B$5:$B$584)-ROW($B$5)+1),ROWS($B$2:B120)))),"") -> حاجي مونية | C120: =IFERROR(VLOOKUP(B120,'بينات التلاميد'!$B$5:$G$584,6,0),"") -> 3أ ف
A121: Classe5 | B121: =IFERROR(IF(ROWS($B$2:B121)>'بينات التلاميد'!$Q$5,"",INDEX('بينات التلاميد'!$B$5:$B$584,SMALL(IF('بينات التلاميد'!$B$5:$B$584<>"",ROW('بينات التلاميد'!$B$5:$B$584)-ROW($B$5)+1),ROWS($B$2:B121)))),"") -> حساين نبيلة | C121: =IFERROR(VLOOKUP(B121,'بينات التلاميد'!$B$5:$G$584,6,0),"") -> 3أ ف
A122: Classe5 | B122: =IFERROR(IF(ROWS($B$2:B122)>'بينات التلاميد'!$Q$5,"",INDEX('بينات التلاميد'!$B$5:$B$584,SMALL(IF('بينات التلاميد'!$B$5:$B$584<>"",ROW('بينات التلاميد'!$B$5:$B$584)-ROW($B$5)+1),ROWS($B$2:B122)))),"") -> حمادي أمال | C122: =IFERROR(VLOOKUP(B122,'بينات التلاميد'!$B$5:$G$584,6,0),"") -> 3أ ف
A123: Classe5 | B123: =IFERROR(IF(ROWS($B$2:B123)>'بينات التلاميد'!$Q$5,"",INDEX('بينات التلاميد'!$B$5:$B$584,SMALL(IF('بينات التلاميد'!$B$5:$B$584<>"",ROW('بينات التلاميد'!$B$5:$B$584)-ROW($B$5)+1),ROWS($B$2:B123)))),"") -> حمادي الواسيني | C123: =IFERROR(VLOOKUP(B123,'بينات التلاميد'!$B$5:$G$584,6,0),"") -> 3أ ف
A124: Classe5 | B124: =IFERROR(IF(ROWS($B$2:B124)>'بينات التلاميد'!$Q$5,"",INDEX('بينات التلاميد'!$B$5:$B$584,SMALL(IF('بينات التلاميد'!$B$5:$B$584<>"",ROW('بينات التلاميد'!$B$5:$B$584)-ROW($B$5)+1),ROWS($B$2:B124)))),"") -> حمادي مغنية | C124: =IFERROR(VLOOKUP(B124,'بينات التلاميد'!$B$5:$G$584,6,0),"") -> 3أ ف
A125: Classe5 | B125: =IFERROR(IF(ROWS($B$2:B125)>'بينات التلاميد'!$Q$5,"",INDEX('بينات التلاميد'!$B$5:$B$584,SMALL(IF('بينات التلاميد'!$B$5:$B$584<>"",ROW('بينات التلاميد'!$B$5:$B$584)-ROW($B$5)+1),ROWS($B$2:B125)))),"") -> دخيسي أحلام | C125: =IFERROR(VLOOKUP(B125,'بينات التلاميد'!$B$5:$G$584,6,0),"") -> 3أ ف
A126: Classe5 | B126: =IFERROR(IF(ROWS($B$2:B126)>'بينات التلاميد'!$Q$5,"",INDEX('بينات التلاميد'!$B$5:$B$584,SMALL(IF('بينات التلاميد'!$B$5:$B$584<>"",ROW('بينات التلاميد'!$B$5:$B$584)-ROW($B$5)+1),ROWS($B$2:B126)))),"") -> دعنون منال | C126: =IFERROR(VLOOKUP(B126,'بينات التلاميد'!$B$5:$G$584,6,0),"") -> 3أ ف
A127: Classe5 | B127: =IFERROR(IF(ROWS($B$2:B127)>'بينات التلاميد'!$Q$5,"",INDEX('بينات التلاميد'!$B$5:$B$584,SMALL(IF('بينات التلاميد'!$B$5:$B$584<>"",ROW('بينات التلاميد'!$B$5:$B$584)-ROW($B$5)+1),ROWS($B$2:B127)))),"") -> زرعي يامنة | C127: =IFERROR(VLOOKUP(B127,'بينات التلاميد'!$B$5:$G$584,6,0),"") -> 3أ ف
A128: Classe5 | B128: =IFERROR(IF(ROWS($B$2:B128)>'بينات التلاميد'!$Q$5,"",INDEX('بينات التلاميد'!$B$5:$B$584,SMALL(IF('بينات التلاميد'!$B$5:$B$584<>"",ROW('بينات التلاميد'!$B$5:$B$584)-ROW($B$5)+1),ROWS($B$2:B128)))),"") -> زقاي شهيناز | C128: =IFERROR(VLOOKUP(B128,'بينات التلاميد'!$B$5:$G$584,6,0),"") -> 3أ ف
A129: Classe5 | B129: =IFERROR(IF(ROWS($B$2:B129)>'بينات التلاميد'!$Q$5,"",INDEX('بينات التلاميد'!$B$5:$B$584,SMALL(IF('بينات التلاميد'!$B$5:$B$584<>"",ROW('بينات التلاميد'!$B$5:$B$584)-ROW($B$5)+1),ROWS($B$2:B129)))),"") -> سلطاني سارة | C129: =IFERROR(VLOOKUP(B129,'بينات التلاميد'!$B$5:$G$584,6,0),"") -> 3أ ف
A130: =IFERROR(VLOOKUP(C130,$D$2:$E$20,2,0),"") -> Classe5 | B130: =IFERROR(IF(ROWS($B$2:B130)>'بينات التلاميد'!$Q$5,"",INDEX('بينات التلاميد'!$B$5:$B$584,SMALL(IF('بينات التلاميد'!$B$5:$B$584<>"",ROW('بينات التلاميد'!$B$5:$B$584)-ROW($B$5)+1),ROWS($B$2:B130)))),"") -> شرقي ليلى | C130: =IFERROR(VLOOKUP(B130,'بينات التلاميد'!$B$5:$G$584,6,0),"") -> 3أ ف
A131: Classe5 | B131: =IFERROR(IF(ROWS($B$2:B131)>'بينات التلاميد'!$Q$5,"",INDEX('بينات التلاميد'!$B$5:$B$584,SMALL(IF('بينات التلاميد'!$B$5:$B$584<>"",ROW('بينات التلاميد'!$B$5:$B$584)-ROW($B$5)+1),ROWS($B$2:B131)))),"") -> صحراوي لمياء | C131: =IFERROR(VLOOKUP(B131,'بينات التلاميد'!$B$5:$G$584,6,0),"") -> 3أ ف
A132: Classe5 | B132: =IFERROR(IF(ROWS($B$2:B132)>'بينات التلاميد'!$Q$5,"",INDEX('بينات التلاميد'!$B$5:$B$584,SMALL(IF('بينات التلاميد'!$B$5:$B$584<>"",ROW('بينات التلاميد'!$B$5:$B$584)-ROW($B$5)+1),ROWS($B$2:B132)))),"") -> عايشي عربية فاطمة الزهراء | C132: =IFERROR(VLOOKUP(B132,'بينات التلاميد'!$B$5:$G$584,6,0),"") -> 3أ ف
A133: Classe5 | B133: =IFERROR(IF(ROWS($B$2:B133)>'بينات التلاميد'!$Q$5,"",INDEX('بينات التلاميد'!$B$5:$B$584,SMALL(IF('بينات التلاميد'!$B$5:$B$584<>"",ROW('بينات التلاميد'!$B$5:$B$584)-ROW($B$5)+1),ROWS($B$2:B133)))),"") -> عبد المالك جنات | C133: =IFERROR(VLOOKUP(B133,'بينات التلاميد'!$B$5:$G$584,6,0),"") -> 3أ ف
A134: Classe5 | B134: =IFERROR(IF(ROWS($B$2:B134)>'بينات التلاميد'!$Q$5,"",INDEX('بينات التلاميد'!$B$5:$B$584,SMALL(IF('بينات التلاميد'!$B$5:$B$584<>"",ROW('بينات التلاميد'!$B$5:$B$584)-ROW($B$5)+1),ROWS($B$2:B134)))),"") -> عبد المالك فاطمة الزهراء | C134: =IFERROR(VLOOKUP(B134,'بينات التلاميد'!$B$5:$G$584,6,0),"") -> 3أ ف
A135: Classe5 | B135: =IFERROR(IF(ROWS($B$2:B135)>'بينات التلاميد'!$Q$5,"",INDEX('بينات التلاميد'!$B$5:$B$584,SMALL(IF('بينات التلاميد'!$B$5:$B$584<>"",ROW('بينات التلاميد'!$B$5:$B$584)-ROW($B$5)+1),ROWS($B$2:B135)))),"") -> علوان مروى | C135: =IFERROR(VLOOKUP(B135,'بينات التلاميد'!$B$5:$G$584,6,0),"") -> 3أ ف
A136: Classe5 | B136: =IFERROR(IF(ROWS($B$2:B136)>'بينات التلاميد'!$Q$5,"",INDEX('بينات التلاميد'!$B$5:$B$584,SMALL(IF('بينات التلاميد'!$B$5:$B$584<>"",ROW('بينات التلاميد'!$B$5:$B$584)-ROW($B$5)+1),ROWS($B$2:B136)))),"") -> فوقي نور الهدى | C136: =IFERROR(VLOOKUP(B136,'بينات التلاميد'!$B$5:$G$584,6,0),"") -> 3أ ف
A137: Classe5 | B137: =IFERROR(IF(ROWS($B$2:B137)>'بينات التلاميد'!$Q$5,"",INDEX('بينات التلاميد'!$B$5:$B$584,SMALL(IF('بينات التلاميد'!$B$5:$B$584<>"",ROW('بينات التلاميد'!$B$5:$B$584)-ROW($B$5)+1),ROWS($B$2:B137)))),"") -> لعشب شيماء | C137: =IFERROR(VLOOKUP(B137,'بينات التلاميد'!$B$5:$G$584,6,0),"") -> 3أ ف
A138: Classe5 | B138: =IFERROR(IF(ROWS($B$2:B138)>'بينات التلاميد'!$Q$5,"",INDEX('بينات التلاميد'!$B$5:$B$584,SMALL(IF('بينات التلاميد'!$B$5:$B$584<>"",ROW('بينات التلاميد'!$B$5:$B$584)-ROW($B$5)+1),ROWS($B$2:B138)))),"") -> محياوي خديجة | C138: =IFERROR(VLOOKUP(B138,'بينات التلاميد'!$B$5:$G$584,6,0),"") -> 3أ ف
A139: Classe5 | B139: =IFERROR(IF(ROWS($B$2:B139)>'بينات التلاميد'!$Q$5,"",INDEX('بينات التلاميد'!$B$5:$B$584,SMALL(IF('بينات التلاميد'!$B$5:$B$584<>"",ROW('بينات التلاميد'!$B$5:$B$584)-ROW($B$5)+1),ROWS($B$2:B139)))),"") -> مخفي باية | C139: =IFERROR(VLOOKUP(B139,'بينات التلاميد'!$B$5:$G$584,6,0),"") -> 3أ ف
A140: Classe5 | B140: =IFERROR(IF(ROWS($B$2:B140)>'بينات التلاميد'!$Q$5,"",INDEX('بينات التلاميد'!$B$5:$B$584,SMALL(IF('بينات التلاميد'!$B$5:$B$584<>"",ROW('بينات التلاميد'!$B$5:$B$584)-ROW($B$5)+1),ROWS($B$2:B140)))),"") -> مسارقي زينب | C140: =IFERROR(VLOOKUP(B140,'بينات التلاميد'!$B$5:$G$584,6,0),"") -> 3أ ف
A141: Classe5 | B141: =IFERROR(IF(ROWS($B$2:B141)>'بينات التلاميد'!$Q$5,"",INDEX('بينات التلاميد'!$B$5:$B$584,SMALL(IF('بينات التلاميد'!$B$5:$B$584<>"",ROW('بينات التلاميد'!$B$5:$B$584)-ROW($B$5)+1),ROWS($B$2:B141)))),"") -> مصار منال | C141: =IFERROR(VLOOKUP(B141,'بينات التلاميد'!$B$5:$G$584,6,0),"") -> 3أ ف
A142: Classe5 | B142: =IFERROR(IF(ROWS($B$2:B142)>'بينات التلاميد'!$Q$5,"",INDEX('بينات التلاميد'!$B$5:$B$584,SMALL(IF('بينات التلاميد'!$B$5:$B$584<>"",ROW('بينات التلاميد'!$B$5:$B$584)-ROW($B$5)+1),ROWS($B$2:B142)))),"") -> مقدم جميلة | C142: =IFERROR(VLOOKUP(B142,'بينات التلاميد'!$B$5:$G$584,6,0),"") -> 3أ ف
A143: Classe5 | B143: =IFERROR(IF(ROWS($B$2:B143)>'بينات التلاميد'!$Q$5,"",INDEX('بينات التلاميد'!$B$5:$B$584,SMALL(IF('بينات التلاميد'!$B$5:$B$584<>"",ROW('بينات التلاميد'!$B$5:$B$584)-ROW($B$5)+1),ROWS($B$2:B143)))),"") -> موساتي نادية | C143: =IFERROR(VLOOKUP(B143,'بينات التلاميد'!$B$5:$G$584,6,0),"") -> 3أ ف
A144: Classe6 | B144: =IFERROR(IF(ROWS($B$2:B144)>'بينات التلاميد'!$Q$5,"",INDEX('بينات التلاميد'!$B$5:$B$584,SMALL(IF('بينات التلاميد'!$B$5:$B$584<>"",ROW('بينات التلاميد'!$B$5:$B$584)-ROW($B$5)+1),ROWS($B$2:B144)))),"") -> أجد زينب | C144: =IFERROR(VLOOKUP(B144,'بينات التلاميد'!$B$5:$G$584,6,0),"") -> 3لغات
A145: Classe6 | B145: =IFERROR(IF(ROWS($B$2:B145)>'بينات التلاميد'!$Q$5,"",INDEX('بينات التلاميد'!$B$5:$B$584,SMALL(IF('بينات التلاميد'!$B$5:$B$584<>"",ROW('بينات التلاميد'!$B$5:$B$584)-ROW($B$5)+1),ROWS($B$2:B145)))),"") -> أمبارك الهاشمي | C145: =IFERROR(VLOOKUP(B145,'بينات التلاميد'!$B$5:$G$584,6,0),"") -> 3لغات
A146: Classe6 | B146: =IFERROR(IF(ROWS($B$2:B146)>'بينات التلاميد'!$Q$5,"",INDEX('بينات التلاميد'!$B$5:$B$584,SMALL(IF('بينات التلاميد'!$B$5:$B$584<>"",ROW('بينات التلاميد'!$B$5:$B$584)-ROW($B$5)+1),ROWS($B$2:B146)))),"") -> العابد يسرى | C146: =IFERROR(VLOOKUP(B146,'بينات التلاميد'!$B$5:$G$584,6,0),"") -> 3لغات
A147: Classe6 | B147: =IFERROR(IF(ROWS($B$2:B147)>'بينات التلاميد'!$Q$5,"",INDEX('بينات التلاميد'!$B$5:$B$584,SMALL(IF('بينات التلاميد'!$B$5:$B$584<>"",ROW('بينات التلاميد'!$B$5:$B$584)-ROW($B$5)+1),ROWS($B$2:B147)))),"") -> المسعود محمد سيف | C147: =IFERROR(VLOOKUP(B147,'بينات التلاميد'!$B$5:$G$584,6,0),"") -> 3لغات
A148: Classe6 | B148: =IFERROR(IF(ROWS($B$2:B148)>'بينات التلاميد'!$Q$5,"",INDEX('بينات التلاميد'!$B$5:$B$584,SMALL(IF('بينات التلاميد'!$B$5:$B$584<>"",ROW('بينات التلاميد'!$B$5:$B$584)-ROW($B$5)+1),ROWS($B$2:B148)))),"") -> بلخوان نهاد | C148: =IFERROR(VLOOKUP(B148,'بينات التلاميد'!$B$5:$G$584,6,0),"") -> 3لغات
A149: Classe6 | B149: =IFERROR(IF(ROWS($B$2:B149)>'بينات التلاميد'!$Q$5,"",INDEX('بينات التلاميد'!$B$5:$B$584,SMALL(IF('بينات التلاميد'!$B$5:$B$584<>"",ROW('بينات التلاميد'!$B$5:$B$584)-ROW($B$5)+1),ROWS($B$2:B149)))),"") -> بلغري آية | C149: =IFERROR(VLOOKUP(B149,'بينات التلاميد'!$B$5:$G$584,6,0),"") -> 3لغات
A150: Classe6 | B150: =IFERROR(IF(ROWS($B$2:B150)>'بينات التلاميد'!$Q$5,"",INDEX('بينات التلاميد'!$B$5:$B$584,SMALL(IF('بينات التلاميد'!$B$5:$B$584<>"",ROW('بينات التلاميد'!$B$5:$B$584)-ROW($B$5)+1),ROWS($B$2:B150)))),"") -> بن اعمر رانيا | C150: =IFERROR(VLOOKUP(B150,'بينات التلاميد'!$B$5:$G$584,6,0),"") -> 3لغات
A151: Classe6 | B151: =IFERROR(IF(ROWS($B$2:B151)>'بينات التلاميد'!$Q$5,"",INDEX('بينات التلاميد'!$B$5:$B$584,SMALL(IF('بينات التلاميد'!$B$5:$B$584<>"",ROW('بينات التلاميد'!$B$5:$B$584)-ROW($B$5)+1),ROWS($B$2:B151)))),"") -> بن عيسي وئام | C151: =IFERROR(VLOOKUP(B151,'بينات التلاميد'!$B$5:$G$584,6,0),"") -> 3لغات
A152: Classe6 | B152: =IFERROR(IF(ROWS($B$2:B152)>'بينات التلاميد'!$Q$5,"",INDEX('بينات التلاميد'!$B$5:$B$584,SMALL(IF('بينات التلاميد'!$B$5:$B$584<>"",ROW('بينات التلاميد'!$B$5:$B$584)-ROW($B$5)+1),ROWS($B$2:B152)))),"") -> بناصر خلود هديل | C152: =IFERROR(VLOOKUP(B152,'بينات التلاميد'!$B$5:$G$584,6,0),"") -> 3لغات
A153: Classe6 | B153: =IFERROR(IF(ROWS($B$2:B153)>'بينات التلاميد'!$Q$5,"",INDEX('بينات التلاميد'!$B$5:$B$584,SMALL(IF('بينات التلاميد'!$B$5:$B$584<>"",ROW('بينات التلاميد'!$B$5:$B$584)-ROW($B$5)+1),ROWS($B$2:B153)))),"") -> بوشكري عبير | C153: =IFERROR(VLOOKUP(B153,'بينات التلاميد'!$B$5:$G$584,6,0),"") -> 3لغات
A154: Classe6 | B154: =IFERROR(IF(ROWS($B$2:B154)>'بينات التلاميد'!$Q$5,"",INDEX('بينات التلاميد'!$B$5:$B$584,SMALL(IF('بينات التلاميد'!$B$5:$B$584<>"",ROW('بينات التلاميد'!$B$5:$B$584)-ROW($B$5)+1),ROWS($B$2:B154)))),"") -> تبحريتي إبراهيم | C154: =IFERROR(VLOOKUP(B154,'بينات التلاميد'!$B$5:$G$584,6,0),"") -> 3لغات
A155: Classe6 | B155: =IFERROR(IF(ROWS($B$2:B155)>'بينات التلاميد'!$Q$5,"",INDEX('بينات التلاميد'!$B$5:$B$584,SMALL(IF('بينات التلاميد'!$B$5:$B$584<>"",ROW('بينات التلاميد'!$B$5:$B$584)-ROW($B$5)+1),ROWS($B$2:B155)))),"") -> جباري وسيلة | C155: =IFERROR(VLOOKUP(B155,'بينات التلاميد'!$B$5:$G$584,6,0),"") -> 3لغات
A156: Classe6 | B156: =IFERROR(IF(ROWS($B$2:B156)>'بينات التلاميد'!$Q$5,"",INDEX('بينات التلاميد'!$B$5:$B$584,SMALL(IF('بينات التلاميد'!$B$5:$B$584<>"",ROW('بينات التلاميد'!$B$5:$B$584)-ROW($B$5)+1),ROWS($B$2:B156)))),"") -> جوادي خديجة شيماء | C156: =IFERROR(VLOOKUP(B156,'بينات التلاميد'!$B$5:$G$584,6,0),"") -> 3لغات
A157: Classe6 | B157: =IFERROR(IF(ROWS($B$2:B157)>'بينات التلاميد'!$Q$5,"",INDEX('بينات التلاميد'!$B$5:$B$584,SMALL(IF('بينات التلاميد'!$B$5:$B$584<>"",ROW('بينات التلاميد'!$B$5:$B$584)-ROW($B$5)+1),ROWS($B$2:B157)))),"") -> حفص نورية إيمان | C157: =IFERROR(VLOOKUP(B157,'بينات التلاميد'!$B$5:$G$584,6,0),"") -> 3لغات
A158: Classe6 | B158: =IFERROR(IF(ROWS($B$2:B158)>'بينات التلاميد'!$Q$5,"",INDEX('بينات التلاميد'!$B$5:$B$584,SMALL(IF('بينات التلاميد'!$B$5:$B$584<>"",ROW('بينات التلاميد'!$B$5:$B$584)-ROW($B$5)+1),ROWS($B$2:B158)))),"") -> حوحو محمد عبد الحق | C158: =IFERROR(VLOOKUP(B158,'بينات التلاميد'!$B$5:$G$584,6,0),"") -> 3لغات
A159: Classe6 | B159: =IFERROR(IF(ROWS($B$2:B159)>'بينات التلاميد'!$Q$5,"",INDEX('بينات التلاميد'!$B$5:$B$584,SMALL(IF('بينات التلاميد'!$B$5:$B$584<>"",ROW('بينات التلاميد'!$B$5:$B$584)-ROW($B$5)+1),ROWS($B$2:B159)))),"") -> خش أميرة | C159: =IFERROR(VLOOKUP(B159,'بينات التلاميد'!$B$5:$G$584,6,0),"") -> 3لغات
A160: Classe6 | B160: =IFERROR(IF(ROWS($B$2:B160)>'بينات التلاميد'!$Q$5,"",INDEX('بينات التلاميد'!$B$5:$B$584,SMALL(IF('بينات التلاميد'!$B$5:$B$584<>"",ROW('بينات التلاميد'!$B$5:$B$584)-ROW($B$5)+1),ROWS($B$2:B160)))),"") -> دار أعمر حنان | C160: =IFERROR(VLOOKUP(B160,'بينات التلاميد'!$B$5:$G$584,6,0),"") -> 3لغات
A161: Classe6 | B161: =IFERROR(IF(ROWS($B$2:B161)>'بينات التلاميد'!$Q$5,"",INDEX('بينات التلاميد'!$B$5:$B$584,SMALL(IF('بينات التلاميد'!$B$5:$B$584<>"",ROW('بينات التلاميد'!$B$5:$B$584)-ROW($B$5)+1),ROWS($B$2:B161)))),"") -> ديب أسية | C161: =IFERROR(VLOOKUP(B161,'بينات التلاميد'!$B$5:$G$584,6,0),"") -> 3لغات
A162: Classe6 | B162: =IFERROR(IF(ROWS($B$2:B162)>'بينات التلاميد'!$Q$5,"",INDEX('بينات التلاميد'!$B$5:$B$584,SMALL(IF('بينات التلاميد'!$B$5:$B$584<>"",ROW('بينات التلاميد'!$B$5:$B$584)-ROW($B$5)+1),ROWS($B$2:B162)))),"") -> راشدي رضوان | C162: =IFERROR(VLOOKUP(B162,'بينات التلاميد'!$B$5:$G$584,6,0),"") -> 3لغات
A163: Classe6 | B163: =IFERROR(IF(ROWS($B$2:B163)>'بينات التلاميد'!$Q$5,"",INDEX('بينات التلاميد'!$B$5:$B$584,SMALL(IF('بينات التلاميد'!$B$5:$B$584<>"",ROW('بينات التلاميد'!$B$5:$B$584)-ROW($B$5)+1),ROWS($B$2:B163)))),"") -> زار رانيا | C163: =IFERROR(VLOOKUP(B163,'بينات التلاميد'!$B$5:$G$584,6,0),"") -> 3لغات
A164: Classe6 | B164: =IFERROR(IF(ROWS($B$2:B164)>'بينات التلاميد'!$Q$5,"",INDEX('بينات التلاميد'!$B$5:$B$584,SMALL(IF('بينات التلاميد'!$B$5:$B$584<>"",ROW('بينات التلاميد'!$B$5:$B$584)-ROW($B$5)+1),ROWS($B$2:B164)))),"") -> زاوي أسماء | C164: =IFERROR(VLOOKUP(B164,'بينات التلاميد'!$B$5:$G$584,6,0),"") -> 3لغات
A165: Classe6 | B165: =IFERROR(IF(ROWS($B$2:B165)>'بينات التلاميد'!$Q$5,"",INDEX('بينات التلاميد'!$B$5:$B$584,SMALL(IF('بينات التلاميد'!$B$5:$B$584<>"",ROW('بينات التلاميد'!$B$5:$B$584)-ROW($B$5)+1),ROWS($B$2:B165)))),"") -> زموري صفاء | C165: =IFERROR(VLOOKUP(B165,'بينات التلاميد'!$B$5:$G$584,6,0),"") -> 3لغات
A166: Classe6 | B166: =IFERROR(IF(ROWS($B$2:B166)>'بينات التلاميد'!$Q$5,"",INDEX('بينات التلاميد'!$B$5:$B$584,SMALL(IF('بينات التلاميد'!$B$5:$B$584<>"",ROW('بينات التلاميد'!$B$5:$B$584)-ROW($B$5)+1),ROWS($B$2:B166)))),"") -> شراك زينب | C166: =IFERROR(VLOOKUP(B166,'بينات التلاميد'!$B$5:$G$584,6,0),"") -> 3لغات
A167: Classe6 | B167: =IFERROR(IF(ROWS($B$2:B167)>'بينات التلاميد'!$Q$5,"",INDEX('بينات التلاميد'!$B$5:$B$584,SMALL(IF('بينات التلاميد'!$B$5:$B$584<>"",ROW('بينات التلاميد'!$B$5:$B$584)-ROW($B$5)+1),ROWS($B$2:B167)))),"") -> عفاني حسام | C167: =IFERROR(VLOOKUP(B167,'بينات التلاميد'!$B$5:$G$584,6,0),"") -> 3لغات
A168: Classe6 | B168: =IFERROR(IF(ROWS($B$2:B168)>'بينات التلاميد'!$Q$5,"",INDEX('بينات التلاميد'!$B$5:$B$584,SMALL(IF('بينات التلاميد'!$B$5:$B$584<>"",ROW('بينات التلاميد'!$B$5:$B$584)-ROW($B$5)+1),ROWS($B$2:B168)))),"") -> غربي نجلاء سارة | C168: =IFERROR(VLOOKUP(B168,'بينات التلاميد'!$B$5:$G$584,6,0),"") -> 3لغات
A169: Classe6 | B169: =IFERROR(IF(ROWS($B$2:B169)>'بينات التلاميد'!$Q$5,"",INDEX('بينات التلاميد'!$B$5:$B$584,SMALL(IF('بينات التلاميد'!$B$5:$B$584<>"",ROW('بينات التلاميد'!$B$5:$B$584)-ROW($B$5)+1),ROWS($B$2:B169)))),"") -> فراج جواد | C169: =IFERROR(VLOOKUP(B169,'بينات التلاميد'!$B$5:$G$584,6,0),"") -> 3لغات
A170: Classe6 | B170: =IFERROR(IF(ROWS($B$2:B170)>'بينات التلاميد'!$Q$5,"",INDEX('بينات التلاميد'!$B$5:$B$584,SMALL(IF('بينات التلاميد'!$B$5:$B$584<>"",ROW('بينات التلاميد'!$B$5:$B$584)-ROW($B$5)+1),ROWS($B$2:B170)))),"") -> قاشور سليمة | C170: =IFERROR(VLOOKUP(B170,'بينات التلاميد'!$B$5:$G$584,6,0),"") -> 3لغات
A171: Classe6 | B171: =IFERROR(IF(ROWS($B$2:B171)>'بينات التلاميد'!$Q$5,"",INDEX('بينات التلاميد'!$B$5:$B$584,SMALL(IF('بينات التلاميد'!$B$5:$B$584<>"",ROW('بينات التلاميد'!$B$5:$B$584)-ROW($B$5)+1),ROWS($B$2:B171)))),"") -> كردوسي جمال الدين | C171: =IFERROR(VLOOKUP(B171,'بينات التلاميد'!$B$5:$G$584,6,0),"") -> 3لغات
A172: Classe6 | B172: =IFERROR(IF(ROWS($B$2:B172)>'بينات التلاميد'!$Q$5,"",INDEX('بينات التلاميد'!$B$5:$B$584,SMALL(IF('بينات التلاميد'!$B$5:$B$584<>"",ROW('بينات التلاميد'!$B$5:$B$584)-ROW($B$5)+1),ROWS($B$2:B172)))),"") -> مزاري إكرام | C172: =IFERROR(VLOOKUP(B172,'بينات التلاميد'!$B$5:$G$584,6,0),"") -> 3لغات
A173: Classe6 | B173: =IFERROR(IF(ROWS($B$2:B173)>'بينات التلاميد'!$Q$5,"",INDEX('بينات التلاميد'!$B$5:$B$584,SMALL(IF('بينات التلاميد'!$B$5:$B$584<>"",ROW('بينات التلاميد'!$B$5:$B$584)-ROW($B$5)+1),ROWS($B$2:B173)))),"") -> موسليم أمينة | C173: =IFERROR(VLOOKUP(B173,'بينات التلاميد'!$B$5:$G$584,6,0),"") -> 3لغات
A174: Classe6 | B174: =IFERROR(IF(ROWS($B$2:B174)>'بينات التلاميد'!$Q$5,"",INDEX('بينات التلاميد'!$B$5:$B$584,SMALL(IF('بينات التلاميد'!$B$5:$B$584<>"",ROW('بينات التلاميد'!$B$5:$B$584)-ROW($B$5)+1),ROWS($B$2:B174)))),"") -> واسطي عبد السميع | C174: =IFERROR(VLOOKUP(B174,'بينات التلاميد'!$B$5:$G$584,6,0),"") -> 3لغات
A175: Classe19 | B175: =IFERROR(IF(ROWS($B$2:B175)>'بينات التلاميد'!$Q$5,"",INDEX('بينات التلاميد'!$B$5:$B$584,SMALL(IF('بينات التلاميد'!$B$5:$B$584<>"",ROW('بينات التلاميد'!$B$5:$B$584)-ROW($B$5)+1),ROWS($B$2:B175)))),"") -> بن هدي مروة | C175: =IFERROR(VLOOKUP(B175,'بينات التلاميد'!$B$5:$G$584,6,0),"") -> 2ت ر
A176: Classe19 | B176: =IFERROR(IF(ROWS($B$2:B176)>'بينات التلاميد'!$Q$5,"",INDEX('بينات التلاميد'!$B$5:$B$584,SMALL(IF('بينات التلاميد'!$B$5:$B$584<>"",ROW('بينات التلاميد'!$B$5:$B$584)-ROW($B$5)+1),ROWS($B$2:B176)))),"") -> بوسوماح شيماء | C176: =IFERROR(VLOOKUP(B176,'بينات التلاميد'!$B$5:$G$584,6,0),"") -> 2ت ر
A177: Classe19 | B177: =IFERROR(IF(ROWS($B$2:B177)>'بينات التلاميد'!$Q$5,"",INDEX('بينات التلاميد'!$B$5:$B$584,SMALL(IF('بينات التلاميد'!$B$5:$B$584<>"",ROW('بينات التلاميد'!$B$5:$B$584)-ROW($B$5)+1),ROWS($B$2:B177)))),"") -> حدوشي محمد | C177: =IFERROR(VLOOKUP(B177,'بينات التلاميد'!$B$5:$G$584,6,0),"") -> 2ت ر
A178: Classe19 | B178: =IFERROR(IF(ROWS($B$2:B178)>'بينات التلاميد'!$Q$5,"",INDEX('بينات التلاميد'!$B$5:$B$584,SMALL(IF('بينات التلاميد'!$B$5:$B$584<>"",ROW('بينات التلاميد'!$B$5:$B$584)-ROW($B$5)+1),ROWS($B$2:B178)))),"") -> راجعي محمد | C178: =IFERROR(VLOOKUP(B178,'بينات التلاميد'!$B$5:$G$584,6,0),"") -> 2ت ر
A179: Classe19 | B179: =IFERROR(IF(ROWS($B$2:B179)>'بينات التلاميد'!$Q$5,"",INDEX('بينات التلاميد'!$B$5:$B$584,SMALL(IF('بينات التلاميد'!$B$5:$B$584<>"",ROW('بينات التلاميد'!$B$5:$B$584)-ROW($B$5)+1),ROWS($B$2:B179)))),"") -> رجالة منال | C179: =IFERROR(VLOOKUP(B179,'بينات التلاميد'!$B$5:$G$584,6,0),"") -> 2ت ر
A180: Classe19 | B180: =IFERROR(IF(ROWS($B$2:B180)>'بينات التلاميد'!$Q$5,"",INDEX('بينات التلاميد'!$B$5:$B$584,SMALL(IF('بينات التلاميد'!$B$5:$B$584<>"",ROW('بينات التلاميد'!$B$5:$B$584)-ROW($B$5)+1),ROWS($B$2:B180)))),"") -> شارف نور الهدى | C180: =IFERROR(VLOOKUP(B180,'بينات التلاميد'!$B$5:$G$584,6,0),"") -> 2ت ر
A181: Classe19 | B181: =IFERROR(IF(ROWS($B$2:B181)>'بينات التلاميد'!$Q$5,"",INDEX('بينات التلاميد'!$B$5:$B$584,SMALL(IF('بينات التلاميد'!$B$5:$B$584<>"",ROW('بينات التلاميد'!$B$5:$B$584)-ROW($B$5)+1),ROWS($B$2:B181)))),"") -> عبوين أسماء | C181: =IFERROR(VLOOKUP(B181,'بينات التلاميد'!$B$5:$G$584,6,0),"") -> 2ت ر
A182: Classe19 | B182: =IFERROR(IF(ROWS($B$2:B182)>'بينات التلاميد'!$Q$5,"",INDEX('بينات التلاميد'!$B$5:$B$584,SMALL(IF('بينات التلاميد'!$B$5:$B$584<>"",ROW('بينات التلاميد'!$B$5:$B$584)-ROW($B$5)+1),ROWS($B$2:B182)))),"") -> لهباب رزق الله | C182: =IFERROR(VLOOKUP(B182,'بينات التلاميد'!$B$5:$G$584,6,0),"") -> 2ت ر
A183: Classe19 | B183: =IFERROR(IF(ROWS($B$2:B183)>'بينات التلاميد'!$Q$5,"",INDEX('بينات التلاميد'!$B$5:$B$584,SMALL(IF('بينات التلاميد'!$B$5:$B$584<>"",ROW('بينات التلاميد'!$B$5:$B$584)-ROW($B$5)+1),ROWS($B$2:B183)))),"") -> بلخروف عبد النور | C183: =IFERROR(VLOOKUP(B183,'بينات التلاميد'!$B$5:$G$584,6,0),"") -> 2ت ر
A184: Classe19 | B184: =IFERROR(IF(ROWS($B$2:B184)>'بينات التلاميد'!$Q$5,"",INDEX('بينات التلاميد'!$B$5:$B$584,SMALL(IF('بينات التلاميد'!$B$5:$B$584<>"",ROW('بينات التلاميد'!$B$5:$B$584)-ROW($B$5)+1),ROWS($B$2:B184)))),"") -> بوزار حمزة | C184: =IFERROR(VLOOKUP(B184,'بينات التلاميد'!$B$5:$G$584,6,0),"") -> 2ت ر
A185: Classe19 | B185: =IFERROR(IF(ROWS($B$2:B185)>'بينات التلاميد'!$Q$5,"",INDEX('بينات التلاميد'!$B$5:$B$584,SMALL(IF('بينات التلاميد'!$B$5:$B$584<>"",ROW('بينات التلاميد'!$B$5:$B$584)-ROW($B$5)+1),ROWS($B$2:B185)))),"") -> دربال محمد عبد الاله | C185: =IFERROR(VLOOKUP(B185,'بينات التلاميد'!$B$5:$G$584,6,0),"") -> 2ت ر
A186: Classe19 | B186: =IFERROR(IF(ROWS($B$2:B186)>'بينات التلاميد'!$Q$5,"",INDEX('بينات التلاميد'!$B$5:$B$584,SMALL(IF('بينات التلاميد'!$B$5:$B$584<>"",ROW('بينات التلاميد'!$B$5:$B$584)-ROW($B$5)+1),ROWS($B$2:B186)))),"") -> زغودي صليحة | C186: =IFERROR(VLOOKUP(B186,'بينات التلاميد'!$B$5:$G$584,6,0),"") -> 2ت ر
A187: Classe19 | B187: =IFERROR(IF(ROWS($B$2:B187)>'بينات التلاميد'!$Q$5,"",INDEX('بينات التلاميد'!$B$5:$B$584,SMALL(IF('بينات التلاميد'!$B$5:$B$584<>"",ROW('بينات التلاميد'!$B$5:$B$584)-ROW($B$5)+1),ROWS($B$2:B187)))),"") -> عرقوب أصالة | C187: =IFERROR(VLOOKUP(B187,'بينات التلاميد'!$B$5:$G$584,6,0),"") -> 2ت ر
A188: Classe19 | B188: =IFERROR(IF(ROWS($B$2:B188)>'بينات التلاميد'!$Q$5,"",INDEX('بينات التلاميد'!$B$5:$B$584,SMALL(IF('بينات التلاميد'!$B$5:$B$584<>"",ROW('بينات التلاميد'!$B$5:$B$584)-ROW($B$5)+1),ROWS($B$2:B188)))),"") -> غرفاتي خيرالدين | C188: =IFERROR(VLOOKUP(B188,'بينات التلاميد'!$B$5:$G$584,6,0),"") -> 2ت ر
A189: Classe7 | B189: =IFERROR(IF(ROWS($B$2:B189)>'بينات التلاميد'!$Q$5,"",INDEX('بينات التلاميد'!$B$5:$B$584,SMALL(IF('بينات التلاميد'!$B$5:$B$584<>"",ROW('بينات التلاميد'!$B$5:$B$584)-ROW($B$5)+1),ROWS($B$2:B189)))),"") -> الشيخ فرح | C189: =IFERROR(VLOOKUP(B189,'بينات التلاميد'!$B$5:$G$584,6,0),"") -> 2ع ت01
A190: Classe1 | B190: =IFERROR(IF(ROWS($B$2:B190)>'بينات التلاميد'!$Q$5,"",INDEX('بينات التلاميد'!$B$5:$B$584,SMALL(IF('بينات التلاميد'!$B$5:$B$584<>"",ROW('بينات التلاميد'!$B$5:$B$584)-ROW($B$5)+1),ROWS($B$2:B190)))),"") -> امحمدي بشرى | C190: =IFERROR(VLOOKUP(B190,'بينات التلاميد'!$B$5:$G$584,6,0),"") -> 3ت ر
A191: Classe7 | B191: =IFERROR(IF(ROWS($B$2:B191)>'بينات التلاميد'!$Q$5,"",INDEX('بينات التلاميد'!$B$5:$B$584,SMALL(IF('بينات التلاميد'!$B$5:$B$584<>"",ROW('بينات التلاميد'!$B$5:$B$584)-ROW($B$5)+1),ROWS($B$2:B191)))),"") -> بختاوي نور شيماء | C191: =IFERROR(VLOOKUP(B191,'بينات التلاميد'!$B$5:$G$584,6,0),"") -> 2ع ت01
A192: Classe7 | B192: =IFERROR(IF(ROWS($B$2:B192)>'بينات التلاميد'!$Q$5,"",INDEX('بينات التلاميد'!$B$5:$B$584,SMALL(IF('بينات التلاميد'!$B$5:$B$584<>"",ROW('بينات التلاميد'!$B$5:$B$584)-ROW($B$5)+1),ROWS($B$2:B192)))),"") -> بربيط سلاف | C192: =IFERROR(VLOOKUP(B192,'بينات التلاميد'!$B$5:$G$584,6,0),"") -> 2ع ت01
A193: Classe7 | B193: =IFERROR(IF(ROWS($B$2:B193)>'بينات التلاميد'!$Q$5,"",INDEX('بينات التلاميد'!$B$5:$B$584,SMALL(IF('بينات التلاميد'!$B$5:$B$584<>"",ROW('بينات التلاميد'!$B$5:$B$584)-ROW($B$5)+1),ROWS($B$2:B193)))),"") -> بشير ليلى | C193: =IFERROR(VLOOKUP(B193,'بينات التلاميد'!$B$5:$G$584,6,0),"") -> 2ع ت01
A194: =IFERROR(VLOOKUP(C194,$D$2:$E$20,2,0),"") -> Classe7 | B194: =IFERROR(IF(ROWS($B$2:B194)>'بينات التلاميد'!$Q$5,"",INDEX('بينات التلاميد'!$B$5:$B$584,SMALL(IF('بينات التلاميد'!$B$5:$B$584<>"",ROW('بينات التلاميد'!$B$5:$B$584)-ROW($B$5)+1),ROWS($B$2:B194)))),"") -> بن عبد الله وسيلة | C194: =IFERROR(VLOOKUP(B194,'بينات التلاميد'!$B$5:$G$584,6,0),"") -> 2ع ت01
A195: Classe7 | B195: =IFERROR(IF(ROWS($B$2:B195)>'بينات التلاميد'!$Q$5,"",INDEX('بينات التلاميد'!$B$5:$B$584,SMALL(IF('بينات التلاميد'!$B$5:$B$584<>"",ROW('بينات التلاميد'!$B$5:$B$584)-ROW($B$5)+1),ROWS($B$2:B195)))),"") -> بن موسى نبية | C195: =IFERROR(VLOOKUP(B195,'بينات التلاميد'!$B$5:$G$584,6,0),"") -> 2ع ت01
A196: Classe7 | B196: =IFERROR(IF(ROWS($B$2:B196)>'بينات التلاميد'!$Q$5,"",INDEX('بينات التلاميد'!$B$5:$B$584,SMALL(IF('بينات التلاميد'!$B$5:$B$584<>"",ROW('بينات التلاميد'!$B$5:$B$584)-ROW($B$5)+1),ROWS($B$2:B196)))),"") -> بوجلول شيماء | C196: =IFERROR(VLOOKUP(B196,'بينات التلاميد'!$B$5:$G$584,6,0),"") -> 2ع ت01
A197: Classe7 | B197: =IFERROR(IF(ROWS($B$2:B197)>'بينات التلاميد'!$Q$5,"",INDEX('بينات التلاميد'!$B$5:$B$584,SMALL(IF('بينات التلاميد'!$B$5:$B$584<>"",ROW('بينات التلاميد'!$B$5:$B$584)-ROW($B$5)+1),ROWS($B$2:B197)))),"") -> بوعواد روفيدة أمنة | C197: =IFERROR(VLOOKUP(B197,'بينات التلاميد'!$B$5:$G$584,6,0),"") -> 2ع ت01
A198: Classe7 | B198: =IFERROR(IF(ROWS($B$2:B198)>'بينات التلاميد'!$Q$5,"",INDEX('بينات التلاميد'!$B$5:$B$584,SMALL(IF('بينات التلاميد'!$B$5:$B$584<>"",ROW('بينات التلاميد'!$B$5:$B$584)-ROW($B$5)+1),ROWS($B$2:B198)))),"") -> حاج علي سهام | C198: =IFERROR(VLOOKUP(B198,'بينات التلاميد'!$B$5:$G$584,6,0),"") -> 2ع ت01
A199: Classe7 | B199: =IFERROR(IF(ROWS($B$2:B199)>'بينات التلاميد'!$Q$5,"",INDEX('بينات التلاميد'!$B$5:$B$584,SMALL(IF('بينات التلاميد'!$B$5:$B$584<>"",ROW('بينات التلاميد'!$B$5:$B$584)-ROW($B$5)+1),ROWS($B$2:B199)))),"") -> حساني إسلام عبد القادر | C199: =IFERROR(VLOOKUP(B199,'بينات التلاميد'!$B$5:$G$584,6,0),"") -> 2ع ت01
A200: Classe7 | B200: =IFERROR(IF(ROWS($B$2:B200)>'بينات التلاميد'!$Q$5,"",INDEX('بينات التلاميد'!$B$5:$B$584,SMALL(IF('بينات التلاميد'!$B$5:$B$584<>"",ROW('بينات التلاميد'!$B$5:$B$584)-ROW($B$5)+1),ROWS($B$2:B200)))),"") -> حقاوي إيمان | C200: =IFERROR(VLOOKUP(B200,'بينات التلاميد'!$B$5:$G$584,6,0),"") -> 2ع ت01
... 1176 more rows

Sheet الغيابات
AJ1: 1
K2: اكتب بداية العام الدراسي هنا | P2: 2017-10-01
A3: الولايــــــــة : | C3: تلمسان | D3: المؤسسة | E3: ثانوية الخوارزمي - مغنية
A4: الرقم | B4: اســــــم التلميذ | C4: القسم | D4: ولي التلميذ | E4: العنــوان | F4: =F5 -> 2017-10-01 | G4: =F4+1 -> 2017-10-02 | H4: =G4+1 -> 2017-10-03 | I4: 2017-10-04 | J4: 2017-10-05 | K4: 2017-10-06 | L4: 2017-10-07 | M4: 2017-10-08 | N4: 2017-10-09 | O4: 2017-10-10 | P4: 2017-10-11 | Q4: 2017-10-12 | R4: 2017-10-13 | S4: 2017-10-14 | T4: 2017-10-15 | U4: 2017-10-16 | V4: 2017-10-17 | W4: 2017-10-18 | X4: =W4+1 -> 2017-10-19 | Y4: 2017-10-20 | Z4: 2017-10-21 | AA4: 2017-10-22 | AB4: 2017-10-23 | AC4: 2017-10-24 | AD4: 2017-10-25 | AE4: 2017-10-26 | AF4: 2017-10-27 | AG4: 2017-10-28 | AH4: 2017-10-29 | AI4: 2017-10-30 | AJ4: 2017-10-31 | AK4: 2017-11-01 | AL4: 2017-11-02 | AM4: 2017-11-03 | AN4: =AM4+1 -> 2017-11-04 | AO4: 2017-11-05 | AP4: 2017-11-06 | AQ4: 2017-11-07 | AR4: 2017-11-08 | AS4: 2017-11-09 | AT4: 2017-11-10 | AU4: 2017-11-11 | AV4: 2017-11-12 | AW4: 2017-11-13 | AX4: 2017-11-14 | AY4: 2017-11-15 | AZ4: 2017-11-16 | BA4: 2017-11-17 | BB4: 2017-11-18 | BC4: 2017-11-19 | BD4: =BC4+1 -> 2017-11-20 | BE4: 2017-11-21 | BF4: 2017-11-22 | BG4: 2017-11-23 | BH4: 2017-11-24 | BI4: 2017-11-25 | BJ4: 2017-11-26 | BK4: 2017-11-27 | BL4: 2017-11-28 | BM4: 2017-11-29 | BN4: 2017-11-30 | BO4: 2017-12-01 | BP4: 2017-12-02 | BQ4: 2017-12-03 | BR4: 2017-12-04 | BS4: 2017-12-05 | BT4: =BS4+1 -> 2017-12-06 | BU4: 2017-12-07 | BV4: 2017-12-08 | BW4: 2017-12-09 | BX4: 2017-12-10 | BY4: 2017-12-11 | BZ4: 2017-12-12 | CA4: 2017-12-13 | CB4: 2017-12-14 | CC4: 2017-12-15 | CD4: 2017-12-16 | CE4: 2017-12-17 | CF4: 2017-12-18 | CG4: 2017-12-19 | CH4: 2017-12-20 | CI4: 2017-12-21 | CJ4: =CI4+1 -> 2017-12-22 | CK4: 2017-12-23 | CL4: 2017-12-24 | CM4: 2017-12-25 | CN4: 2017-12-26 | CO4: 2017-12-27 | CP4: 2017-12-28 | CQ4: 2017-12-29 | CR4: 2017-12-30 | CS4: 2017-12-31 | CT4: 2018-01-01 | CU4: 2018-01-02 | CV4: 2018-01-03 | CW4: 2018-01-04 | CX4: 2018-01-05 | CY4: 2018-01-06 | CZ4: =CY4+1 -> 2018-01-07 | DA4: 2018-01-08 | DB4: 2018-01-09 | DC4: 2018-01-10 | DD4: 2018-01-11 | DE4: 2018-01-12 | DF4: 2018-01-13 | DG4: 2018-01-14 | DH4: 2018-01-15 | DI4: 2018-01-16 | DJ4: 2018-01-17 | DK4: 2018-01-18 | DL4: 2018-01-19 | DM4: 2018-01-20 | DN4: 2018-01-21 | DO4: 2018-01-22 | DP4: =DO4+1 -> 2018-01-23 | DQ4: 2018-01-24 | DR4: 2018-01-25 | DS4: 2018-01-26 | DT4: 2018-01-27 | DU4: 2018-01-28 | DV4: 2018-01-29 | DW4: 2018-01-30 | DX4: 2018-01-31 | DY4: 2018-02-01 | DZ4: 2018-02-02 | EA4: 2018-02-03 | EB4: 2018-02-04 | EC4: 2018-02-05 | ED4: 2018-02-06 | EE4: 2018-02-07 | EF4: =EE4+1 -> 2018-02-08 | EG4: 2018-02-09 | EH4: 2018-02-10 | EI4: 2018-02-11 | EJ4: 2018-02-12 | EK4: 2018-02-13 | EL4: 2018-02-14 | EM4: 2018-02-15 | EN4: 2018-02-16 | EO4: 2018-02-17 | EP4: 2018-02-18 | EQ4: 2018-02-19 | ER4: 2018-02-20 | ES4: 2018-02-21 | ET4: 2018-02-22 | EU4: 2018-02-23 | EV4: =EU4+1 -> 2018-02-24 | EW4: 2018-02-25 | EX4: 2018-02-26 | EY4: 2018-02-27 | EZ4: 2018-02-28 | FA4: 2018-03-01 | FB4: 2018-03-02 | FC4: 2018-03-03 | FD4: 2018-03-04 | FE4: 2018-03-05 | FF4: 2018-03-06 | FG4: 2018-03-07 | FH4: 2018-03-08 | FI4: 2018-03-09 | FJ4: 2018-03-10 | FK4: 2018-03-11 | FL4: =FK4+1 -> 2018-03-12 | FM4: 2018-03-13 | FN4: 2018-03-14 | FO4: 2018-03-15 | FP4: 2018-03-16 | FQ4: 2018-03-17 | FR4: 2018-03-18 | FS4: 2018-03-19 | FT4: 2018-03-20 | FU4: 2018-03-21 | FV4: 2018-03-22 | FW4: 2018-03-23 | FX4: 2018-03-24 | FY4: 2018-03-25 | FZ4: 2018-03-26 | GA4: 2018-03-27 | GB4: =GA4+1 -> 2018-03-28 | GC4: 2018-03-29 | GD4: 2018-03-30 | GE4: 2018-03-31 | GF4: 2018-04-01 | GG4: 2018-04-02 | GH4: 2018-04-03 | GI4: 2018-04-04 | GJ4: 2018-04-05 | GK4: 2018-04-06 | GL4: 2018-04-07 | GM4: 2018-04-08 | GN4: 2018-04-09 | GO4: 2018-04-10 | GP4: 2018-04-11 | GQ4: 2018-04-12 | GR4: =GQ4+1 -> 2018-04-13 | GS4: 2018-04-14 | GT4: 2018-04-15 | GU4: 2018-04-16 | GV4: 2018-04-17 | GW4: 2018-04-18 | GX4: 2018-04-19 | GY4: 2018-04-20 | GZ4: 2018-04-21 | HA4: 2018-04-22 | HB4: 2018-04-23 | HC4: 2018-04-24 | HD4: 2018-04-25 | HE4: 2018-04-26 | HF4: 2018-04-27 | HG4: 2018-04-28 | HH4: =HG4+1 -> 2018-04-29 | HI4: 2018-04-30 | HJ4: 2018-05-01 | HK4: 2018-05-02 | HL4: 2018-05-03 | HM4: 2018-05-04 | HN4: 2018-05-05 | HO4: 2018-05-06 | HP4: 2018-05-07 | HQ4: 2018-05-08 | HR4: 2018-05-09 | HS4: 2018-05-10 | HT4: 2018-05-11 | HU4: 2018-05-12 | HV4: 2018-05-13 | HW4: 2018-05-14 | HX4: =HW4+1 -> 2018-05-15 | HY4: 2018-05-16 | HZ4: 2018-05-17 | IA4: 2018-05-18 | IB4: 2018-05-19 | IC4: 2018-05-20 | ID4: 2018-05-21 | IE4: 2018-05-22
F5: =P2 -> 2017-10-01 | G5: =F5+1 -> 2017-10-02 | H5: 2017-10-03 | I5: 2017-10-04 | J5: 2017-10-05 | K5: 2017-10-06 | L5: 2017-10-07 | M5: 2017-10-08 | N5: 2017-10-09 | O5: 2017-10-10 | P5: 2017-10-11 | Q5: 2017-10-12 | R5: 2017-10-13 | S5: 2017-10-14 | T5: 2017-10-15 | U5: 2017-10-16 | V5: 2017-10-17 | W5: 2017-10-18 | X5: 2017-10-19 | Y5: 2017-10-20 | Z5: 2017-10-21 | AA5: 2017-10-22 | AB5: 2017-10-23 | AC5: 2017-10-24 | AD5: 2017-10-25 | AE5: 2017-10-26 | AF5: 2017-10-27 | AG5: 2017-10-28 | AH5: 2017-10-29 | AI5: 2017-10-30 | AJ5: 2017-10-31 | AK5: 2017-11-01 | AL5: 2017-11-02 | AM5: 2017-11-03 | AN5: 2017-11-04 | AO5: 2017-11-05 | AP5: 2017-11-06 | AQ5: 2017-11-07 | AR5: 2017-11-08 | AS5: 2017-11-09 | AT5: 2017-11-10 | AU5: 2017-11-11 | AV5: 2017-11-12 | AW5: 2017-11-13 | AX5: 2017-11-14 | AY5: 2017-11-15 | AZ5: 2017-11-16 | BA5: 2017-11-17 | BB5: 2017-11-18 | BC5: 2017-11-19 | BD5: 2017-11-20 | BE5: 2017-11-21 | BF5: 2017-11-22 | BG5: 2017-11-23 | BH5: 2017-11-24 | BI5: 2017-11-25 | BJ5: 2017-11-26 | BK5: 2017-11-27 | BL5: 2017-11-28 | BM5: 2017-11-29 | BN5: 2017-11-30 | BO5: 2017-12-01 | BP5: 2017-12-02 | BQ5: 2017-12-03 | BR5: 2017-12-04 | BS5: 2017-12-05 | BT5: 2017-12-06 | BU5: 2017-12-07 | BV5: 2017-12-08 | BW5: 2017-12-09 | BX5: 2017-12-10 | BY5: 2017-12-11 | BZ5: 2017-12-12 | CA5: 2017-12-13 | CB5: 2017-12-14 | CC5: 2017-12-15 | CD5: 2017-12-16 | CE5: 2017-12-17 | CF5: 2017-12-18 | CG5: 2017-12-19 | CH5: 2017-12-20 | CI5: 2017-12-21 | CJ5: 2017-12-22 | CK5: 2017-12-23 | CL5: 2017-12-24 | CM5: 2017-12-25 | CN5: 2017-12-26 | CO5: 2017-12-27 | CP5: 2017-12-28 | CQ5: 2017-12-29 | CR5: 2017-12-30 | CS5: 2017-12-31 | CT5: 2018-01-01 | CU5: 2018-01-02 | CV5: 2018-01-03 | CW5: 2018-01-04 | CX5: 2018-01-05 | CY5: 2018-01-06 | CZ5: 2018-01-07 | DA5: 2018-01-08 | DB5: 2018-01-09 | DC5: 2018-01-10 | DD5: 2018-01-11 | DE5: 2018-01-12 | DF5: 2018-01-13 | DG5: 2018-01-14 | DH5: 2018-01-15 | DI5: 2018-01-16 | DJ5: 2018-01-17 | DK5: 2018-01-18 | DL5: 2018-01-19 | DM5: 2018-01-20 | DN5: 2018-01-21 | DO5: 2018-01-22 | DP5: 2018-01-23 | DQ5: 2018-01-24 | DR5: 2018-01-25 | DS5: 2018-01-26 | DT5: 2018-01-27 | DU5: 2018-01-28 | DV5: 2018-01-29 | DW5: 2018-01-30 | DX5: 2018-01-31 | DY5: 2018-02-01 | DZ5: 2018-02-02 | EA5: 2018-02-03 | EB5: 2018-02-04 | EC5: 2018-02-05 | ED5: 2018-02-06 | EE5: 2018-02-07 | EF5: 2018-02-08 | EG5: 2018-02-09 | EH5: 2018-02-10 | EI5: 2018-02-11 | EJ5: 2018-02-12 | EK5: 2018-02-13 | EL5: 2018-02-14 | EM5: 2018-02-15 | EN5: 2018-02-16 | EO5: 2018-02-17 | EP5: 2018-02-18 | EQ5: 2018-02-19 | ER5: 2018-02-20 | ES5: 2018-02-21 | ET5: 2018-02-22 | EU5: 2018-02-23 | EV5: 2018-02-24 | EW5: 2018-02-25 | EX5: 2018-02-26 | EY5: 2018-02-27 | EZ5: 2018-02-28 | FA5: 2018-03-01 | FB5: 2018-03-02 | FC5: 2018-03-03 | FD5: 2018-03-04 | FE5: 2018-03-05 | FF5: 2018-03-06 | FG5: 2018-03-07 | FH5: 2018-03-08 | FI5: 2018-03-09 | FJ5: 2018-03-10 | FK5: 2018-03-11 | FL5: 2018-03-12 | FM5: 2018-03-13 | FN5: 2018-03-14 | FO5: 2018-03-15 | FP5: 2018-03-16 | FQ5: 2018-03-17 | FR5: 2018-03-18 | FS5: 2018-03-19 | FT5: 2018-03-20 | FU5: 2018-03-21 | FV5: 2018-03-22 | FW5: 2018-03-23 | FX5: 2018-03-24 | FY5: 2018-03-25 | FZ5: 2018-03-26 | GA5: 2018-03-27 | GB5: 2018-03-28 | GC5: 2018-03-29 | GD5: 2018-03-30 | GE5: 2018-03-31 | GF5: 2018-04-01 | GG5: 2018-04-02 | GH5: 2018-04-03 | GI5: 2018-04-04 | GJ5: 2018-04-05 | GK5: 2018-04-06 | GL5: 2018-04-07 | GM5: 2018-04-08 | GN5: 2018-04-09 | GO5: 2018-04-10 | GP5: 2018-04-11 | GQ5: 2018-04-12 | GR5: 2018-04-13 | GS5: 2018-04-14 | GT5: 2018-04-15 | GU5: 2018-04-16 | GV5: 2018-04-17 | GW5: 2018-04-18 | GX5: 2018-04-19 | GY5: 2018-04-20 | GZ5: 2018-04-21 | HA5: 2018-04-22 | HB5: 2018-04-23 | HC5: 2018-04-24 | HD5: 2018-04-25 | HE5: 2018-04-26 | HF5: 2018-04-27 | HG5: 2018-04-28 | HH5: 2018-04-29 | HI5: 2018-04-30 | HJ5: 2018-05-01 | HK5: 2018-05-02 | HL5: 2018-05-03 | HM5: 2018-05-04 | HN5: 2018-05-05 | HO5: 2018-05-06 | HP5: 2018-05-07 | HQ5: 2018-05-08 | HR5: 2018-05-09 | HS5: 2018-05-10 | HT5: 2018-05-11 | HU5: 2018-05-12 | HV5: 2018-05-13 | HW5: 2018-05-14 | HX5: 2018-05-15 | HY5: 2018-05-16 | HZ5: 2018-05-17 | IA5: 2018-05-18 | IB5: 2018-05-19 | IC5: 2018-05-20 | ID5: 2018-05-21 | IE5: 2018-05-22
A6: =+IF(B6=0,"",SUBTOTAL(3,B$6:B6)) -> 1 | B6: أوكيلي دنيا | C6: 3ت ر | D6: أوكيلي ميلود | E6: حي الركيزة حمام بوغرارة 13320
A7: =+IF(B7=0,"",SUBTOTAL(3,B$6:B7)) -> 2 | B7: امحمدي بشرى | C7: 3ت ر | D7: امحمدي الشيخ | E7: قرية عقيد عباس
A8: =+IF(B8=0,"",SUBTOTAL(3,B$6:B8)) -> 3 | B8: برودي بشرى | C8: 3ت ر | D8: برودي عبد القادر | E8: قرية البخاتة مغنية
A9: =+IF(B9=0,"",SUBTOTAL(3,B$6:B9)) -> 4 | B9: بلعالية محمد الأمين | C9: 3ت ر | D9: بلعالية محمد | E9: قرية العقيد عباس ـ مغنية
A10: =+IF(B10=0,"",SUBTOTAL(3,B$6:B10)) -> 5 | B10: بلميمون ابتسام | C10: 3ت ر | D10: بلميمون عبد القادر | E10: شارع01 رقم 34 حي الشهداء ـ مغنية
A11: =+IF(B11=0,"",SUBTOTAL(3,B$6:B11)) -> 6 | B11: بوعناني أيمن | C11: 3ت ر | D11: بوعناني غياث | E11: عمارة A06 حي القاضي - مغنية
A12: =+IF(B12=0,"",SUBTOTAL(3,B$6:B12)) -> 7 | B12: تابتي فاطنة | C12: 3ت ر | D12: تابتي محمد | E12: الطريق الوطني رقم 35 الكفاف ـ مغنية
A13: =+IF(B13=0,"",SUBTOTAL(3,B$6:B13)) -> 8 | B13: حماد محمد الأمين | C13: 3ت ر | D13: حماد دريوش | E13: حمام بوغرارة 13320
A14: =+IF(B14=0,"",SUBTOTAL(3,B$6:B14)) -> 9 | B14: حمادي أمحمد عماد | C14: 3ت ر | D14: حمادي يوسف | E14: حي الشهداء ـ مغنية
A15: =+IF(B15=0,"",SUBTOTAL(3,B$6:B15)) -> 10 | B15: دخيسي عثمان | C15: 3ت ر | D15: دخيسي محمد | E15: قرية اولاد الشارف ـ مغنية
A16: =+IF(B16=0,"",SUBTOTAL(3,B$6:B16)) -> 11 | B16: زناقي شريفة | C16: 3ت ر | D16: زناقي عمر | E16: قرية بوسدرة البخاتة ، مغنية
A17: =+IF(B17=0,"",SUBTOTAL(3,B$6:B17)) -> 12 | B17: سكران عبد الهادي | C17: 3ت ر | D17: سكران مصطفي | E17: قرية لكفاف
A18: =+IF(B18=0,"",SUBTOTAL(3,B$6:B18)) -> 13 | B18: طوالة بهاء الدين | C18: 3ت ر | D18: طوالة الهبري | E18: قرية المصامدة ، مغنية
A19: =+IF(B19=0,"",SUBTOTAL(3,B$6:B19)) -> 14 | B19: قادري رابح صغير أمين | C19: 3ت ر | D19: قادري عبد العزيز | E19: حي الشهداء ـ مغنية
A20: =+IF(B20=0,"",SUBTOTAL(3,B$6:B20)) -> 15 | B20: مرغاد إلياس | C20: 3ت ر | D20: مرغاد عبد الرزاق | E20: حي الشهداء ـ مغنية
A21: =+IF(B21=0,"",SUBTOTAL(3,B$6:B21)) -> 16 | B21: مزاري أيمن | C21: 3ت ر | D21: مزاري العيد | E21: حي الركيزة حمام بوغرارة 13320
A22: =+IF(B22=0,"",SUBTOTAL(3,B$6:B22)) -> 17 | B22: مزاري عبد الله | C22: 3ت ر | D22: مزاري بلخير | E22: حمام بوغرارة
A23: =+IF(B23=0,"",SUBTOTAL(3,B$6:B23)) -> 18 | B23: منصور إيمان دينا زاد | C23: 3ت ر | D23: منصور محمد | E23: قرية المصامدة ، مغنية
A24: =+IF(B24=0,"",SUBTOTAL(3,B$6:B24)) -> 19 | B24: منصوري المهدي | C24: 3ت ر | D24: منصوري محمد | E24: حمام بوغرارة 13320
A25: =+IF(B25=0,"",SUBTOTAL(3,B$6:B25)) -> 20 | B25: موسى أيوب | C25: 3ت ر | D25: موسى محمد | E25: حي الشهداء حي جابر رقم 17 مغنية
A26: =+IF(B26=0,"",SUBTOTAL(3,B$6:B26)) -> 21 | B26: هداجي أمير يونس | C26: 3ت ر | D26: هداجي عبد الجليل | E26: قرية اولاد الشارف مغنية
A27: =+IF(B27=0,"",SUBTOTAL(3,B$6:B27)) -> 22 | B27: وادفل سارة | C27: 3ت ر | D27: وادفل بن يونس | E27: حي الشهداء رقم 10
A28: =+IF(B28=0,"",SUBTOTAL(3,B$6:B28)) -> 23 | B28: برحيل وداد | C28: 3ع ت01 | D28: برحيل عبد الرحمن | E28: قرية المصامدة ـ مغنية
A29: =+IF(B29=0,"",SUBTOTAL(3,B$6:B29)) -> 24 | B29: بعوش مريم | C29: 3ع ت01 | D29: بعوش لحسن | E29: قرية العقيد عباس ، مغنية
A30: =+IF(B30=0,"",SUBTOTAL(3,B$6:B30)) -> 25 | B30: بلحسن حسين | C30: 3ع ت01 | D30: بلحسن عبد الرزاق | E30: مزرعة الشرقاي العيد ، مغنية
A31: =+IF(B31=0,"",SUBTOTAL(3,B$6:B31)) -> 26 | B31: بوزيان بلال | C31: 3ع ت01 | D31: بوزيان أحمد | E31: حي الشهداء ، مغنية
A32: =+IF(B32=0,"",SUBTOTAL(3,B$6:B32)) -> 27 | B32: تابتي لخضر | C32: 3ع ت01 | D32: تابتي لخضر | E32: الطريق الوطني رقم 35 الكفاف ، مغنية
A33: =+IF(B33=0,"",SUBTOTAL(3,B$6:B33)) -> 28 | B33: تواتي نادية | C33: 3ع ت01 | D33: تواتي عبد القادر | E33: قرية أولاد الشارف ، مغنية
A34: =+IF(B34=0,"",SUBTOTAL(3,B$6:B34)) -> 29 | B34: جزيري محمد | C34: 3ع ت01 | D34: جزيري علي | E34: قرية بوسدرة البخاتة ـ مغنية
A35: =+IF(B35=0,"",SUBTOTAL(3,B$6:B35)) -> 30 | B35: حميدي أسية | C35: 3ع ت01 | D35: حميدي موسى | E35: حي الباطوار شارع 17 الباب 06 مغنية
A36: =+IF(B36=0,"",SUBTOTAL(3,B$6:B36)) -> 31 | B36: خاطر منال | C36: 3ع ت01 | D36: خاطر أحمد | E36: قرية بوسدرة البخاتة ، مغنية
A37: =+IF(B37=0,"",SUBTOTAL(3,B$6:B37)) -> 32 | B37: خروبي فاطنة | C37: 3ع ت01 | D37: خروبي امعمر | E37: قرية العقيد عباس - مغنية
A38: =+IF(B38=0,"",SUBTOTAL(3,B$6:B38)) -> 33 | B38: داود رامي كمال الدين | C38: 3ع ت01 | D38: داود الطيب | E38: حي أولاد بن صابر ، مغنية
A39: =+IF(B39=0,"",SUBTOTAL(3,B$6:B39)) -> 34 | B39: دمامن محمد | C39: 3ع ت01 | D39: دمامن خالد | E39: قرية لكفاف مغنية
A40: =+IF(B40=0,"",SUBTOTAL(3,B$6:B40)) -> 35 | B40: زيني محمد بلال | C40: 3ع ت01 | D40: زيني واسيني | E40: اولاد الشارف مغنية تلمسان
A41: =+IF(B41=0,"",SUBTOTAL(3,B$6:B41)) -> 36 | B41: صدوقي صالح | C41: 3ع ت01 | D41: صدوقي يماني | E41: قرية العقيد لطيفي L4 B2 مغنية
A42: =+IF(B42=0,"",SUBTOTAL(3,B$6:B42)) -> 37 | B42: ضيف الله محمد الشريف | C42: 3ع ت01 | D42: ضيف الله علي | E42: شارع 25 حي الشهداء ـ مغنية
A43: =+IF(B43=0,"",SUBTOTAL(3,B$6:B43)) -> 38 | B43: طاهي نهال فاطمة الزهراء | C43: 3ع ت01 | D43: طاهي فتحي | E43: حي بلال العمارة رقم04 الطابق3
A44: =+IF(B44=0,"",SUBTOTAL(3,B$6:B44)) -> 39 | B44: عبد النبي زكية | C44: 3ع ت01 | D44: عبد النبي عبد القادر | E44: الطريق الوطني رقم 35 الكفاف ، مغنية
A45: =+IF(B45=0,"",SUBTOTAL(3,B$6:B45)) -> 40 | B45: عرقوب عبد اللطيف | C45: 3ع ت01 | D45: عرقوب جمال | E45: قرية المصامدة ـ مغنية
A46: =+IF(B46=0,"",SUBTOTAL(3,B$6:B46)) -> 41 | B46: عميرات وليد | C46: 3ع ت01 | D46: عميرات محمد | E46: شارع 30 رقم 20 حي القراني - مغنية
A47: =+IF(B47=0,"",SUBTOTAL(3,B$6:B47)) -> 42 | B47: قاشور محمد شعيب | C47: 3ع ت01 | D47: قاشور محمد | E47: رقم 16 شارع محطة القطار ، مغنية
A48: =+IF(B48=0,"",SUBTOTAL(3,B$6:B48)) -> 43 | B48: كلاليش منال | C48: 3ع ت01 | D48: كلاليش سعيد | E48: 27حي 240 مسكن حي الغابات مغنية
A49: =+IF(B49=0,"",SUBTOTAL(3,B$6:B49)) -> 44 | B49: لكحل عماد | C49: 3ع ت01 | D49: لكحل مصطفي | E49: اولاد قدور الصغار مغنية
A50: =+IF(B50=0,"",SUBTOTAL(3,B$6:B50)) -> 45 | B50: مزاري دنيا زاد | C50: 3ع ت01 | D50: مزاري واسيني | E50: قرية البخاتة بوسدرة مغنية
A51: =+IF(B51=0,"",SUBTOTAL(3,B$6:B51)) -> 46 | B51: مزيان يسرى نورالهدى | C51: 3ع ت01 | D51: مزيان ميلود | E51: حي الشهداء رقم39
A52: =+IF(B52=0,"",SUBTOTAL(3,B$6:B52)) -> 47 | B52: هاملي سماح | C52: 3ع ت01 | D52: هاملي عبد العزيز | E52: حي بلال رقم 41 ، مغنية
A53: =+IF(B53=0,"",SUBTOTAL(3,B$6:B53)) -> 48 | B53: أجرادي منصور | C53: 3ع ت02 | D53: أجرادي براهيم | E53: الزاوية القرانية أولاد الشارف - مغنية
A54: =+IF(B54=0,"",SUBTOTAL(3,B$6:B54)) -> 49 | B54: العرباوي محمد عبد الإله | C54: 3ع ت02 | D54: العرباوي أحمد | E54: 05 الحي السكني ، مغنية
A55: =+IF(B55=0,"",SUBTOTAL(3,B$6:B55)) -> 50 | B55: القرمة محمد رياض | C55: 3ع ت02 | D55: القرمة ميلود | E55: قرية أولاد الشارف - مغنية
A56: =+IF(B56=0,"",SUBTOTAL(3,B$6:B56)) -> 51 | B56: بطيوي فرح | C56: 3ع ت02 | D56: بطيوي محمد | E56: مزرعة جابر حي الشهداء
A57: =+IF(B57=0,"",SUBTOTAL(3,B$6:B57)) -> 52 | B57: بن براهيم شهرزاد | C57: 3ع ت02 | D57: بن براهيم محمد | E57: قرية البخاتة بوسدرة مغنية
A58: =+IF(B58=0,"",SUBTOTAL(3,B$6:B58)) -> 53 | B58: بن زغادي مروى | C58: 3ع ت02 | D58: بن زغادي محمد | E58: قرية أولاد الشارف - مغنية
A59: =+IF(B59=0,"",SUBTOTAL(3,B$6:B59)) -> 54 | B59: بن زغادي هديل | C59: 3ع ت02 | D59: ين زغادي بن أعمر | E59: حي الشهداء ـ مغنية
A60: =+IF(B60=0,"",SUBTOTAL(3,B$6:B60)) -> 55 | B60: بن سالم نجوى | C60: 3ع ت02 | D60: بن سالم علي | E60: حي الشهداء ـ مغنية
A61: =+IF(B61=0,"",SUBTOTAL(3,B$6:B61)) -> 56 | B61: بن علي نور الايمان | C61: 3ع ت02 | D61: لحسن ناصر محمد | E61: قباضة الضرائب حي بن رشد
A62: =+IF(B62=0,"",SUBTOTAL(3,B$6:B62)) -> 57 | B62: بوزي فتحي | C62: 3ع ت02 | D62: بوزي رمضان | E62: رقم 25 حي الشهداء ، مغنية
A63: =+IF(B63=0,"",SUBTOTAL(3,B$6:B63)) -> 58 | B63: حجيمي شروق | C63: 3ع ت02 | D63: حجيمي علي | E63: حي الشرطة 70مسكن عمارة 35
A64: =+IF(B64=0,"",SUBTOTAL(3,B$6:B64)) -> 59 | B64: زيتوني محمد الأمين | C64: 3ع ت02 | D64: زيتوني محمد | E64: قرية المصامدة ـ مغنية
A65: =+IF(B65=0,"",SUBTOTAL(3,B$6:B65)) -> 60 | B65: سبيع الواسيني | C65: 3ع ت02 | D65: سبيع نورالدين | E65: عمارة P قرية العقيد لطفي ـ مغنية
A66: =+IF(B66=0,"",SUBTOTAL(3,B$6:B66)) -> 61 | B66: شارف شيماء | C66: 3ع ت02 | D66: شارف محمد | E66: ثكنة الحماية المدنية حي بلال مغنية
A67: =+IF(B67=0,"",SUBTOTAL(3,B$6:B67)) -> 62 | B67: شقرون مريم | C67: 3ع ت02 | D67: شقرون لحسن | E67: حمام بوغرارة
A68: =+IF(B68=0,"",SUBTOTAL(3,B$6:B68)) -> 63 | B68: شقرون هبة الرحمن | C68: 3ع ت02 | D68: شقرون محمد | E68: شارع 01 منزل 25 حي الشهداء ، مغنية
A69: =+IF(B69=0,"",SUBTOTAL(3,B$6:B69)) -> 64 | B69: عبد اللاهي حياة | C69: 3ع ت02 | D69: عبد اللاهي محمد | E69: طريق المسبح رقم 01 حي الشهداء ـ مغنية
A70: =+IF(B70=0,"",SUBTOTAL(3,B$6:B70)) -> 65 | B70: عبو محمد | C70: 3ع ت02 | D70: عبو بوزيان | E70: قرية أولاد الشارف - مغنية
A71: =+IF(B71=0,"",SUBTOTAL(3,B$6:B71)) -> 66 | B71: قزوي ياسين | C71: 3ع ت02 | D71: قزوي عبد القادر | E71: الحي السكني الجديد البريقي ـ مغنية
A72: =+IF(B72=0,"",SUBTOTAL(3,B$6:B72)) -> 67 | B72: لزعر مروى | C72: 3ع ت02 | D72: لزعر زوبير | E72: درب 0 رقم 04 حي المقراني ـ مغنية
A73: =+IF(B73=0,"",SUBTOTAL(3,B$6:B73)) -> 68 | B73: مزاري إبراهيم | C73: 3ع ت02 | D73: مزاري واسيني | E73: قرية بوسدرة البخاتة ، مغنية
A74: =+IF(B74=0,"",SUBTOTAL(3,B$6:B74)) -> 69 | B74: مزاري خديجة | C74: 3ع ت02 | D74: مزاري أحمد | E74: قرية بوسدرة البخاتة ، مغنية
A75: =+IF(B75=0,"",SUBTOTAL(3,B$6:B75)) -> 70 | B75: منور فريال عبير | C75: 3ع ت02 | D75: منور احمد | E75: قرية العقيد عباس
A76: =+IF(B76=0,"",SUBTOTAL(3,B$6:B76)) -> 71 | B76: هواري رجاء | C76: 3ع ت02 | D76: هواري عبد القادر | E76: قرية المصامدة ، مغنية
A77: =+IF(B77=0,"",SUBTOTAL(3,B$6:B77)) -> 72 | B77: واسطي أيمن | C77: 3ع ت02 | D77: واسطي محمد | E77: حي الشهداء ـ مغنية
A78: =+IF(B78=0,"",SUBTOTAL(3,B$6:B78)) -> 73 | B78: أمبارك فايزة | C78: 3ت إ | D78: أمبارك ميلود | E78: قرية العقيد عباس
A79: =+IF(B79=0,"",SUBTOTAL(3,B$6:B79)) -> 74 | B79: أير مقران عائشة صبرينة | C79: 3ت إ | D79: أير مقران محمد | E79: قرية المصامدة ، مغنية
A80: =+IF(B80=0,"",SUBTOTAL(3,B$6:B80)) -> 75 | B80: العياطي إسلام | C80: 3ت إ | D80: العياطي تهامي | E80: حمام بوغرارة
A81: =+IF(B81=0,"",SUBTOTAL(3,B$6:B81)) -> 76 | B81: بسويعة صباح | C81: 3ت إ | D81: مطهري عايدة | E81: ثانوية الخوارزمي ـ مغنية
A82: =+IF(B82=0,"",SUBTOTAL(3,B$6:B82)) -> 77 | B82: بن زعتر محمد الواسيني | C82: 3ت إ | D82: بن زعتر محمد | E82: قرية أولاد الشارف ، مغنية
A83: =+IF(B83=0,"",SUBTOTAL(3,B$6:B83)) -> 78 | B83: بن ساحة جيلالي | C83: 3ت إ | D83: بن ساحة أحمد | E83: قرية المصامدة ـ مغنية
A84: =+IF(B84=0,"",SUBTOTAL(3,B$6:B84)) -> 79 | B84: بن عابد سارة | C84: 3ت إ | D84: بن عابد بن أحمد | E84: قرية أولاد الشارف ، مغنية
A85: =+IF(B85=0,"",SUBTOTAL(3,B$6:B85)) -> 80 | B85: بن موسى وردة | C85: 3ت إ | D85: بن موسى لحسن | E85: قرية بوسدرة البخاتة ، مغنية
A86: =+IF(B86=0,"",SUBTOTAL(3,B$6:B86)) -> 81 | B86: بوزاهري إكرام | C86: 3ت إ | D86: بوزاهري مصطفى | E86: قرية العقيد عباس ـ مغنية
A87: =+IF(B87=0,"",SUBTOTAL(3,B$6:B87)) -> 82 | B87: بوشيخي شرف الدين | C87: 3ت إ | D87: بوشيخي محمد | E87: قرية المصامدة ، مغنية
A88: =+IF(B88=0,"",SUBTOTAL(3,B$6:B88)) -> 83 | B88: بوماجر يوسف | C88: 3ت إ | D88: بوماجر أحمد | E88: محطة العقيد عباس ـ مغنية
A89: =+IF(B89=0,"",SUBTOTAL(3,B$6:B89)) -> 84 | B89: ترنان شرف الدين | C89: 3ت إ | D89: ترنان واسيني | E89: حي بلال ، مغنية
A90: =+IF(B90=0,"",SUBTOTAL(3,B$6:B90)) -> 85 | B90: حمادي عبد الجليل | C90: 3ت إ | D90: حمادي علي | E90: قرية المصامدة ـ مغنية
A91: =+IF(B91=0,"",SUBTOTAL(3,B$6:B91)) -> 86 | B91: حمدوني إناس | C91: 3ت إ | D91: حمدوني عبد القادر | E91: حي الشهداء ، مغنية
A92: =+IF(B92=0,"",SUBTOTAL(3,B$6:B92)) -> 87 | B92: خاليد هشام | C92: 3ت إ | D92: خاليد شريف | E92: حمام بوغرارة 13320
A93: =+IF(B93=0,"",SUBTOTAL(3,B$6:B93)) -> 88 | B93: خثير أمينة | C93: 3ت إ | D93: خثير محمد | E93: قرية أولاد الشارف ـ مغنية
A94: =+IF(B94=0,"",SUBTOTAL(3,B$6:B94)) -> 89 | B94: خلوفي وليد | C94: 3ت إ | D94: خلوفي رابح | E94: حي الركيزة حمام بوغرارة
A95: =+IF(B95=0,"",SUBTOTAL(3,B$6:B95)) -> 90 | B95: خليد هاجر | C95: 3ت إ | D95: خليد يحيى | E95: حمام بوغرارة 1333
A96: =+IF(B96=0,"",SUBTOTAL(3,B$6:B96)) -> 91 | B96: ديب أحمد طاع الله | C96: 3ت إ | D96: ديب بومدين | E96: قرية أولاد الشارف ـ مغنية
A97: =+IF(B97=0,"",SUBTOTAL(3,B$6:B97)) -> 92 | B97: راجعي يوسف | C97: 3ت إ | D97: راجعي عبد الحميد | E97: قرية أولاد الشارف ـ مغنية
A98: =+IF(B98=0,"",SUBTOTAL(3,B$6:B98)) -> 93 | B98: زرقاني عبد الرحيم | C98: 3ت إ | D98: زرقاني عبد الغني | E98: قرية أولاد الشارف ، مغنية
A99: =+IF(B99=0,"",SUBTOTAL(3,B$6:B99)) -> 94 | B99: ساعد نسرين | C99: 3ت إ | D99: ساعد حمزة | E99: قرية أولاد الشارف ـ مغنية
A100: =+IF(B100=0,"",SUBTOTAL(3,B$6:B100)) -> 95 | B100: شباب عبد الوهاب | C100: 3ت إ | D100: شباب مختار | E100: حمام بوغرارة 13320
A101: =+IF(B101=0,"",SUBTOTAL(3,B$6:B101)) -> 96 | B101: شقرون منال | C101: 3ت إ | D101: شقرون عبد الفتاح | E101: حمام بوغرارة
A102: =+IF(B102=0,"",SUBTOTAL(3,B$6:B102)) -> 97 | B102: صديقي أمينة شيماء | C102: 3ت إ | D102: صديقي محمد | E102: رقم 42 شارع شعبان حمدون ـ مغنية
A103: =+IF(B103=0,"",SUBTOTAL(3,B$6:B103)) -> 98 | B103: ضيف بن أعمر | C103: 3ت إ | D103: ضيف شيخ | E103: حمام بوغرارة 13320
A104: =+IF(B104=0,"",SUBTOTAL(3,B$6:B104)) -> 99 | B104: ضيف عماد الدين | C104: 3ت إ | D104: ضيف بن عمر | E104: حمام بوغرارة 13320
A105: =+IF(B105=0,"",SUBTOTAL(3,B$6:B105)) -> 100 | B105: عباس جواد | C105: 3ت إ | D105: محمد عباس | E105: حمام بوغرارة
A106: =+IF(B106=0,"",SUBTOTAL(3,B$6:B106)) -> 101 | B106: عبد المالك يوسف | C106: 3ت إ | D106: عبد المالك محمد | E106: قرية أولاد الشارف ، مغنية
A107: =+IF(B107=0,"",SUBTOTAL(3,B$6:B107)) -> 102 | B107: علوش عبد الحكيم | C107: 3ت إ | D107: علوش محمد | E107: قرية بوسدرة البخاتة ، مغنية
A108: =+IF(B108=0,"",SUBTOTAL(3,B$6:B108)) -> 103 | B108: عمراوي شيماء | C108: 3ت إ | D108: عمراوي عبد الحفيظ | E108: قرية العقيد عباس ـ مغنية
A109: =+IF(B109=0,"",SUBTOTAL(3,B$6:B109)) -> 104 | B109: قزوي محمد حبيب | C109: 3ت إ | D109: قزوي فوزي | E109: قرية العقيد عباس ، مغنية
A110: =+IF(B110=0,"",SUBTOTAL(3,B$6:B110)) -> 105 | B110: قعاد جميلة | C110: 3ت إ | D110: قعاد عبد القادر | E110: قرية المصامدة مغنية عند التاجر بوعزة القندوز
A111: =+IF(B111=0,"",SUBTOTAL(3,B$6:B111)) -> 106 | B111: قنشي أحلام | C111: 3ت إ | D111: قنشي فوزي | E111: حي الشهداء منزل02 شارع02
A112: =+IF(B112=0,"",SUBTOTAL(3,B$6:B112)) -> 107 | B112: كاملين معمر | C112: 3ت إ | D112: كاملين صالح | E112: قرية المصامدة ـ مغنية
A113: =+IF(B113=0,"",SUBTOTAL(3,B$6:B113)) -> 108 | B113: لياني مروان | C113: 3ت إ | D113: لياني محمد | E113: حمام بوغرارة 13320
A114: =+IF(B114=0,"",SUBTOTAL(3,B$6:B114)) -> 109 | B114: نميش صفاء حفيظة | C114: 3ت إ | D114: نميش محمد | E114: حي الشهداء - مغنية
A115: =+IF(B115=0,"",SUBTOTAL(3,B$6:B115)) -> 110 | B115: ولد علي أمينة | C115: 3ت إ | D115: ولد علي بومدين | E115: حمام بوغرارة
A116: =+IF(B116=0,"",SUBTOTAL(3,B$6:B116)) -> 111 | B116: أمحمدي جهان | C116: 3أ ف | D116: أمحمدي محمد | E116: قرية أولاد قدور ـ مغنية
A117: =+IF(B117=0,"",SUBTOTAL(3,B$6:B117)) -> 112 | B117: بختي بشرى | C117: 3أ ف | D117: بختي عبد الله | E117: قرية بوسدرة البخاتة ـ مغنية
A118: =+IF(B118=0,"",SUBTOTAL(3,B$6:B118)) -> 113 | B118: بداد أية فاطمة الزهراء | C118: 3أ ف | D118: بداد احمد | E118: 29 حي الشهداء
A119: =+IF(B119=0,"",SUBTOTAL(3,B$6:B119)) -> 114 | B119: بشلاغم سمية | C119: 3أ ف | D119: اوكيلي مصطفى | E119: قرية أولاد الشارف ـ مغنية
A120: =+IF(B120=0,"",SUBTOTAL(3,B$6:B120)) -> 115 | B120: بن حامد فايزة | C120: 3أ ف | D120: بن حامد عبد الخفيظ | E120: حي الشهداء ـ مغنبة
A121: =+IF(B121=0,"",SUBTOTAL(3,B$6:B121)) -> 116 | B121: بن شقرة سارة | C121: 3أ ف | D121: بن شقرة عبد الكريم | E121: قرية المصامدة ـ مغنية
A122: =+IF(B122=0,"",SUBTOTAL(3,B$6:B122)) -> 117 | B122: بوزيدي مريم | C122: 3أ ف | D122: بوزيدي محمد | E122: ص.ب 512 مغنية
A123: =+IF(B123=0,"",SUBTOTAL(3,B$6:B123)) -> 118 | B123: توبردة مغنية | C123: 3أ ف | D123: توبردة بن يعقوب | E123: قرية المصامدة ـ مغنية
A124: =+IF(B124=0,"",SUBTOTAL(3,B$6:B124)) -> 119 | B124: حابن اسمهان | C124: 3أ ف | D124: حاين عبد الحميد | E124: قرية البخاتة بوسدرة
A125: =+IF(B125=0,"",SUBTOTAL(3,B$6:B125)) -> 120 | B125: حاجي مونية | C125: 3أ ف | D125: حاجي عبد الحكيم | E125: حمام بوغرارة 13320
A126: =+IF(B126=0,"",SUBTOTAL(3,B$6:B126)) -> 121 | B126: حساين نبيلة | C126: 3أ ف | D126: حساين احمد | E126: قرية البخاتة
A127: =+IF(B127=0,"",SUBTOTAL(3,B$6:B127)) -> 122 | B127: حمادي أمال | C127: 3أ ف | D127: حمادي بن عمر | E127: محطة الأرصاد الجوية العقيد عباس ـ مغنية
A128: =+IF(B128=0,"",SUBTOTAL(3,B$6:B128)) -> 123 | B128: حمادي الواسيني | C128: 3أ ف | D128: حمادي لخضر | E128: قرية بوسدرة البخاتة
A129: =+IF(B129=0,"",SUBTOTAL(3,B$6:B129)) -> 124 | B129: حمادي مغنية | C129: 3أ ف | D129: حمادي يحيى | E129: قرية بوسدرة البخاتة ـ مغنية
A130: =+IF(B130=0,"",SUBTOTAL(3,B$6:B130)) -> 125 | B130: دخيسي أحلام | C130: 3أ ف | D130: دخيسي حسين | E130: قرية بوسدرة البخاتة
A131: =+IF(B131=0,"",SUBTOTAL(3,B$6:B131)) -> 126 | B131: دعنون منال | C131: 3أ ف | D131: دعنون محمد | E131: باب العسة
A132: =+IF(B132=0,"",SUBTOTAL(3,B$6:B132)) -> 127 | B132: زرعي يامنة | C132: 3أ ف | D132: زرعي سيدي محمد | E132: حي بلال - مغنية
A133: =+IF(B133=0,"",SUBTOTAL(3,B$6:B133)) -> 128 | B133: زقاي شهيناز | C133: 3أ ف | D133: زقاي محمد | E133: شارع 71 رقم 05 حي المدرجات ـ مغنية
A134: =+IF(B134=0,"",SUBTOTAL(3,B$6:B134)) -> 129 | B134: سلطاني سارة | C134: 3أ ف | D134: سلطاني بن ثابت | E134: درب 16 رقم 35 حي الشهداء ، مغنية
A135: =+IF(B135=0,"",SUBTOTAL(3,B$6:B135)) -> 130 | B135: شرقي ليلى | C135: 3أ ف | D135: شرقي محمد | E135: قرية أولاد قدور الكبار ـ مغنية
A136: =+IF(B136=0,"",SUBTOTAL(3,B$6:B136)) -> 131 | B136: صحراوي لمياء | C136: 3أ ف | D136: صحراوي حميد | E136: قرية بوسدرة البخاتة ـ مغنية
A137: =+IF(B137=0,"",SUBTOTAL(3,B$6:B137)) -> 132 | B137: عايشي عربية فاطمة الزهراء | C137: 3أ ف | D137: عايشي شوقي | E137: قرية البخاتة بوسدرة
A138: =+IF(B138=0,"",SUBTOTAL(3,B$6:B138)) -> 133 | B138: عبد المالك جنات | C138: 3أ ف | D138: عبد المالك بن عمر | E138: قرية بوسدرة البخاتة مغنية
A139: =+IF(B139=0,"",SUBTOTAL(3,B$6:B139)) -> 134 | B139: عبد المالك فاطمة الزهراء | C139: 3أ ف | D139: عبد المالك واسيني | E139: حي الشهداء شارع 22 رقم46
A140: =+IF(B140=0,"",SUBTOTAL(3,B$6:B140)) -> 135 | B140: علوان مروى | C140: 3أ ف | D140: علوان بشير | E140: قرية بوسدرة البخاتة ـ مغنية
A141: =+IF(B141=0,"",SUBTOTAL(3,B$6:B141)) -> 136 | B141: فوقي نور الهدى | C141: 3أ ف | D141: فوقي بشير | E141: قرية أولاد الشارف ـ مغنية
A142: =+IF(B142=0,"",SUBTOTAL(3,B$6:B142)) -> 137 | B142: لعشب شيماء | C142: 3أ ف | D142: لعشب احمد | E142: مسجد الامام البخاري حي الشهداء
A143: =+IF(B143=0,"",SUBTOTAL(3,B$6:B143)) -> 138 | B143: محياوي خديجة | C143: 3أ ف | D143: محياوي محمد | E143: قرية بوسدرة البخاتة
A144: =+IF(B144=0,"",SUBTOTAL(3,B$6:B144)) -> 139 | B144: مخفي باية | C144: 3أ ف | D144: مخفي عبد الحكيم | E144: حي الشهداء
A145: =+IF(B145=0,"",SUBTOTAL(3,B$6:B145)) -> 140 | B145: مسارقي زينب | C145: 3أ ف | D145: مسارقي محمود | E145: درب 22 رقم 02 حي الشهداء ، مغنية
A146: =+IF(B146=0,"",SUBTOTAL(3,B$6:B146)) -> 141 | B146: مصار منال | C146: 3أ ف | D146: مصار محمد | E146: اولاد الشارف
A147: =+IF(B147=0,"",SUBTOTAL(3,B$6:B147)) -> 142 | B147: مقدم جميلة | C147: 3أ ف | D147: الحاج قدور | E147: قرية العقيد عباس اولاد قدور
A148: =+IF(B148=0,"",SUBTOTAL(3,B$6:B148)) -> 143 | B148: موساتي نادية | C148: 3أ ف | D148: موساتي ابن عمر | E148: قرية البخاتة
A149: =+IF(B149=0,"",SUBTOTAL(3,B$6:B149)) -> 144 | B149: أجد زينب | C149: 3لغات | D149: أجد محمد | E149: سيدي مبارك ، بني بوسعيد
A150: =+IF(B150=0,"",SUBTOTAL(3,B$6:B150)) -> 145 | B150: أمبارك الهاشمي | C150: 3لغات | D150: امبارك رشيد | E150: دوار اولاد قدور
A151: =+IF(B151=0,"",SUBTOTAL(3,B$6:B151)) -> 146 | B151: العابد يسرى | C151: 3لغات | D151: العابد بن عمر | E151: الدرب الاول رقم16 حي بلال
A152: =+IF(B152=0,"",SUBTOTAL(3,B$6:B152)) -> 147 | B152: المسعود محمد سيف | C152: 3لغات | D152: المسعود مصطفي | E152: اولاد الشارف مغنية
A153: =+IF(B153=0,"",SUBTOTAL(3,B$6:B153)) -> 148 | B153: بلخوان نهاد | C153: 3لغات | D153: بلخوان محمد | E153: قرية أولاد الشارف ، مغنية
A154: =+IF(B154=0,"",SUBTOTAL(3,B$6:B154)) -> 149 | B154: بلغري آية | C154: 3لغات | D154: حسين | E154: حي المطمر - مغنية
A155: =+IF(B155=0,"",SUBTOTAL(3,B$6:B155)) -> 150 | B155: بن اعمر رانيا | C155: 3لغات | D155: بن أعمر فوزي | E155: حي الركيزة ـ حمام بوغرارة
A156: =+IF(B156=0,"",SUBTOTAL(3,B$6:B156)) -> 151 | B156: بن عيسي وئام | C156: 3لغات | D156: بن عيسي حميدي | E156: حي بوغزال عمارة أ البريقي
A157: =+IF(B157=0,"",SUBTOTAL(3,B$6:B157)) -> 152 | B157: بناصر خلود هديل | C157: 3لغات | D157: بناصر مجاهد | E157: حي الباطاوار - مغنية
A158: =+IF(B158=0,"",SUBTOTAL(3,B$6:B158)) -> 153 | B158: بوشكري عبير | C158: 3لغات | D158: بوشكري محمد | E158: قرية العقيد عباس - مغنية
A159: =+IF(B159=0,"",SUBTOTAL(3,B$6:B159)) -> 154 | B159: تبحريتي إبراهيم | C159: 3لغات | D159: بحريتي عزالدين | E159: حي الباطوار ، مغنية
A160: =+IF(B160=0,"",SUBTOTAL(3,B$6:B160)) -> 155 | B160: جباري وسيلة | C160: 3لغات | D160: جبار ي الواسيني | E160: حي الركيزة ، حمام بوغرارة 13320
A161: =+IF(B161=0,"",SUBTOTAL(3,B$6:B161)) -> 156 | B161: جوادي خديجة شيماء | C161: 3لغات | D161: جوادي عبد الحميد | E161: حي بلال رقم 25 ، مغنية
A162: =+IF(B162=0,"",SUBTOTAL(3,B$6:B162)) -> 157 | B162: حفص نورية إيمان | C162: 3لغات | D162: حفص احمد | E162: قرية أولاد الشارف ـ مغنية
A163: =+IF(B163=0,"",SUBTOTAL(3,B$6:B163)) -> 158 | B163: حوحو محمد عبد الحق | C163: 3لغات | D163: حوحو عقبة | E163: قرية اولاد الشارف شارع07
A164: =+IF(B164=0,"",SUBTOTAL(3,B$6:B164)) -> 159 | B164: خش أميرة | C164: 3لغات | D164: خش عبد الرزاق | E164: حمام بوغرارة
A165: =+IF(B165=0,"",SUBTOTAL(3,B$6:B165)) -> 160 | B165: دار أعمر حنان | C165: 3لغات | D165: دار أعمر بومدين | E165: حمام بوغرارة الركيزة
A166: =+IF(B166=0,"",SUBTOTAL(3,B$6:B166)) -> 161 | B166: ديب أسية | C166: 3لغات | D166: ديب عبد الحميد | E166: شارع رقم 16 منزل رقم09 حي الشهداء
A167: =+IF(B167=0,"",SUBTOTAL(3,B$6:B167)) -> 162 | B167: راشدي رضوان | C167: 3لغات | D167: راشدي علي | E167: قرية أولاد الشارف ، مغنية
A168: =+IF(B168=0,"",SUBTOTAL(3,B$6:B168)) -> 163 | B168: زار رانيا | C168: 3لغات | D168: زار ميلود | E168: رقم 160 شارع تلمسان حي بلال ، مغنية
A169: =+IF(B169=0,"",SUBTOTAL(3,B$6:B169)) -> 164 | B169: زاوي أسماء | C169: 3لغات | D169: زاوي محمد | E169: حي الشهداء متوسطة عقبة بن نافع
A170: =+IF(B170=0,"",SUBTOTAL(3,B$6:B170)) -> 165 | B170: زموري صفاء | C170: 3لغات | D170: زموري بن عومر | E170: حي بلال محطة القطار
A171: =+IF(B171=0,"",SUBTOTAL(3,B$6:B171)) -> 166 | B171: شراك زينب | C171: 3لغات | D171: شراك يحيى | E171: حي بلال رقم 03 ، مغنية
A172: =+IF(B172=0,"",SUBTOTAL(3,B$6:B172)) -> 167 | B172: عفاني حسام | C172: 3لغات | D172: عفاني فؤاد | E172: قرية بوسدرة البخاتة ، مغنية
A173: =+IF(B173=0,"",SUBTOTAL(3,B$6:B173)) -> 168 | B173: غربي نجلاء سارة | C173: 3لغات | D173: غربي عمر | E173: حي الشهداء مغنية منزل رقم57
A174: =+IF(B174=0,"",SUBTOTAL(3,B$6:B174)) -> 169 | B174: فراج جواد | C174: 3لغات | D174: فراج بومدين | E174: حي 04 سكنات ، حمام بوغرارة 13320
A175: =+IF(B175=0,"",SUBTOTAL(3,B$6:B175)) -> 170 | B175: قاشور سليمة | C175: 3لغات | D175: قاشور إدريس | E175: 16 شارع محطة القطار ، مغنية
A176: =+IF(B176=0,"",SUBTOTAL(3,B$6:B176)) -> 171 | B176: كردوسي جمال الدين | C176: 3لغات | D176: عبد اللطيف | E176: حي مزوار رقم05 مغنية
A177: =+IF(B177=0,"",SUBTOTAL(3,B$6:B177)) -> 172 | B177: مزاري إكرام | C177: 3لغات | D177: مزاري الطيب | E177: قرية بوسدرة البخاتة ، مغنية
A178: =+IF(B178=0,"",SUBTOTAL(3,B$6:B178)) -> 173 | B178: موسليم أمينة | C178: 3لغات | D178: موسليم حسين | E178: حي الشهداء مغنية
A179: =+IF(B179=0,"",SUBTOTAL(3,B$6:B179)) -> 174 | B179: واسطي عبد السميع | C179: 3لغات | D179: واسطي مصطفي | E179: درب 11 منزل14 الشهداء
A180: =+IF(B180=0,"",SUBTOTAL(3,B$6:B180)) -> 175 | B180: بلخروف عبد النور | C180: 2ت ر | D180: بلخروف صالح | E180: حي النصر ، مغنية
A181: =+IF(B181=0,"",SUBTOTAL(3,B$6:B181)) -> 176 | B181: بن هدي مروة | C181: 2ت ر | D181: بن هدي احمد | E181: قرية بوسدرة البخاتة
A182: =+IF(B182=0,"",SUBTOTAL(3,B$6:B182)) -> 177 | B182: بوزار حمزة | C182: 2ت ر | D182: بوزار نعيمة | E182: قرية راس عصفور المصامدة
A183: =+IF(B183=0,"",SUBTOTAL(3,B$6:B183)) -> 178 | B183: بوسوماح شيماء | C183: 2ت ر | D183: بوسوماح عبد العزيز | E183: قرية العقيد عباس ، مغنية
A184: =+IF(B184=0,"",SUBTOTAL(3,B$6:B184)) -> 179 | B184: حدوشي محمد | C184: 2ت ر | D184: حدوشي احمد | E184: قرية المصامدة مغنية
A185: =+IF(B185=0,"",SUBTOTAL(3,B$6:B185)) -> 180 | B185: دربال محمد عبد الاله | C185: 2ت ر | D185: دربال سعيد | E185: حي بلال - مغنية
A186: =+IF(B186=0,"",SUBTOTAL(3,B$6:B186)) -> 181 | B186: راجعي محمد | C186: 2ت ر | D186: راجعي عبد الحاكم | E186: اولاد الشارف رواجعية
A187: =+IF(B187=0,"",SUBTOTAL(3,B$6:B187)) -> 182 | B187: رجالة منال | C187: 2ت ر | D187: رجالة لباس | E187: اولاد الشارف مغنية
A188: =+IF(B188=0,"",SUBTOTAL(3,B$6:B188)) -> 183 | B188: زغودي صليحة | C188: 2ت ر | D188: زعودي غوتي | E188: قرية المصامدة - مغنية
A189: =+IF(B189=0,"",SUBTOTAL(3,B$6:B189)) -> 184 | B189: شارف نور الهدى | C189: 2ت ر | D189: شارف سيب | E189: قرية أولاد الشارف ـ مغنية
A190: =+IF(B190=0,"",SUBTOTAL(3,B$6:B190)) -> 185 | B190: عبوين أسماء | C190: 2ت ر | D190: عبوين يحي | E190: قرية أولاد الشارف ـ مغنية
A191: =+IF(B191=0,"",SUBTOTAL(3,B$6:B191)) -> 186 | B191: عرقوب أصالة | C191: 2ت ر | D191: عرقوب جمال | E191: قرية المصامدة - مغنية
A192: =+IF(B192=0,"",SUBTOTAL(3,B$6:B192)) -> 187 | B192: غرفاتي خيرالدين | C192: 2ت ر | D192: غرفاتي العيد | E192: حي الشهداء مغنية
A193: =+IF(B193=0,"",SUBTOTAL(3,B$6:B193)) -> 188 | B193: لهباب رزق الله | C193: 2ت ر | D193: لهباب عز الدين | E193: شارع15 ر04 حي القاضي
A194: =+IF(B194=0,"",SUBTOTAL(3,B$6:B194)) -> 189 | B194: الشيخ فرح | C194: 2ع ت01 | D194: الشيخ طيب | E194: قرية العقيد عباس
A195: =+IF(B195=0,"",SUBTOTAL(3,B$6:B195)) -> 190 | B195: امحمدي بشرى | C195: 2ع ت01 | D195: امحمدي الشيخ | E195: قرية عقيد عباس
A196: =+IF(B196=0,"",SUBTOTAL(3,B$6:B196)) -> 191 | B196: بختاوي نور شيماء | C196: 2ع ت01 | D196: بختاوي عبد الحفيظ | E196: حي جابر رقم30
A197: =+IF(B197=0,"",SUBTOTAL(3,B$6:B197)) -> 192 | B197: بربيط سلاف | C197: 2ع ت01 | D197: بربيط محمد | E197: قرية أولاد الشارف ، مغنية
A198: =+IF(B198=0,"",SUBTOTAL(3,B$6:B198)) -> 193 | B198: بشير ليلى | C198: 2ع ت01 | D198: بشير محمد | E198: قرية أولاد الشارف ـ مغنية
A199: =+IF(B199=0,"",SUBTOTAL(3,B$6:B199)) -> 194 | B199: بن عبد الله وسيلة | C199: 2ع ت01 | D199: بن عبد الله امحمد | E199: قرية المصامدة - مغنية
A200: =+IF(B200=0,"",SUBTOTAL(3,B$6:B200)) -> 195 | B200: بن موسى نبية | C200: 2ع ت01 | D200: بن موسى أحمد | E200: قرية البخاتة بوسدرة ـ مغنية
... 359 more rows
